Workbook

Sheet Consolidation
A1: 1 | B1: 2 | C1: 3 | D1: 4 | E1: 5 | F1: 6 | G1: 7 | H1: 8 | I1: 9 | J1: 10 | K1: 11 | L1: 12 | M1: 13 | N1: 14 | O1: 15 | P1: 16
E2: Paper 1 | L2: Paper 2 | S2: Paper 3 | Z2: Paper 4 | AG2: Paper 5 | AN2: Paper 6 | AU2: Paper 7 | BB2: Paper 8 | BI2: Paper 9 | BP2: Paper 10 | BW2: Paper 11 | CD2: Paper 12 | CK2: Paper 13 | CR2: Paper 14 | CY2: Paper 15 | DF2: Paper 16 | DM2: Paper 17 | DT2: Paper 18 | EA2: Paper 19 | EH2: Paper 20 | EO2: Paper 21 | EV2: Paper 22 | FC2: Paper 23 | FJ2: Paper 24 | FQ2: Paper 25 | FX2: Paper 26 | GE2: Paper 27 | GL2: Paper 28 | GS2: Paper 29 | GZ2: Paper 30 | HG2: Paper 31 | HN2: Paper 32 | HU2: Paper 33 | IB2: Paper 34 | II2: Paper 35 | IP2: Paper 36 | IW2: Paper 37 | JD2: Paper 38 | JK2: Paper 39 | JR2: Paper 40 | JY2: Paper 41 | KF2: Paper 42 | KM2: Paper 43 | KT2: Paper 44 | LA2: Paper 45 | LH2: Paper 46 | LO2: Paper 47 | LV2: Paper 48 | MC2: Paper 49 | MJ2: Paper 50 | MQ2: Paper 51 | MX2: Paper 52 | NE2: Paper 53 | NL2: Paper 54 | NS2: Paper 55 | NZ2: Paper 56 | OG2: Paper 57 | ON2: Paper 58 | OU2: Paper 59 | PB2: Paper 60 | PI2: Paper 61 | PP2: Paper 62 | PW2: Paper 63 | QD2: Paper 64 | QK2: Paper 65 | QR2: Paper 66 | QY2: Paper 67 | RF2: Paper 68 | RM2: Paper 69 | RT2: Paper 70 | SA2: Paper 71 | SH2: Paper 72 | SO2: Paper 73 | SV2: Paper 74 | TC2: Paper 75 | TJ2: Paper 76 | TQ2: Paper 77 | TX2: Paper 78 | UE2: Paper 79 | UL2: Paper 80 | US2: Paper 81 | UZ2: Paper 82 | VG2: Paper 83 | VN2: Paper 84 | VU2: Paper 85
B3: NONWEIGHTED | E3: Reviewer 1 | F3: Reviewer 2 | L3: Reviewer 1 | M3: Reviewer 2 | S3: Reviewer 1 | T3: Reviewer 2 | Z3: Reviewer 1 | AA3: Reviewer 2 | AG3: Reviewer 1 | AH3: Reviewer 2 | AN3: Reviewer 1 | AO3: Reviewer 2 | AU3: Reviewer 1 | AV3: Reviewer 2 | BB3: Reviewer 1 | BC3: Reviewer 2 | BI3: Reviewer 1 | BJ3: Reviewer 2 | BP3: Reviewer 1 | BQ3: Reviewer 2 | BW3: Reviewer 1 | BX3: Reviewer 2 | CD3: Reviewer 1 | CE3: Reviewer 2 | CK3: Reviewer 1 | CL3: Reviewer 2 | CR3: Reviewer 1 | CS3: Reviewer 2 | CY3: Reviewer 1 | CZ3: Reviewer 2 | DF3: Reviewer 1 | DG3: Reviewer 2 | DM3: Reviewer 1 | DN3: Reviewer 2 | DT3: Reviewer 1 | DU3: Reviewer 2 | EA3: Reviewer 1 | EB3: Reviewer 2 | EH3: Reviewer 1 | EI3: Reviewer 2 | EO3: Reviewer 1 | EP3: Reviewer 2 | EV3: Reviewer 1 | EW3: Reviewer 2 | FC3: Reviewer 1 | FD3: Reviewer 2 | FJ3: Reviewer 1 | FK3: Reviewer 2 | FQ3: Reviewer 1 | FR3: Reviewer 2 | FX3: Reviewer 1 | FY3: Reviewer 2 | GE3: Reviewer 1 | GF3: Reviewer 2 | GL3: Reviewer 1 | GM3: Reviewer 2 | GS3: Reviewer 1 | GT3: Reviewer 2 | GZ3: Reviewer 1 | HA3: Reviewer 2 | HG3: Reviewer 1 | HH3: Reviewer 2 | HN3: Reviewer 1 | HO3: Reviewer 2 | HU3: Reviewer 1 | HV3: Reviewer 2 | IB3: Reviewer 1 | IC3: Reviewer 2 | II3: Reviewer 1 | IJ3: Reviewer 2 | IP3: Reviewer 1 | IQ3: Reviewer 2 | IW3: Reviewer 1 | IX3: Reviewer 2 | JD3: Reviewer 1 | JE3: Reviewer 2 | JK3: Reviewer 1 | JL3: Reviewer 2 | JR3: Reviewer 1 | JS3: Reviewer 2 | JY3: Reviewer 1 | JZ3: Reviewer 2 | KF3: Reviewer 1 | KG3: Reviewer 2 | KM3: Reviewer 1 | KN3: Reviewer 2 | KT3: Reviewer 1 | KU3: Reviewer 2 | LA3: Reviewer 1 | LB3: Reviewer 2 | LH3: Reviewer 1 | LI3: Reviewer 2 | LO3: Reviewer 1 | LP3: Reviewer 2 | LV3: Reviewer 1 | LW3: Reviewer 2 | MC3: Reviewer 1 | MD3: Reviewer 2 | MJ3: Reviewer 1 | MK3: Reviewer 2 | MQ3: Reviewer 1 | MR3: Reviewer 2 | MX3: Reviewer 1 | MY3: Reviewer 2 | NE3: Reviewer 1 | NF3: Reviewer 2 | NL3: Reviewer 1 | NM3: Reviewer 2 | NS3: Reviewer 1 | NT3: Reviewer 2 | NZ3: Reviewer 1 | OA3: Reviewer 2 | OG3: Reviewer 1 | OH3: Reviewer 2 | ON3: Reviewer 1 | OO3: Reviewer 2 | OU3: Reviewer 1 | OV3: Reviewer 2 | PB3: Reviewer 1 | PC3: Reviewer 2 | PI3: Reviewer 1 | PJ3: Reviewer 2 | PP3: Reviewer 1 | PQ3: Reviewer 2 | PW3: Reviewer 1 | PX3: Reviewer 2 | QD3: Reviewer 1 | QE3: Reviewer 2 | QK3: Reviewer 1 | QL3: Reviewer 2 | QR3: Reviewer 1 | QS3: Reviewer 2 | QY3: Reviewer 1 | QZ3: Reviewer 2 | RF3: Reviewer 1 | RG3: Reviewer 2 | RM3: Reviewer 1 | RN3: Reviewer 2 | RT3: Reviewer 1 | RU3: Reviewer 2 | SA3: Reviewer 1 | SB3: Reviewer 2 | SH3: Reviewer 1 | SI3: Reviewer 2 | SO3: Reviewer 1 | SP3: Reviewer 2 | SV3: Reviewer 1 | SW3: Reviewer 2 | TC3: Reviewer 1 | TD3: Reviewer 2 | TJ3: Reviewer 1 | TK3: Reviewer 2 | TQ3: Reviewer 1 | TR3: Reviewer 2 | TX3: Reviewer 1 | TY3: Reviewer 2 | UE3: Reviewer 1 | UF3: Reviewer 2 | UL3: Reviewer 1 | UM3: Reviewer 2 | US3: Reviewer 1 | UT3: Reviewer 2 | UZ3: Reviewer 1 | VA3: Reviewer 2 | VG3: Reviewer 1 | VH3: Reviewer 2 | VN3: Reviewer 1 | VO3: Reviewer 2 | VU3: Reviewer 1 | VV3: Reviewer 2
A4: Gender/Sex Reporting Tool
A7: Authorship inclusiveness | B7: Author representation of different races or ethnicities | E7: 1 | F7: 1 | G7: =SUM(E7:F7) -> 2 | L7: 1 | M7: 1 | N7: =SUM(L7:M7) -> 2 | S7: 1 | T7: 1 | U7: =SUM(S7:T7) -> 2 | Z7: 1 | AA7: 1 | AB7: =SUM(Z7:AA7) -> 2 | AG7: 1 | AH7: 1 | AI7: =SUM(AG7:AH7) -> 2 | AN7: 1 | AO7: 1 | AP7: =SUM(AN7:AO7) -> 2 | AU7: 1 | AV7: 1 | AW7: =SUM(AU7:AV7) -> 2 | BB7: 1 | BC7: 1 | BD7: =SUM(BB7:BC7) -> 2 | BI7: 1 | BJ7: 1 | BK7: =SUM(BI7:BJ7) -> 2 | BP7: 1 | BQ7: 1 | BR7: =SUM(BP7:BQ7) -> 2 | BW7: 1 | BX7: 1 | BY7: =SUM(BW7:BX7) -> 2 | CD7: 1 | CE7: 1 | CF7: =SUM(CD7:CE7) -> 2 | CK7: 1 | CL7: 1 | CM7: =SUM(CK7:CL7) -> 2 | CR7: 1 | CS7: 1 | CT7: =SUM(CR7:CS7) -> 2 | CY7: 1 | CZ7: 1 | DA7: =SUM(CY7:CZ7) -> 2 | DF7: 1 | DG7: 1 | DH7: =SUM(DF7:DG7) -> 2 | DM7: 1 | DN7: 1 | DO7: =SUM(DM7:DN7) -> 2 | DT7: 1 | DU7: 1 | DV7: =SUM(DT7:DU7) -> 2 | EA7: 1 | EB7: 1 | EC7: =SUM(EA7:EB7) -> 2 | EH7: 1 | EI7: 0 | EJ7: =SUM(EH7:EI7) -> 1 | EO7: 1 | EP7: 0 | EQ7: =SUM(EO7:EP7) -> 1 | EV7: 1 | EW7: 1 | EX7: =SUM(EV7:EW7) -> 2 | FC7: 1 | FD7: 1 | FE7: =SUM(FC7:FD7) -> 2 | FJ7: 1 | FK7: 1 | FL7: =SUM(FJ7:FK7) -> 2 | FQ7: 0 | FR7: 0 | FS7: =SUM(FQ7:FR7) -> 0 | FX7: 1 | FY7: 1 | FZ7: =SUM(FX7:FY7) -> 2 | GE7: 1 | GF7: 0 | GG7: =SUM(GE7:GF7) -> 1 | GL7: 1 | GM7: 0 | GN7: =SUM(GL7:GM7) -> 1 | GS7: 1 | GT7: 0 | GU7: =SUM(GS7:GT7) -> 1 | GZ7: 1 | HA7: 1 | HB7: =SUM(GZ7:HA7) -> 2 | HG7: 1 | HH7: 1 | HI7: =SUM(HG7:HH7) -> 2 | HN7: 1 | HO7: 0 | HP7: =SUM(HN7:HO7) -> 1 | HU7: 1 | HV7: 1 | HW7: =SUM(HU7:HV7) -> 2 | IB7: 1 | IC7: 0 | ID7: =SUM(IB7:IC7) -> 1 | II7: 1 | IJ7: 0 | IK7: =SUM(II7:IJ7) -> 1 | IP7: 1 | IQ7: 0 | IR7: =SUM(IP7:IQ7) -> 1 | IW7: 1 | IX7: 0 | IY7: =SUM(IW7:IX7) -> 1 | JD7: 1 | JE7: 1 | JF7: =SUM(JD7:JE7) -> 2 | JK7: 1 | JL7: 1 | JM7: =SUM(JK7:JL7) -> 2 | JR7: 1 | JS7: 1 | JT7: =SUM(JR7:JS7) -> 2 | JY7: 1 | JZ7: 1 | KA7: =SUM(JY7:JZ7) -> 2 | KF7: 1 | KG7: 1 | KH7: =SUM(KF7:KG7) -> 2 | KM7: 1 | KN7: 1 | KO7: =SUM(KM7:KN7) -> 2 | KT7: 1 | KU7: 1 | KV7: =SUM(KT7:KU7) -> 2 | LA7: 1 | LB7: 1 | LC7: =SUM(LA7:LB7) -> 2 | LH7: 1 | LI7: 1 | LJ7: =SUM(LH7:LI7) -> 2 | LO7: 1 | LP7: 1 | LQ7: =SUM(LO7:LP7) -> 2 | LV7: 1 | LW7: 1 | LX7: =SUM(LV7:LW7) -> 2 | MC7: 1 | MD7: 1 | ME7: =SUM(MC7:MD7) -> 2 | MJ7: 1 | MK7: 1 | ML7: =SUM(MJ7:MK7) -> 2 | MQ7: 1 | MR7: 1 | MS7: =SUM(MQ7:MR7) -> 2 | MX7: 1 | MY7: 1 | MZ7: =SUM(MX7:MY7) -> 2 | NE7: 1 | NF7: 1 | NG7: =SUM(NE7:NF7) -> 2 | NL7: 1 | NM7: 0 | NN7: =SUM(NL7:NM7) -> 1 | NS7: 1 | NT7: 1 | NU7: =SUM(NS7:NT7) -> 2 | NZ7: 1 | OA7: 1 | OB7: =SUM(NZ7:OA7) -> 2 | OG7: 1 | OH7: 1 | OI7: =SUM(OG7:OH7) -> 2 | ON7: 1 | OO7: 1 | OP7: =SUM(ON7:OO7) -> 2 | OU7: 1 | OV7: 1 | OW7: =SUM(OU7:OV7) -> 2 | PB7: 1 | PC7: 1 | PD7: =SUM(PB7:PC7) -> 2 | PI7: 1 | PJ7: 1 | PK7: =SUM(PI7:PJ7) -> 2 | PP7: 1 | PQ7: 1 | PR7: =SUM(PP7:PQ7) -> 2 | PW7: 1 | PX7: 1 | PY7: =SUM(PW7:PX7) -> 2 | QD7: 1 | QE7: 1 | QF7: =SUM(QD7:QE7) -> 2 | QK7: 1 | QL7: 1 | QM7: =SUM(QK7:QL7) -> 2 | QR7: 1 | QS7: 1 | QT7: =SUM(QR7:QS7) -> 2 | QY7: 1 | QZ7: 1 | RA7: =SUM(QY7:QZ7) -> 2 | RF7: 1 | RG7: 1 | RH7: =SUM(RF7:RG7) -> 2 | RM7: 1 | RN7: 1 | RO7: =SUM(RM7:RN7) -> 2 | RT7: 1 | RU7: 1 | RV7: =SUM(RT7:RU7) -> 2 | SA7: 1 | SB7: 1 | SC7: =SUM(SA7:SB7) -> 2 | SH7: 1 | SI7: 1 | SJ7: =SUM(SH7:SI7) -> 2 | SO7: 1 | SP7: 1 | SQ7: =SUM(SO7:SP7) -> 2 | SV7: 1 | SW7: 1 | SX7: =SUM(SV7:SW7) -> 2 | TC7: 1 | TD7: 1 | TE7: =SUM(TC7:TD7) -> 2 | TJ7: 1 | TK7: 1 | TL7: =SUM(TJ7:TK7) -> 2 | TQ7: 1 | TR7: 1 | TS7: =SUM(TQ7:TR7) -> 2 | TX7: 1 | TY7: 1 | TZ7: =SUM(TX7:TY7) -> 2 | UE7: 1 | UF7: 1 | UG7: =SUM(UE7:UF7) -> 2 | UL7: 1 | UM7: 1 | UN7: =SUM(UL7:UM7) -> 2 | US7: 1 | UT7: 0 | UU7: =SUM(US7:UT7) -> 1 | UZ7: 1 | VA7: 1 | VB7: =SUM(UZ7:VA7) -> 2 | VG7: 1 | VH7: 1 | VI7: =SUM(VG7:VH7) -> 2 | VN7: 1 | VO7: 1 | VP7: =SUM(VN7:VO7) -> 2 | VU7: 1 | VV7: 0 | VW7: =SUM(VU7:VV7) -> 1
A8: Participant inclusiveness | B8: Participant inclusion of different races or why not relevant | E8: 0 | F8: 0 | G8: =SUM(E8:F8) -> 0 | L8: 0 | M8: 0 | N8: =SUM(L8:M8) -> 0 | S8: 0 | T8: 0 | U8: =SUM(S8:T8) -> 0 | Z8: 0 | AA8: 0 | AB8: =SUM(Z8:AA8) -> 0 | AG8: 1 | AH8: 0 | AI8: =SUM(AG8:AH8) -> 1 | AN8: 0 | AO8: 0 | AP8: =SUM(AN8:AO8) -> 0 | AU8: 1 | AV8: 1 | AW8: =SUM(AU8:AV8) -> 2 | BB8: 0 | BC8: 0 | BD8: =SUM(BB8:BC8) -> 0 | BI8: 1 | BJ8: 1 | BK8: =SUM(BI8:BJ8) -> 2 | BP8: 1 | BQ8: 0 | BR8: =SUM(BP8:BQ8) -> 1 | BW8: 0 | BX8: 0 | BY8: =SUM(BW8:BX8) -> 0 | CD8: 0 | CE8: 0 | CF8: =SUM(CD8:CE8) -> 0 | CK8: 1 | CL8: 1 | CM8: =SUM(CK8:CL8) -> 2 | CR8: 0 | CS8: 0 | CT8: =SUM(CR8:CS8) -> 0 | CY8: 0 | CZ8: 0 | DA8: =SUM(CY8:CZ8) -> 0 | DF8: 0 | DG8: 0 | DH8: =SUM(DF8:DG8) -> 0 | DM8: 1 | DN8: 1 | DO8: =SUM(DM8:DN8) -> 2 | DT8: 0 | DU8: 0 | DV8: =SUM(DT8:DU8) -> 0 | EA8: 1 | EB8: 1 | EC8: =SUM(EA8:EB8) -> 2 | EH8: 0 | EI8: 0 | EJ8: =SUM(EH8:EI8) -> 0 | EO8: 0 | EP8: 0 | EQ8: =SUM(EO8:EP8) -> 0 | EV8: 0 | EW8: 0 | EX8: =SUM(EV8:EW8) -> 0 | FC8: 0 | FD8: 0 | FE8: =SUM(FC8:FD8) -> 0 | FJ8: 0 | FK8: 0 | FL8: =SUM(FJ8:FK8) -> 0 | FQ8: 0 | FR8: 0 | FS8: =SUM(FQ8:FR8) -> 0 | FX8: 1 | FY8: 1 | FZ8: =SUM(FX8:FY8) -> 2 | GE8: 0 | GF8: 0 | GG8: =SUM(GE8:GF8) -> 0 | GL8: 0 | GM8: 0 | GN8: =SUM(GL8:GM8) -> 0 | GS8: 0 | GT8: 0 | GU8: =SUM(GS8:GT8) -> 0 | GZ8: 0 | HA8: 0 | HB8: =SUM(GZ8:HA8) -> 0 | HG8: 0 | HH8: 0 | HI8: =SUM(HG8:HH8) -> 0 | HN8: 0 | HO8: 0 | HP8: =SUM(HN8:HO8) -> 0 | HU8: 1 | HV8: 1 | HW8: =SUM(HU8:HV8) -> 2 | IB8: 0 | IC8: 0 | ID8: =SUM(IB8:IC8) -> 0 | II8: 0 | IJ8: 0 | IK8: =SUM(II8:IJ8) -> 0 | IP8: 0 | IQ8: 0 | IR8: =SUM(IP8:IQ8) -> 0 | IW8: 0 | IX8: 0 | IY8: =SUM(IW8:IX8) -> 0 | JD8: 0 | JE8: 1 | JF8: =SUM(JD8:JE8) -> 1 | JK8: 0 | JL8: 0 | JM8: =SUM(JK8:JL8) -> 0 | JR8: 0 | JS8: 0 | JT8: =SUM(JR8:JS8) -> 0 | JY8: 0 | JZ8: 0 | KA8: =SUM(JY8:JZ8) -> 0 | KF8: 1 | KG8: 1 | KH8: =SUM(KF8:KG8) -> 2 | KM8: 0 | KN8: 0 | KO8: =SUM(KM8:KN8) -> 0 | KT8: 1 | KU8: 1 | KV8: =SUM(KT8:KU8) -> 2 | LA8: 1 | LB8: 1 | LC8: =SUM(LA8:LB8) -> 2 | LH8: 0 | LI8: 0 | LJ8: =SUM(LH8:LI8) -> 0 | LO8: 1 | LP8: 1 | LQ8: =SUM(LO8:LP8) -> 2 | LV8: 0 | LW8: 0 | LX8: =SUM(LV8:LW8) -> 0 | MC8: 1 | MD8: 1 | ME8: =SUM(MC8:MD8) -> 2 | MJ8: 0 | MK8: 0 | ML8: =SUM(MJ8:MK8) -> 0 | MQ8: 1 | MR8: 0 | MS8: =SUM(MQ8:MR8) -> 1 | MX8: 1 | MY8: 1 | MZ8: =SUM(MX8:MY8) -> 2 | NE8: 0 | NF8: 0 | NG8: =SUM(NE8:NF8) -> 0 | NL8: 0 | NM8: 0 | NN8: =SUM(NL8:NM8) -> 0 | NS8: 1 | NT8: 0 | NU8: =SUM(NS8:NT8) -> 1 | NZ8: 1 | OA8: 1 | OB8: =SUM(NZ8:OA8) -> 2 | OG8: 1 | OH8: 1 | OI8: =SUM(OG8:OH8) -> 2 | ON8: 1 | OO8: 1 | OP8: =SUM(ON8:OO8) -> 2 | OU8: 1 | OV8: 1 | OW8: =SUM(OU8:OV8) -> 2 | PB8: 1 | PC8: 1 | PD8: =SUM(PB8:PC8) -> 2 | PI8: 1 | PJ8: 1 | PK8: =SUM(PI8:PJ8) -> 2 | PP8: 1 | PQ8: 1 | PR8: =SUM(PP8:PQ8) -> 2 | PW8: 1 | PX8: 1 | PY8: =SUM(PW8:PX8) -> 2 | QD8: 1 | QE8: 1 | QF8: =SUM(QD8:QE8) -> 2 | QK8: 1 | QL8: 1 | QM8: =SUM(QK8:QL8) -> 2 | QR8: 1 | QS8: 1 | QT8: =SUM(QR8:QS8) -> 2 | QY8: 1 | QZ8: 1 | RA8: =SUM(QY8:QZ8) -> 2 | RF8: 0 | RG8: 0 | RH8: =SUM(RF8:RG8) -> 0 | RM8: 0 | RN8: 0 | RO8: =SUM(RM8:RN8) -> 0 | RT8: 0 | RU8: 0 | RV8: =SUM(RT8:RU8) -> 0 | SA8: 1 | SB8: 1 | SC8: =SUM(SA8:SB8) -> 2 | SH8: 0 | SI8: 0 | SJ8: =SUM(SH8:SI8) -> 0 | SO8: 0 | SP8: 0 | SQ8: =SUM(SO8:SP8) -> 0 | SV8: 0 | SW8: 0 | SX8: =SUM(SV8:SW8) -> 0 | TC8: 1 | TD8: 1 | TE8: =SUM(TC8:TD8) -> 2 | TJ8: 1 | TK8: 1 | TL8: =SUM(TJ8:TK8) -> 2 | TQ8: 0 | TR8: 0 | TS8: =SUM(TQ8:TR8) -> 0 | TX8: 1 | TY8: 1 | TZ8: =SUM(TX8:TY8) -> 2 | UE8: 0 | UF8: 0 | UG8: =SUM(UE8:UF8) -> 0 | UL8: 1 | UM8: 0 | UN8: =SUM(UL8:UM8) -> 1 | US8: 0 | UT8: 0 | UU8: =SUM(US8:UT8) -> 0 | UZ8: 1 | VA8: 1 | VB8: =SUM(UZ8:VA8) -> 2 | VG8: 1 | VH8: 1 | VI8: =SUM(VG8:VH8) -> 2 | VN8: 0 | VO8: 0 | VP8: =SUM(VN8:VO8) -> 0 | VU8: 0 | VV8: 0 | VW8: =SUM(VU8:VV8) -> 0
B9: Participant inclusion of different ethnicities or why not relevant | E9: 0 | F9: 0 | G9: 0 | L9: 0 | M9: 0 | N9: 0 | S9: 0 | T9: 0 | U9: 0 | Z9: 0 | AA9: 0 | AB9: 0 | AG9: 0 | AH9: 0 | AI9: 0 | AN9: 0 | AO9: 0 | AP9: 0 | AU9: 0 | AV9: 0 | AW9: 0 | BB9: 0 | BC9: 0 | BD9: 0 | BI9: 0 | BJ9: 1 | BK9: 1 | BP9: 0 | BQ9: 0 | BR9: 0 | BW9: 0 | BX9: 0 | BY9: 0 | CD9: 0 | CE9: 0 | CF9: 0 | CK9: 0 | CL9: 0 | CM9: 0 | CR9: 0 | CS9: 0 | CT9: 0 | CY9: 0 | CZ9: 0 | DA9: 0 | DF9: 0 | DG9: 0 | DH9: 0 | DM9: 0 | DN9: 0 | DO9: 0 | DT9: 0 | DU9: 0 | DV9: 0 | EA9: 1 | EB9: 0 | EC9: 1 | EH9: 1 | EI9: 1 | EJ9: 2 | EO9: 0 | EP9: 0 | EQ9: 0 | EV9: 0 | EW9: 1 | EX9: 1 | FC9: 0 | FD9: 0 | FE9: 0 | FJ9: 0 | FK9: 0 | FL9: 0 | FQ9: 0 | FR9: 0 | FS9: 0 | FX9: 0 | FY9: 0 | FZ9: 0 | GE9: 0 | GF9: 0 | GG9: 0 | GL9: 0 | GM9: 0 | GN9: 0 | GS9: 0 | GT9: 0 | GU9: 0 | GZ9: 0 | HA9: 0 | HB9: 0 | HG9: 0 | HH9: 0 | HI9: 0 | HN9: 0 | HO9: 0 | HP9: 0 | HU9: 1 | HV9: 1 | HW9: 2 | IB9: 0 | IC9: 0 | ID9: 0 | II9: 0 | IJ9: 0 | IK9: 0 | IP9: 0 | IQ9: 0 | IR9: 0 | IW9: 0 | IX9: 0 | IY9: 0 | JD9: 0 | JE9: 0 | JF9: 0 | JK9: 1 | JL9: 1 | JM9: 2 | JR9: 0 | JS9: 1 | JT9: 1 | JY9: 0 | JZ9: 1 | KA9: 1 | KF9: 1 | KG9: 1 | KH9: 2 | KM9: 0 | KN9: 0 | KO9: 0 | KT9: 1 | KU9: 1 | KV9: 2 | LA9: 1 | LB9: 0 | LC9: 1 | LH9: 0 | LI9: 0 | LJ9: 0 | LO9: 0 | LP9: 0 | LQ9: 0 | LV9: 0 | LW9: 0 | LX9: 0 | MC9: 1 | MD9: 1 | ME9: 2 | MJ9: 0 | MK9: 0 | ML9: 0 | MQ9: 1 | MR9: 0 | MS9: 1 | MX9: 0 | MY9: 0 | MZ9: 0 | NE9: 0 | NF9: 0 | NG9: 0 | NL9: 0 | NM9: 0 | NN9: 0 | NS9: 1 | NT9: 0 | NU9: 1 | NZ9: 0 | OA9: 0 | OB9: 0 | OG9: 1 | OH9: 1 | OI9: 2 | ON9: 1 | OO9: 1 | OP9: 2 | OU9: 1 | OV9: 1 | OW9: 2 | PB9: 1 | PC9: 1 | PD9: 2 | PI9: 1 | PJ9: 1 | PK9: 2 | PP9: 1 | PQ9: 1 | PR9: 2 | PW9: 1 | PX9: 1 | PY9: 2 | QD9: 0 | QE9: 0 | QF9: 0 | QK9: 0 | QL9: 0 | QM9: 0 | QR9: 1 | QS9: 1 | QT9: 2 | QY9: 1 | QZ9: 1 | RA9: 2 | RF9: 0 | RG9: 0 | RH9: 0 | RM9: 0 | RN9: 0 | RO9: 0 | RT9: 0 | RU9: 0 | RV9: 0 | SA9: 0 | SB9: 0 | SC9: 0 | SH9: 0 | SI9: 0 | SJ9: 0 | SO9: 0 | SP9: 0 | SQ9: 0 | SV9: 0 | SW9: 0 | SX9: 0 | TC9: 0 | TD9: 0 | TE9: 0 | TJ9: 1 | TK9: 0 | TL9: 1 | TQ9: 0 | TR9: 0 | TS9: 0 | TX9: 1 | TY9: 1 | TZ9: 2 | UE9: 0 | UF9: 0 | UG9: 0 | UL9: 0 | UM9: 0 | UN9: 0 | US9: 0 | UT9: 0 | UU9: 0 | UZ9: 1 | VA9: 1 | VB9: 2 | VG9: 1 | VH9: 1 | VI9: 2 | VN9: 0 | VO9: 0 | VP9: 0 | VU9: 0 | VV9: 0 | VW9: 0
A10: Nomenclature | B10: Race: American Indian or Alaska Native | E10: 0 | F10: 0 | G10: 0 | L10: 0 | M10: 0 | N10: 0 | S10: 0 | T10: 0 | U10: 0 | Z10: 0 | AA10: 0 | AB10: 0 | AG10: 0 | AH10: 0 | AI10: 0 | AN10: 0 | AO10: 0 | AP10: 0 | AU10: 0 | AV10: 0 | AW10: 0 | BB10: 0 | BC10: 0 | BD10: 0 | BI10: 0 | BJ10: 0 | BK10: 0 | BP10: 0 | BQ10: 0 | BR10: 0 | BW10: 0 | BX10: 0 | BY10: 0 | CD10: 0 | CE10: 0 | CF10: 0 | CK10: 0 | CL10: 0 | CM10: 0 | CR10: 0 | CS10: 0 | CT10: 0 | CY10: 0 | CZ10: 0 | DA10: 0 | DF10: 0 | DG10: 0 | DH10: 0 | DM10: 0 | DN10: 0 | DO10: 0 | DT10: 0 | DU10: 0 | DV10: 0 | EA10: 0 | EB10: 0 | EC10: 0 | EH10: 0 | EI10: 0 | EJ10: 0 | EO10: 0 | EP10: 0 | EQ10: 0 | EV10: 0 | EW10: 0 | EX10: 0 | FC10: 0 | FD10: 0 | FE10: 0 | FJ10: 0 | FK10: 0 | FL10: 0 | FQ10: 0 | FR10: 0 | FS10: 0 | FX10: 0 | FY10: 0 | FZ10: 0 | GE10: 0 | GF10: 0 | GG10: 0 | GL10: 0 | GM10: 0 | GN10: 0 | GS10: 0 | GT10: 0 | GU10: 0 | GZ10: 0 | HA10: 0 | HB10: 0 | HG10: 0 | HH10: 0 | HI10: 0 | HN10: 0 | HO10: 0 | HP10: 0 | HU10: 0 | HV10: 1 | HW10: 1 | IB10: 0 | IC10: 0 | ID10: 0 | II10: 0 | IJ10: 0 | IK10: 0 | IP10: 0 | IQ10: 0 | IR10: 0 | IW10: 0 | IX10: 0 | IY10: 0 | JD10: 0 | JE10: 0 | JF10: 0 | JK10: 0 | JL10: 0 | JM10: 0 | JR10: 0 | JS10: 0 | JT10: 0 | JY10: 0 | JZ10: 0 | KA10: 0 | KF10: 1 | KG10: 1 | KH10: 2 | KM10: 0 | KN10: 0 | KO10: 0 | KT10: 0 | KU10: 0 | KV10: 0 | LA10: 0 | LB10: 0 | LC10: 0 | LH10: 0 | LI10: 0 | LJ10: 0 | LO10: 0 | LP10: 0 | LQ10: 0 | LV10: 0 | LW10: 0 | LX10: 0 | MC10: 1 | MD10: 1 | ME10: 2 | MJ10: 0 | MK10: 0 | ML10: 0 | MQ10: 0 | MR10: 0 | MS10: 0 | MX10: 0 | MY10: 0 | MZ10: 0 | NE10: 0 | NF10: 0 | NG10: 0 | NL10: 0 | NM10: 0 | NN10: 0 | NS10: 0 | NT10: 0 | NU10: 0 | NZ10: 0 | OA10: 0 | OB10: 0 | OG10: 0 | OH10: 0 | OI10: 0 | ON10: 0 | OO10: 0 | OP10: 0 | OU10: 1 | OV10: 1 | OW10: 2 | PB10: 0 | PC10: 0 | PD10: 0 | PI10: 0 | PJ10: 0 | PK10: 0 | PP10: 1 | PQ10: 1 | PR10: 2 | PW10: 1 | PX10: 0 | PY10: 1 | QD10: 0 | QE10: 0 | QF10: 0 | QK10: 0 | QL10: 0 | QM10: 0 | QR10: 1 | QS10: 1 | QT10: 2 | QY10: 1 | QZ10: 1 | RA10: 2 | RF10: 0 | RG10: 0 | RH10: 0 | RM10: 0 | RN10: 0 | RO10: 0 | RT10: 0 | RU10: 0 | RV10: 0 | SA10: 0 | SB10: 0 | SC10: 0 | SH10: 0 | SI10: 0 | SJ10: 0 | SO10: 0 | SP10: 0 | SQ10: 0 | SV10: 0 | SW10: 0 | SX10: 0 | TC10: 1 | TD10: 1 | TE10: 2 | TJ10: 0 | TK10: 0 | TL10: 0 | TQ10: 0 | TR10: 0 | TS10: 0 | TX10: 1 | TY10: 1 | TZ10: 2 | UE10: 0 | UF10: 0 | UG10: 0 | UL10: 0 | UM10: 0 | UN10: 0 | US10: 0 | UT10: 0 | UU10: 0 | UZ10: 1 | VA10: 0 | VB10: 1 | VG10: 1 | VH10: 1 | VI10: 2 | VN10: 0 | VO10: 0 | VP10: 0 | VU10: 0 | VV10: 0 | VW10: 0
B11: Race: Asian | E11: 0 | F11: 0 | G11: 0 | L11: 0 | M11: 0 | N11: 0 | S11: 0 | T11: 0 | U11: 0 | Z11: 0 | AA11: 0 | AB11: 0 | AG11: 0 | AH11: 0 | AI11: 0 | AN11: 0 | AO11: 0 | AP11: 0 | AU11: 0 | AV11: 0 | AW11: 0 | BB11: 0 | BC11: 0 | BD11: 0 | BI11: 1 | BJ11: 1 | BK11: 2 | BP11: 0 | BQ11: 0 | BR11: 0 | BW11: 0 | BX11: 0 | BY11: 0 | CD11: 0 | CE11: 0 | CF11: 0 | CK11: 1 | CL11: 1 | CM11: 2 | CR11: 0 | CS11: 0 | CT11: 0 | CY11: 0 | CZ11: 0 | DA11: 0 | DF11: 0 | DG11: 0 | DH11: 0 | DM11: 0 | DN11: 0 | DO11: 0 | DT11: 0 | DU11: 0 | DV11: 0 | EA11: 1 | EB11: 1 | EC11: 2 | EH11: 0 | EI11: 0 | EJ11: 0 | EO11: 0 | EP11: 0 | EQ11: 0 | EV11: 0 | EW11: 1 | EX11: 1 | FC11: 0 | FD11: 0 | FE11: 0 | FJ11: 0 | FK11: 0 | FL11: 0 | FQ11: 0 | FR11: 0 | FS11: 0 | FX11: 0 | FY11: 0 | FZ11: 0 | GE11: 0 | GF11: 0 | GG11: 0 | GL11: 0 | GM11: 0 | GN11: 0 | GS11: 0 | GT11: 0 | GU11: 0 | GZ11: 0 | HA11: 0 | HB11: 0 | HG11: 0 | HH11: 0 | HI11: 0 | HN11: 0 | HO11: 0 | HP11: 0 | HU11: 0 | HV11: 0 | HW11: 0 | IB11: 0 | IC11: 0 | ID11: 0 | II11: 0 | IJ11: 0 | IK11: 0 | IP11: 0 | IQ11: 0 | IR11: 0 | IW11: 0 | IX11: 0 | IY11: 0 | JD11: 1 | JE11: 1 | JF11: 2 | JK11: 0 | JL11: 0 | JM11: 0 | JR11: 0 | JS11: 0 | JT11: 0 | JY11: 0 | JZ11: 0 | KA11: 0 | KF11: 1 | KG11: 1 | KH11: 2 | KM11: 0 | KN11: 0 | KO11: 0 | KT11: 0 | KU11: 0 | KV11: 0 | LA11: 1 | LB11: 1 | LC11: 2 | LH11: 0 | LI11: 0 | LJ11: 0 | LO11: 0 | LP11: 0 | LQ11: 0 | LV11: 0 | LW11: 0 | LX11: 0 | MC11: 1 | MD11: 1 | ME11: 2 | MJ11: 0 | MK11: 0 | ML11: 0 | MQ11: 0 | MR11: 0 | MS11: 0 | MX11: 0 | MY11: 0 | MZ11: 0 | NE11: 0 | NF11: 0 | NG11: 0 | NL11: 0 | NM11: 0 | NN11: 0 | NS11: 0 | NT11: 0 | NU11: 0 | NZ11: 1 | OA11: 1 | OB11: 2 | OG11: 0 | OH11: 0 | OI11: 0 | ON11: 1 | OO11: 1 | OP11: 2 | OU11: 1 | OV11: 1 | OW11: 2 | PB11: 0 | PC11: 0 | PD11: 0 | PI11: 1 | PJ11: 1 | PK11: 2 | PP11: 1 | PQ11: 1 | PR11: 2 | PW11: 1 | PX11: 1 | PY11: 2 | QD11: 1 | QE11: 1 | QF11: 2 | QK11: 1 | QL11: 1 | QM11: 2 | QR11: 1 | QS11: 1 | QT11: 2 | QY11: 1 | QZ11: 1 | RA11: 2 | RF11: 0 | RG11: 0 | RH11: 0 | RM11: 0 | RN11: 0 | RO11: 0 | RT11: 0 | RU11: 0 | RV11: 0 | SA11: 1 | SB11: 1 | SC11: 2 | SH11: 0 | SI11: 0 | SJ11: 0 | SO11: 0 | SP11: 0 | SQ11: 0 | SV11: 0 | SW11: 0 | SX11: 0 | TC11: 1 | TD11: 1 | TE11: 2 | TJ11: 1 | TK11: 1 | TL11: 2 | TQ11: 0 | TR11: 0 | TS11: 0 | TX11: 1 | TY11: 1 | TZ11: 2 | UE11: 0 | UF11: 0 | UG11: 0 | UL11: 0 | UM11: 0 | UN11: 0 | US11: 0 | UT11: 0 | UU11: 0 | UZ11: 1 | VA11: 1 | VB11: 2 | VG11: 1 | VH11: 1 | VI11: 2 | VN11: 0 | VO11: 0 | VP11: 0 | VU11: 0 | VV11: 0 | VW11: 0
B12: Race: Black or African American | E12: 0 | F12: 0 | G12: 0 | L12: 0 | M12: 0 | N12: 0 | S12: 0 | T12: 0 | U12: 0 | Z12: 0 | AA12: 0 | AB12: 0 | AG12: 0 | AH12: 0 | AI12: 0 | AN12: 0 | AO12: 0 | AP12: 0 | AU12: 1 | AV12: 1 | AW12: 2 | BB12: 0 | BC12: 0 | BD12: 0 | BI12: 1 | BJ12: 1 | BK12: 2 | BP12: 0 | BQ12: 0 | BR12: 0 | BW12: 0 | BX12: 0 | BY12: 0 | CD12: 0 | CE12: 0 | CF12: 0 | CK12: 1 | CL12: 1 | CM12: 2 | CR12: 0 | CS12: 0 | CT12: 0 | CY12: 0 | CZ12: 0 | DA12: 0 | DF12: 0 | DG12: 0 | DH12: 0 | DM12: 1 | DN12: 1 | DO12: 2 | DT12: 0 | DU12: 0 | DV12: 0 | EA12: 1 | EB12: 1 | EC12: 2 | EH12: 0 | EI12: 0 | EJ12: 0 | EO12: 0 | EP12: 0 | EQ12: 0 | EV12: 0 | EW12: 1 | EX12: 1 | FC12: 0 | FD12: 0 | FE12: 0 | FJ12: 0 | FK12: 0 | FL12: 0 | FQ12: 0 | FR12: 0 | FS12: 0 | FX12: 1 | FY12: 1 | FZ12: 2 | GE12: 0 | GF12: 0 | GG12: 0 | GL12: 0 | GM12: 0 | GN12: 0 | GS12: 0 | GT12: 0 | GU12: 0 | GZ12: 0 | HA12: 0 | HB12: 0 | HG12: 0 | HH12: 0 | HI12: 0 | HN12: 0 | HO12: 0 | HP12: 0 | HU12: 1 | HV12: 1 | HW12: 2 | IB12: 0 | IC12: 0 | ID12: 0 | II12: 0 | IJ12: 0 | IK12: 0 | IP12: 0 | IQ12: 0 | IR12: 0 | IW12: 0 | IX12: 0 | IY12: 0 | JD12: 1 | JE12: 1 | JF12: 2 | JK12: 0 | JL12: 0 | JM12: 0 | JR12: 0 | JS12: 0 | JT12: 0 | JY12: 0 | JZ12: 0 | KA12: 0 | KF12: 1 | KG12: 1 | KH12: 2 | KM12: 0 | KN12: 0 | KO12: 0 | KT12: 1 | KU12: 1 | KV12: 2 | LA12: 1 | LB12: 1 | LC12: 2 | LH12: 0 | LI12: 0 | LJ12: 0 | LO12: 1 | LP12: 1 | LQ12: 2 | LV12: 0 | LW12: 0 | LX12: 0 | MC12: 1 | MD12: 1 | ME12: 2 | MJ12: 0 | MK12: 0 | ML12: 0 | MQ12: 1 | MR12: 0 | MS12: 1 | MX12: 1 | MY12: 1 | MZ12: 2 | NE12: 0 | NF12: 0 | NG12: 0 | NL12: 0 | NM12: 0 | NN12: 0 | NS12: 0 | NT12: 0 | NU12: 0 | NZ12: 1 | OA12: 1 | OB12: 2 | OG12: 1 | OH12: 1 | OI12: 2 | ON12: 0 | OO12: 1 | OP12: 1 | OU12: 1 | OV12: 1 | OW12: 2 | PB12: 1 | PC12: 1 | PD12: 2 | PI12: 1 | PJ12: 1 | PK12: 2 | PP12: 1 | PQ12: 1 | PR12: 2 | PW12: 1 | PX12: 1 | PY12: 2 | QD12: 1 | QE12: 1 | QF12: 2 | QK12: 1 | QL12: 1 | QM12: 2 | QR12: 1 | QS12: 1 | QT12: 2 | QY12: 1 | QZ12: 1 | RA12: 2 | RF12: 0 | RG12: 0 | RH12: 0 | RM12: 0 | RN12: 0 | RO12: 0 | RT12: 0 | RU12: 0 | RV12: 0 | SA12: 1 | SB12: 1 | SC12: 2 | SH12: 0 | SI12: 0 | SJ12: 0 | SO12: 0 | SP12: 0 | SQ12: 0 | SV12: 0 | SW12: 0 | SX12: 0 | TC12: 1 | TD12: 1 | TE12: 2 | TJ12: 1 | TK12: 1 | TL12: 2 | TQ12: 0 | TR12: 0 | TS12: 0 | TX12: 1 | TY12: 1 | TZ12: 2 | UE12: 0 | UF12: 0 | UG12: 0 | UL12: 0 | UM12: 0 | UN12: 0 | US12: 0 | UT12: 0 | UU12: 0 | UZ12: 1 | VA12: 1 | VB12: 2 | VG12: 1 | VH12: 1 | VI12: 2 | VN12: 0 | VO12: 0 | VP12: 0 | VU12: 0 | VV12: 0 | VW12: 0
B13: Race: Native Hawaiian or Other Pacific Islander | E13: 0 | F13: 0 | G13: 0 | L13: 0 | M13: 0 | N13: 0 | S13: 0 | T13: 0 | U13: 0 | Z13: 0 | AA13: 0 | AB13: 0 | AG13: 0 | AH13: 0 | AI13: 0 | AN13: 0 | AO13: 0 | AP13: 0 | AU13: 1 | AV13: 0 | AW13: 1 | BB13: 0 | BC13: 0 | BD13: 0 | BI13: 1 | BJ13: 0 | BK13: 1 | BP13: 0 | BQ13: 0 | BR13: 0 | BW13: 0 | BX13: 0 | BY13: 0 | CD13: 0 | CE13: 0 | CF13: 0 | CK13: 1 | CL13: 0 | CM13: 1 | CR13: 0 | CS13: 0 | CT13: 0 | CY13: 0 | CZ13: 0 | DA13: 0 | DF13: 0 | DG13: 0 | DH13: 0 | DM13: 0 | DN13: 0 | DO13: 0 | DT13: 0 | DU13: 0 | DV13: 0 | EA13: 0 | EB13: 0 | EC13: 0 | EH13: 0 | EI13: 1 | EJ13: 1 | EO13: 0 | EP13: 0 | EQ13: 0 | EV13: 0 | EW13: 0 | EX13: 0 | FC13: 0 | FD13: 0 | FE13: 0 | FJ13: 0 | FK13: 0 | FL13: 0 | FQ13: 0 | FR13: 0 | FS13: 0 | FX13: 0 | FY13: 1 | FZ13: 1 | GE13: 0 | GF13: 0 | GG13: 0 | GL13: 0 | GM13: 0 | GN13: 0 | GS13: 0 | GT13: 0 | GU13: 0 | GZ13: 0 | HA13: 0 | HB13: 0 | HG13: 0 | HH13: 0 | HI13: 0 | HN13: 0 | HO13: 0 | HP13: 0 | HU13: 0 | HV13: 1 | HW13: 1 | IB13: 0 | IC13: 0 | ID13: 0 | II13: 0 | IJ13: 0 | IK13: 0 | IP13: 0 | IQ13: 0 | IR13: 0 | IW13: 0 | IX13: 0 | IY13: 0 | JD13: 1 | JE13: 1 | JF13: 2 | JK13: 0 | JL13: 0 | JM13: 0 | JR13: 0 | JS13: 0 | JT13: 0 | JY13: 0 | JZ13: 0 | KA13: 0 | KF13: 1 | KG13: 1 | KH13: 2 | KM13: 0 | KN13: 0 | KO13: 0 | KT13: 1 | KU13: 1 | KV13: 2 | LA13: 1 | LB13: 1 | LC13: 2 | LH13: 0 | LI13: 0 | LJ13: 0 | LO13: 1 | LP13: 1 | LQ13: 2 | LV13: 0 | LW13: 0 | LX13: 0 | MC13: 1 | MD13: 1 | ME13: 2 | MJ13: 0 | MK13: 0 | ML13: 0 | MQ13: 1 | MR13: 0 | MS13: 1 | MX13: 1 | MY13: 0 | MZ13: 1 | NE13: 0 | NF13: 0 | NG13: 0 | NL13: 0 | NM13: 0 | NN13: 0 | NS13: 0 | NT13: 0 | NU13: 0 | NZ13: 1 | OA13: 0 | OB13: 1 | OG13: 1 | OH13: 0 | OI13: 1 | ON13: 0 | OO13: 0 | OP13: 0 | OU13: 1 | OV13: 1 | OW13: 2 | PB13: 1 | PC13: 0 | PD13: 1 | PI13: 1 | PJ13: 0 | PK13: 1 | PP13: 0 | PQ13: 0 | PR13: 0 | PW13: 1 | PX13: 0 | PY13: 1 | QD13: 0 | QE13: 0 | QF13: 0 | QK13: 0 | QL13: 0 | QM13: 0 | QR13: 1 | QS13: 1 | QT13: 2 | QY13: 1 | QZ13: 1 | RA13: 2 | RF13: 0 | RG13: 0 | RH13: 0 | RM13: 0 | RN13: 0 | RO13: 0 | RT13: 0 | RU13: 0 | RV13: 0 | SA13: 0 | SB13: 0 | SC13: 0 | SH13: 0 | SI13: 0 | SJ13: 0 | SO13: 0 | SP13: 0 | SQ13: 0 | SV13: 0 | SW13: 0 | SX13: 0 | TC13: 1 | TD13: 1 | TE13: 2 | TJ13: 0 | TK13: 0 | TL13: 0 | TQ13: 0 | TR13: 0 | TS13: 0 | TX13: 0 | TY13: 0 | TZ13: 0 | UE13: 0 | UF13: 0 | UG13: 0 | UL13: 0 | UM13: 0 | UN13: 0 | US13: 0 | UT13: 0 | UU13: 0 | UZ13: 1 | VA13: 1 | VB13: 2 | VG13: 1 | VH13: 1 | VI13: 2 | VN13: 0 | VO13: 0 | VP13: 0 | VU13: 0 | VV13: 0 | VW13: 0
B14: Race: Cauasian | E14: 0 | F14: 0 | G14: 0 | L14: 0 | M14: 0 | N14: 0 | S14: 0 | T14: 0 | U14: 0 | Z14: 0 | AA14: 0 | AB14: 0 | AG14: 0 | AH14: 1 | AI14: 1 | AN14: 0 | AO14: 0 | AP14: 0 | AU14: 0 | AV14: 1 | AW14: 1 | BB14: 0 | BC14: 0 | BD14: 0 | BI14: 0 | BJ14: 1 | BK14: 1 | BP14: 0 | BQ14: 1 | BR14: 1 | BW14: 0 | BX14: 0 | BY14: 0 | CD14: 0 | CE14: 0 | CF14: 0 | CK14: 0 | CL14: 1 | CM14: 1 | CR14: 0 | CS14: 0 | CT14: 0 | CY14: 0 | CZ14: 0 | DA14: 0 | DF14: 0 | DG14: 0 | DH14: 0 | DM14: 1 | DN14: 0 | DO14: 1 | DT14: 0 | DU14: 0 | DV14: 0 | EA14: 1 | EB14: 0 | EC14: 1 | EH14: 0 | EI14: 0 | EJ14: 0 | EO14: 0 | EP14: 0 | EQ14: 0 | EV14: 0 | EW14: 0 | EX14: 0 | FC14: 0 | FD14: 0 | FE14: 0 | FJ14: 0 | FK14: 0 | FL14: 0 | FQ14: 0 | FR14: 0 | FS14: 0 | FX14: 1 | FY14: 0 | FZ14: 1 | GE14: 0 | GF14: 0 | GG14: 0 | GL14: 0 | GM14: 0 | GN14: 0 | GS14: 0 | GT14: 0 | GU14: 0 | GZ14: 0 | HA14: 0 | HB14: 0 | HG14: 0 | HH14: 0 | HI14: 0 | HN14: 0 | HO14: 0 | HP14: 0 | HU14: 1 | HV14: 0 | HW14: 1 | IB14: 0 | IC14: 0 | ID14: 0 | II14: 0 | IJ14: 0 | IK14: 0 | IP14: 0 | IQ14: 0 | IR14: 0 | IW14: 1 | IX14: 0 | IY14: 1 | JD14: 0 | JE14: 0 | JF14: 0 | JK14: 0 | JL14: 0 | JM14: 0 | JR14: 0 | JS14: 0 | JT14: 0 | JY14: 0 | JZ14: 0 | KA14: 0 | KF14: 0 | KG14: 0 | KH14: 0 | KM14: 0 | KN14: 0 | KO14: 0 | KT14: 0 | KU14: 0 | KV14: 0 | LA14: 0 | LB14: 0 | LC14: 0 | LH14: 0 | LI14: 0 | LJ14: 0 | LO14: 0 | LP14: 0 | LQ14: 0 | LV14: 0 | LW14: 0 | LX14: 0 | MC14: 0 | MD14: 0 | ME14: 0 | MJ14: 0 | MK14: 0 | ML14: 0 | MQ14: 0 | MR14: 0 | MS14: 0 | MX14: 0 | MY14: 1 | MZ14: 1 | NE14: 0 | NF14: 0 | NG14: 0 | NL14: 0 | NM14: 0 | NN14: 0 | NS14: 0 | NT14: 0 | NU14: 0 | NZ14: 0 | OA14: 1 | OB14: 1 | OG14: 0 | OH14: 1 | OI14: 1 | ON14: 0 | OO14: 1 | OP14: 1 | OU14: 0 | OV14: 1 | OW14: 1 | PB14: 0 | PC14: 1 | PD14: 1 | PI14: 0 | PJ14: 1 | PK14: 1 | PP14: 1 | PQ14: 1 | PR14: 2 | PW14: 1 | PX14: 1 | PY14: 2 | QD14: 1 | QE14: 1 | QF14: 2 | QK14: 1 | QL14: 1 | QM14: 2 | QR14: 1 | QS14: 1 | QT14: 2 | QY14: 1 | QZ14: 1 | RA14: 2 | RF14: 0 | RG14: 0 | RH14: 0 | RM14: 0 | RN14: 0 | RO14: 0 | RT14: 0 | RU14: 0 | RV14: 0 | SA14: 1 | SB14: 1 | SC14: 2 | SH14: 0 | SI14: 0 | SJ14: 0 | SO14: 0 | SP14: 0 | SQ14: 0 | SV14: 0 | SW14: 0 | SX14: 0 | TC14: 1 | TD14: 0 | TE14: 1 | TJ14: 1 | TK14: 0 | TL14: 1 | TQ14: 0 | TR14: 0 | TS14: 0 | TX14: 1 | TY14: 0 | TZ14: 1 | UE14: 0 | UF14: 0 | UG14: 0 | UL14: 0 | UM14: 0 | UN14: 0 | US14: 0 | UT14: 0 | UU14: 0 | UZ14: 1 | VA14: 0 | VB14: 1 | VG14: 1 | VH14: 0 | VI14: 1 | VN14: 0 | VO14: 0 | VP14: 0 | VU14: 0 | VV14: 0 | VW14: 0
E15: 0 | F15: 0 | G15: 0 | L15: 0 | M15: 0 | N15: 0 | S15: 0 | T15: 0 | U15: 0 | Z15: 0 | AA15: 0 | AB15: 0 | AG15: 0 | AH15: 0 | AI15: 0 | AN15: 0 | AO15: 0 | AP15: 0 | AU15: 0 | AV15: 0 | AW15: 0 | BB15: 0 | BC15: 0 | BD15: 0 | BI15: 1 | BJ15: 1 | BK15: 2 | BP15: 0 | BQ15: 0 | BR15: 0 | BW15: 0 | BX15: 0 | BY15: 0 | CD15: 0 | CE15: 0 | CF15: 0 | CK15: 1 | CL15: 1 | CM15: 2 | CR15: 0 | CS15: 0 | CT15: 0 | CY15: 0 | CZ15: 0 | DA15: 0 | DF15: 0 | DG15: 0 | DH15: 0 | DM15: 0 | DN15: 0 | DO15: 0 | DT15: 0 | DU15: 0 | DV15: 0 | EA15: 1 | EB15: 1 | EC15: 2 | EH15: 0 | EI15: 0 | EJ15: 0 | EO15: 0 | EP15: 0 | EQ15: 0 | EV15: 0 | EW15: 0 | EX15: 0 | FC15: 0 | FD15: 0 | FE15: 0 | FJ15: 0 | FK15: 0 | FL15: 0 | FQ15: 0 | FR15: 0 | FS15: 0 | FX15: 0 | FY15: 0 | FZ15: 0 | GE15: 0 | GF15: 0 | GG15: 0 | GL15: 0 | GM15: 0 | GN15: 0 | GS15: 0 | GT15: 0 | GU15: 0 | GZ15: 0 | HA15: 0 | HB15: 0 | HG15: 0 | HH15: 0 | HI15: 0 | HN15: 0 | HO15: 0 | HP15: 0 | HU15: 1 | HV15: 1 | HW15: 2 | IB15: 0 | IC15: 0 | ID15: 0 | II15: 0 | IJ15: 0 | IK15: 0 | IP15: 0 | IQ15: 0 | IR15: 0 | IW15: 0 | IX15: 0 | IY15: 0 | JD15: 0 | JE15: 0 | JF15: 0 | JK15: 0 | JL15: 0 | JM15: 0 | JR15: 0 | JS15: 0 | JT15: 0 | JY15: 0 | JZ15: 0 | KA15: 0 | KF15: 1 | KG15: 0 | KH15: 1 | KM15: 0 | KN15: 0 | KO15: 0 | KT15: 1 | KU15: 1 | KV15: 2 | LA15: 0 | LB15: 0 | LC15: 0 | LH15: 0 | LI15: 0 | LJ15: 0 | LO15: 0 | LP15: 0 | LQ15: 0 | LV15: 0 | LW15: 0 | LX15: 0 | MC15: 1 | MD15: 1 | ME15: 2 | MJ15: 0 | MK15: 0 | ML15: 0 | MQ15: 0 | MR15: 0 | MS15: 0 | MX15: 0 | MY15: 0 | MZ15: 0 | NE15: 0 | NF15: 0 | NG15: 0 | NL15: 0 | NM15: 0 | NN15: 0 | NS15: 0 | NT15: 0 | NU15: 0 | NZ15: 0 | OA15: 0 | OB15: 0 | OG15: 1 | OH15: 1 | OI15: 2 | ON15: 1 | OO15: 1 | OP15: 2 | OU15: 1 | OV15: 1 | OW15: 2 | PB15: 1 | PC15: 1 | PD15: 2 | PI15: 1 | PJ15: 1 | PK15: 2 | PP15: 1 | PQ15: 1 | PR15: 2 | PW15: 1 | PX15: 1 | PY15: 2 | QD15: 0 | QE15: 0 | QF15: 0 | QK15: 0 | QL15: 0 | QM15: 0 | QR15: 1 | QS15: 1 | QT15: 2 | QY15: 1 | QZ15: 1 | RA15: 2 | RF15: 0 | RG15: 0 | RH15: 0 | RM15: 0 | RN15: 0 | RO15: 0 | RT15: 0 | RU15: 0 | RV15: 0 | SA15: 0 | SB15: 0 | SC15: 0 | SH15: 0 | SI15: 0 | SJ15: 0 | SO15: 0 | SP15: 0 | SQ15: 0 | SV15: 0 | SW15: 0 | SX15: 0 | TC15: 0 | TD15: 0 | TE15: 0 | TJ15: 0 | TK15: 0 | TL15: 0 | TQ15: 0 | TR15: 0 | TS15: 0 | TX15: 1 | TY15: 1 | TZ15: 2 | UE15: 0 | UF15: 0 | UG15: 0 | UL15: 0 | UM15: 0 | UN15: 0 | US15: 0 | UT15: 0 | UU15: 0 | UZ15: 1 | VA15: 1 | VB15: 2 | VG15: 1 | VH15: 1 | VI15: 2 | VN15: 0 | VO15: 0 | VP15: 0 | VU15: 0 | VV15: 0 | VW15: 0
B16: Ethnicity: Hispanic/Latinx * | E16: 0 | F16: 0 | G16: 0 | L16: 0 | M16: 0 | N16: 0 | S16: 0 | T16: 0 | U16: 0 | Z16: 0 | AA16: 0 | AB16: 0 | AG16: 0 | AH16: 0 | AI16: 0 | AN16: 0 | AO16: 0 | AP16: 0 | AU16: 0 | AV16: 0 | AW16: 0 | BB16: 0 | BC16: 0 | BD16: 0 | BI16: 0 | BJ16: 0 | BK16: 0 | BP16: 0 | BQ16: 0 | BR16: 0 | BW16: 0 | BX16: 0 | BY16: 0 | CD16: 0 | CE16: 0 | CF16: 0 | CK16: 0 | CL16: 0 | CM16: 0 | CR16: 0 | CS16: 0 | CT16: 0 | CY16: 0 | CZ16: 0 | DA16: 0 | DF16: 0 | DG16: 0 | DH16: 0 | DM16: 0 | DN16: 0 | DO16: 0 | DT16: 0 | DU16: 0 | DV16: 0 | EA16: 0 | EB16: 0 | EC16: 0 | EH16: 1 | EI16: 1 | EJ16: 2 | EO16: 0 | EP16: 0 | EQ16: 0 | EV16: 0 | EW16: 1 | EX16: 1 | FC16: 0 | FD16: 0 | FE16: 0 | FJ16: 0 | FK16: 0 | FL16: 0 | FQ16: 0 | FR16: 0 | FS16: 0 | FX16: 0 | FY16: 0 | FZ16: 0 | GE16: 0 | GF16: 0 | GG16: 0 | GL16: 0 | GM16: 0 | GN16: 0 | GS16: 0 | GT16: 0 | GU16: 0 | GZ16: 0 | HA16: 0 | HB16: 0 | HG16: 0 | HH16: 0 | HI16: 0 | HN16: 0 | HO16: 0 | HP16: 0 | HU16: 0 | HV16: 0 | HW16: 0 | IB16: 0 | IC16: 0 | ID16: 0 | II16: 0 | IJ16: 0 | IK16: 0 | IP16: 0 | IQ16: 0 | IR16: 0 | IW16: 0 | IX16: 0 | IY16: 0 | JD16: 0 | JE16: 0 | JF16: 0 | JK16: 1 | JL16: 1 | JM16: 2 | JR16: 0 | JS16: 1 | JT16: 1 | JY16: 0 | JZ16: 1 | KA16: 1 | KF16: 1 | KG16: 0 | KH16: 1 | KM16: 0 | KN16: 0 | KO16: 0 | KT16: 0 | KU16: 0 | KV16: 0 | LA16: 0 | LB16: 0 | LC16: 0 | LH16: 0 | LI16: 0 | LJ16: 0 | LO16: 0 | LP16: 0 | LQ16: 0 | LV16: 0 | LW16: 0 | LX16: 0 | MC16: 1 | MD16: 0 | ME16: 1 | MJ16: 0 | MK16: 0 | ML16: 0 | MQ16: 1 | MR16: 0 | MS16: 1 | MX16: 0 | MY16: 0 | MZ16: 0 | NE16: 0 | NF16: 0 | NG16: 0 | NL16: 0 | NM16: 0 | NN16: 0 | NS16: 0 | NT16: 0 | NU16: 0 | NZ16: 1 | OA16: 0 | OB16: 1 | OG16: 0 | OH16: 0 | OI16: 0 | ON16: 0 | OO16: 0 | OP16: 0 | OU16: 0 | OV16: 0 | OW16: 0 | PB16: 0 | PC16: 0 | PD16: 0 | PI16: 0 | PJ16: 0 | PK16: 0 | PP16: 0 | PQ16: 0 | PR16: 0 | PW16: 1 | PX16: 0 | PY16: 1 | QD16: 0 | QE16: 0 | QF16: 0 | QK16: 0 | QL16: 0 | QM16: 0 | QR16: 1 | QS16: 0 | QT16: 1 | QY16: 1 | QZ16: 0 | RA16: 1 | RF16: 0 | RG16: 0 | RH16: 0 | RM16: 0 | RN16: 0 | RO16: 0 | RT16: 0 | RU16: 0 | RV16: 0 | SA16: 0 | SB16: 0 | SC16: 0 | SH16: 0 | SI16: 0 | SJ16: 0 | SO16: 0 | SP16: 0 | SQ16: 0 | SV16: 0 | SW16: 0 | SX16: 0 | TC16: 0 | TD16: 0 | TE16: 0 | TJ16: 1 | TK16: 0 | TL16: 1 | TQ16: 0 | TR16: 0 | TS16: 0 | TX16: 1 | TY16: 1 | TZ16: 2 | UE16: 0 | UF16: 0 | UG16: 0 | UL16: 0 | UM16: 0 | UN16: 0 | US16: 0 | UT16: 0 | UU16: 0 | UZ16: 1 | VA16: 0 | VB16: 1 | VG16: 1 | VH16: 1 | VI16: 2 | VN16: 0 | VO16: 0 | VP16: 0 | VU16: 0 | VV16: 0 | VW16: 0
A17: Descriptive Reporting | B17: Ethinicity: Additional Classification** | E17: 0 | F17: 0 | G17: 0 | L17: 0 | M17: 0 | N17: 0 | S17: 0 | T17: 0 | U17: 0 | Z17: 0 | AA17: 0 | AB17: 0 | AG17: 1 | AH17: 1 | AI17: 2 | AN17: 0 | AO17: 0 | AP17: 0 | AU17: 1 | AV17: 1 | AW17: 2 | BB17: 0 | BC17: 0 | BD17: 0 | BI17: 1 | BJ17: 1 | BK17: 2 | BP17: 1 | BQ17: 1 | BR17: 2 | BW17: 0 | BX17: 0 | BY17: 0 | CD17: 0 | CE17: 0 | CF17: 0 | CK17: 1 | CL17: 1 | CM17: 2 | CR17: 0 | CS17: 0 | CT17: 0 | CY17: 0 | CZ17: 0 | DA17: 0 | DF17: 0 | DG17: 0 | DH17: 0 | DM17: 1 | DN17: 1 | DO17: 2 | DT17: 0 | DU17: 0 | DV17: 0 | EA17: 1 | EB17: 1 | EC17: 2 | EH17: 0 | EI17: 0 | EJ17: 0 | EO17: 0 | EP17: 0 | EQ17: 0 | EV17: 0 | EW17: 0 | EX17: 0 | FC17: 0 | FD17: 0 | FE17: 0 | FJ17: 0 | FK17: 0 | FL17: 0 | FQ17: 0 | FR17: 0 | FS17: 0 | FX17: 1 | FY17: 0 | FZ17: 1 | GE17: 0 | GF17: 0 | GG17: 0 | GL17: 0 | GM17: 0 | GN17: 0 | GS17: 0 | GT17: 0 | GU17: 0 | GZ17: 0 | HA17: 0 | HB17: 0 | HG17: 0 | HH17: 0 | HI17: 0 | HN17: 0 | HO17: 0 | HP17: 0 | HU17: 0 | HV17: 1 | HW17: 1 | IB17: 0 | IC17: 0 | ID17: 0 | II17: 0 | IJ17: 0 | IK17: 0 | IP17: 0 | IQ17: 0 | IR17: 0 | IW17: 0 | IX17: 0 | IY17: 0 | JD17: 0 | JE17: 0 | JF17: 0 | JK17: 0 | JL17: 0 | JM17: 0 | JR17: 0 | JS17: 0 | JT17: 0 | JY17: 0 | JZ17: 0 | KA17: 0 | KF17: 1 | KG17: 1 | KH17: 2 | KM17: 0 | KN17: 0 | KO17: 0 | KT17: 1 | KU17: 1 | KV17: 2 | LA17: 1 | LB17: 1 | LC17: 2 | LH17: 0 | LI17: 0 | LJ17: 0 | LO17: 1 | LP17: 1 | LQ17: 2 | LV17: 0 | LW17: 0 | LX17: 0 | MC17: 1 | MD17: 1 | ME17: 2 | MJ17: 0 | MK17: 0 | ML17: 0 | MQ17: 1 | MR17: 0 | MS17: 1 | MX17: 1 | MY17: 0 | MZ17: 1 | NE17: 0 | NF17: 0 | NG17: 0 | NL17: 0 | NM17: 0 | NN17: 0 | NS17: 0 | NT17: 0 | NU17: 0 | NZ17: 1 | OA17: 0 | OB17: 1 | OG17: 1 | OH17: 0 | OI17: 1 | ON17: 1 | OO17: 0 | OP17: 1 | OU17: 1 | OV17: 0 | OW17: 1 | PB17: 1 | PC17: 0 | PD17: 1 | PI17: 1 | PJ17: 0 | PK17: 1 | PP17: 1 | PQ17: 0 | PR17: 1 | PW17: 1 | PX17: 0 | PY17: 1 | QD17: 0 | QE17: 0 | QF17: 0 | QK17: 0 | QL17: 0 | QM17: 0 | QR17: 1 | QS17: 0 | QT17: 1 | QY17: 1 | QZ17: 0 | RA17: 1 | RF17: 0 | RG17: 0 | RH17: 0 | RM17: 0 | RN17: 0 | RO17: 0 | RT17: 0 | RU17: 0 | RV17: 0 | SA17: 1 | SB17: 0 | SC17: 1 | SH17: 0 | SI17: 0 | SJ17: 0 | SO17: 0 | SP17: 0 | SQ17: 0 | SV17: 0 | SW17: 0 | SX17: 0 | TC17: 1 | TD17: 1 | TE17: 2 | TJ17: 1 | TK17: 1 | TL17: 2 | TQ17: 0 | TR17: 0 | TS17: 0 | TX17: 0 | TY17: 1 | TZ17: 1 | UE17: 0 | UF17: 0 | UG17: 0 | UL17: 1 | UM17: 0 | UN17: 1 | US17: 0 | UT17: 0 | UU17: 0 | UZ17: 1 | VA17: 1 | VB17: 2 | VG17: 1 | VH17: 1 | VI17: 2 | VN17: 0 | VO17: 0 | VP17: 0 | VU17: 0 | VV17: 0 | VW17: 0
B18: By race | E18: 0 | F18: 0 | G18: 0 | L18: 0 | M18: 0 | N18: 0 | S18: 0 | T18: 0 | U18: 0 | Z18: 0 | AA18: 0 | AB18: 0 | AG18: 0 | AH18: 0 | AI18: 0 | AN18: 0 | AO18: 0 | AP18: 0 | AU18: 0 | AV18: 0 | AW18: 0 | BB18: 0 | BC18: 0 | BD18: 0 | BI18: 0 | BJ18: 0 | BK18: 0 | BP18: 0 | BQ18: 0 | BR18: 0 | BW18: 0 | BX18: 0 | BY18: 0 | CD18: 0 | CE18: 0 | CF18: 0 | CK18: 0 | CL18: 0 | CM18: 0 | CR18: 0 | CS18: 0 | CT18: 0 | CY18: 0 | CZ18: 0 | DA18: 0 | DF18: 0 | DG18: 0 | DH18: 0 | DM18: 0 | DN18: 0 | DO18: 0 | DT18: 0 | DU18: 0 | DV18: 0 | EA18: 1 | EB18: 0 | EC18: 1 | EH18: 1 | EI18: 1 | EJ18: 2 | EO18: 0 | EP18: 0 | EQ18: 0 | EV18: 0 | EW18: 1 | EX18: 1 | FC18: 0 | FD18: 0 | FE18: 0 | FJ18: 0 | FK18: 0 | FL18: 0 | FQ18: 0 | FR18: 0 | FS18: 0 | FX18: 0 | FY18: 0 | FZ18: 0 | GE18: 0 | GF18: 0 | GG18: 0 | GL18: 0 | GM18: 0 | GN18: 0 | GS18: 0 | GT18: 0 | GU18: 0 | GZ18: 0 | HA18: 0 | HB18: 0 | HG18: 0 | HH18: 0 | HI18: 0 | HN18: 0 | HO18: 0 | HP18: 0 | HU18: 0 | HV18: 0 | HW18: 0 | IB18: 0 | IC18: 0 | ID18: 0 | II18: 0 | IJ18: 0 | IK18: 0 | IP18: 0 | IQ18: 0 | IR18: 0 | IW18: 0 | IX18: 0 | IY18: 0 | JD18: 0 | JE18: 0 | JF18: 0 | JK18: 1 | JL18: 0 | JM18: 1 | JR18: 0 | JS18: 0 | JT18: 0 | JY18: 0 | JZ18: 0 | KA18: 0 | KF18: 1 | KG18: 1 | KH18: 2 | KM18: 0 | KN18: 0 | KO18: 0 | KT18: 1 | KU18: 1 | KV18: 2 | LA18: 0 | LB18: 0 | LC18: 0 | LH18: 0 | LI18: 0 | LJ18: 0 | LO18: 0 | LP18: 0 | LQ18: 0 | LV18: 0 | LW18: 0 | LX18: 0 | MC18: 1 | MD18: 1 | ME18: 2 | MJ18: 0 | MK18: 0 | ML18: 0 | MQ18: 1 | MR18: 0 | MS18: 1 | MX18: 0 | MY18: 0 | MZ18: 0 | NE18: 0 | NF18: 0 | NG18: 0 | NL18: 0 | NM18: 0 | NN18: 0 | NS18: 0 | NT18: 0 | NU18: 0 | NZ18: 0 | OA18: 0 | OB18: 0 | OG18: 1 | OH18: 0 | OI18: 1 | ON18: 1 | OO18: 0 | OP18: 1 | OU18: 1 | OV18: 0 | OW18: 1 | PB18: 1 | PC18: 0 | PD18: 1 | PI18: 1 | PJ18: 0 | PK18: 1 | PP18: 1 | PQ18: 0 | PR18: 1 | PW18: 1 | PX18: 0 | PY18: 1 | QD18: 0 | QE18: 0 | QF18: 0 | QK18: 0 | QL18: 0 | QM18: 0 | QR18: 1 | QS18: 0 | QT18: 1 | QY18: 1 | QZ18: 0 | RA18: 1 | RF18: 0 | RG18: 0 | RH18: 0 | RM18: 0 | RN18: 0 | RO18: 0 | RT18: 0 | RU18: 0 | RV18: 0 | SA18: 0 | SB18: 0 | SC18: 0 | SH18: 0 | SI18: 0 | SJ18: 0 | SO18: 0 | SP18: 0 | SQ18: 0 | SV18: 0 | SW18: 0 | SX18: 0 | TC18: 0 | TD18: 0 | TE18: 0 | TJ18: 1 | TK18: 0 | TL18: 1 | TQ18: 0 | TR18: 0 | TS18: 0 | TX18: 0 | TY18: 1 | TZ18: 1 | UE18: 0 | UF18: 0 | UG18: 0 | UL18: 0 | UM18: 0 | UN18: 0 | US18: 0 | UT18: 0 | UU18: 0 | UZ18: 0 | VA18: 1 | VB18: 1 | VG18: 0 | VH18: 1 | VI18: 1 | VN18: 0 | VO18: 0 | VP18: 0 | VU18: 0 | VV18: 0 | VW18: 0
A19: Outcome Reporting | B19: By ethnicity | E19: 0 | F19: 0 | G19: 0 | L19: 0 | M19: 0 | N19: 0 | S19: 0 | T19: 0 | U19: 0 | Z19: 0 | AA19: 0 | AB19: 0 | AG19: 0 | AH19: 1 | AI19: 1 | AN19: 0 | AO19: 0 | AP19: 0 | AU19: 0 | AV19: 1 | AW19: 1 | BB19: 0 | BC19: 0 | BD19: 0 | BI19: 1 | BJ19: 1 | BK19: 2 | BP19: 0 | BQ19: 1 | BR19: 1 | BW19: 0 | BX19: 0 | BY19: 0 | CD19: 0 | CE19: 0 | CF19: 0 | CK19: 0 | CL19: 1 | CM19: 1 | CR19: 0 | CS19: 0 | CT19: 0 | CY19: 0 | CZ19: 0 | DA19: 0 | DF19: 0 | DG19: 0 | DH19: 0 | DM19: 1 | DN19: 1 | DO19: 2 | DT19: 0 | DU19: 0 | DV19: 0 | EA19: 1 | EB19: 1 | EC19: 2 | EH19: 0 | EI19: 0 | EJ19: 0 | EO19: 0 | EP19: 0 | EQ19: 0 | EV19: 0 | EW19: 1 | EX19: 1 | FC19: 0 | FD19: 0 | FE19: 0 | FJ19: 0 | FK19: 0 | FL19: 0 | FQ19: 0 | FR19: 0 | FS19: 0 | FX19: 1 | FY19: 0 | FZ19: 1 | GE19: 0 | GF19: 0 | GG19: 0 | GL19: 0 | GM19: 0 | GN19: 0 | GS19: 0 | GT19: 0 | GU19: 0 | GZ19: 0 | HA19: 0 | HB19: 0 | HG19: 0 | HH19: 0 | HI19: 0 | HN19: 0 | HO19: 0 | HP19: 0 | HU19: 1 | HV19: 0 | HW19: 1 | IB19: 0 | IC19: 0 | ID19: 0 | II19: 0 | IJ19: 0 | IK19: 0 | IP19: 0 | IQ19: 0 | IR19: 0 | IW19: 0 | IX19: 0 | IY19: 0 | JD19: 0 | JE19: 0 | JF19: 0 | JK19: 0 | JL19: 0 | JM19: 0 | JR19: 0 | JS19: 0 | JT19: 0 | JY19: 0 | JZ19: 0 | KA19: 0 | KF19: 0 | KG19: 0 | KH19: 0 | KM19: 0 | KN19: 0 | KO19: 0 | KT19: 0 | KU19: 0 | KV19: 0 | LA19: 0 | LB19: 0 | LC19: 0 | LH19: 0 | LI19: 0 | LJ19: 0 | LO19: 0 | LP19: 0 | LQ19: 0 | LV19: 0 | LW19: 0 | LX19: 0 | MC19: 1 | MD19: 0 | ME19: 1 | MJ19: 0 | MK19: 0 | ML19: 0 | MQ19: 1 | MR19: 0 | MS19: 1 | MX19: 0 | MY19: 0 | MZ19: 0 | NE19: 0 | NF19: 0 | NG19: 0 | NL19: 0 | NM19: 0 | NN19: 0 | NS19: 0 | NT19: 0 | NU19: 0 | NZ19: 1 | OA19: 0 | OB19: 1 | OG19: 0 | OH19: 0 | OI19: 0 | ON19: 0 | OO19: 0 | OP19: 0 | OU19: 0 | OV19: 0 | OW19: 0 | PB19: 0 | PC19: 0 | PD19: 0 | PI19: 0 | PJ19: 0 | PK19: 0 | PP19: 1 | PQ19: 0 | PR19: 1 | PW19: 1 | PX19: 0 | PY19: 1 | QD19: 1 | QE19: 0 | QF19: 1 | QK19: 1 | QL19: 1 | QM19: 2 | QR19: 1 | QS19: 0 | QT19: 1 | QY19: 1 | QZ19: 0 | RA19: 1 | RF19: 0 | RG19: 0 | RH19: 0 | RM19: 0 | RN19: 0 | RO19: 0 | RT19: 0 | RU19: 0 | RV19: 0 | SA19: 1 | SB19: 0 | SC19: 1 | SH19: 0 | SI19: 0 | SJ19: 0 | SO19: 0 | SP19: 0 | SQ19: 0 | SV19: 0 | SW19: 0 | SX19: 0 | TC19: 1 | TD19: 1 | TE19: 2 | TJ19: 1 | TK19: 0 | TL19: 1 | TQ19: 0 | TR19: 0 | TS19: 0 | TX19: 1 | TY19: 0 | TZ19: 1 | UE19: 0 | UF19: 0 | UG19: 0 | UL19: 0 | UM19: 0 | UN19: 0 | US19: 0 | UT19: 0 | UU19: 0 | UZ19: 1 | VA19: 0 | VB19: 1 | VG19: 1 | VH19: 0 | VI19: 1 | VN19: 0 | VO19: 0 | VP19: 0 | VU19: 0 | VV19: 0 | VW19: 0
B20: Univariate Outcome by Race | E20: 0 | F20: 0 | G20: 0 | L20: 0 | M20: 0 | N20: 0 | S20: 0 | T20: 0 | U20: 0 | Z20: 0 | AA20: 0 | AB20: 0 | AG20: 0 | AH20: 0 | AI20: 0 | AN20: 0 | AO20: 0 | AP20: 0 | AU20: 0 | AV20: 0 | AW20: 0 | BB20: 0 | BC20: 0 | BD20: 0 | BI20: 0 | BJ20: 1 | BK20: 1 | BP20: 0 | BQ20: 0 | BR20: 0 | BW20: 0 | BX20: 0 | BY20: 0 | CD20: 0 | CE20: 0 | CF20: 0 | CK20: 1 | CL20: 1 | CM20: 2 | CR20: 0 | CS20: 0 | CT20: 0 | CY20: 0 | CZ20: 0 | DA20: 0 | DF20: 0 | DG20: 0 | DH20: 0 | DM20: 0 | DN20: 0 | DO20: 0 | DT20: 0 | DU20: 0 | DV20: 0 | EA20: 1 | EB20: 1 | EC20: 2 | EH20: 0 | EI20: 0 | EJ20: 0 | EO20: 0 | EP20: 0 | EQ20: 0 | EV20: 0 | EW20: 0 | EX20: 0 | FC20: 0 | FD20: 0 | FE20: 0 | FJ20: 0 | FK20: 0 | FL20: 0 | FQ20: 0 | FR20: 0 | FS20: 0 | FX20: 1 | FY20: 0 | FZ20: 1 | GE20: 0 | GF20: 0 | GG20: 0 | GL20: 0 | GM20: 0 | GN20: 0 | GS20: 0 | GT20: 0 | GU20: 0 | GZ20: 0 | HA20: 0 | HB20: 0 | HG20: 0 | HH20: 0 | HI20: 0 | HN20: 0 | HO20: 0 | HP20: 0 | HU20: 1 | HV20: 0 | HW20: 1 | IB20: 0 | IC20: 0 | ID20: 0 | II20: 0 | IJ20: 0 | IK20: 0 | IP20: 0 | IQ20: 0 | IR20: 0 | IW20: 0 | IX20: 0 | IY20: 0 | JD20: 0 | JE20: 1 | JF20: 1 | JK20: 0 | JL20: 0 | JM20: 0 | JR20: 0 | JS20: 0 | JT20: 0 | JY20: 0 | JZ20: 0 | KA20: 0 | KF20: 0 | KG20: 0 | KH20: 0 | KM20: 0 | KN20: 0 | KO20: 0 | KT20: 0 | KU20: 0 | KV20: 0 | LA20: 0 | LB20: 1 | LC20: 1 | LH20: 0 | LI20: 0 | LJ20: 0 | LO20: 0 | LP20: 0 | LQ20: 0 | LV20: 0 | LW20: 0 | LX20: 0 | MC20: 1 | MD20: 1 | ME20: 2 | MJ20: 0 | MK20: 0 | ML20: 0 | MQ20: 1 | MR20: 0 | MS20: 1 | MX20: 0 | MY20: 0 | MZ20: 0 | NE20: 0 | NF20: 0 | NG20: 0 | NL20: 0 | NM20: 0 | NN20: 0 | NS20: 0 | NT20: 0 | NU20: 0 | NZ20: 0 | OA20: 0 | OB20: 0 | OG20: 0 | OH20: 0 | OI20: 0 | ON20: 0 | OO20: 0 | OP20: 0 | OU20: 0 | OV20: 0 | OW20: 0 | PB20: 0 | PC20: 0 | PD20: 0 | PI20: 0 | PJ20: 0 | PK20: 0 | PP20: 0 | PQ20: 0 | PR20: 0 | PW20: 0 | PX20: 1 | PY20: 1 | QD20: 0 | QE20: 0 | QF20: 0 | QK20: 0 | QL20: 1 | QM20: 1 | QR20: 0 | QS20: 0 | QT20: 0 | QY20: 0 | QZ20: 0 | RA20: 0 | RF20: 0 | RG20: 0 | RH20: 0 | RM20: 0 | RN20: 0 | RO20: 0 | RT20: 0 | RU20: 0 | RV20: 0 | SA20: 0 | SB20: 0 | SC20: 0 | SH20: 0 | SI20: 0 | SJ20: 0 | SO20: 0 | SP20: 0 | SQ20: 0 | SV20: 0 | SW20: 0 | SX20: 0 | TC20: 1 | TD20: 0 | TE20: 1 | TJ20: 0 | TK20: 0 | TL20: 0 | TQ20: 0 | TR20: 0 | TS20: 0 | TX20: 0 | TY20: 0 | TZ20: 0 | UE20: 0 | UF20: 0 | UG20: 0 | UL20: 1 | UM20: 0 | UN20: 1 | US20: 0 | UT20: 0 | UU20: 0 | UZ20: 0 | VA20: 0 | VB20: 0 | VG20: 1 | VH20: 0 | VI20: 1 | VN20: 0 | VO20: 0 | VP20: 0 | VU20: 0 | VV20: 0 | VW20: 0
B21: Multivariate Outcome by Race | E21: 0 | F21: 0 | G21: 0 | L21: 0 | M21: 0 | N21: 0 | S21: 0 | T21: 0 | U21: 0 | Z21: 0 | AA21: 0 | AB21: 0 | AG21: 0 | AH21: 0 | AI21: 0 | AN21: 0 | AO21: 0 | AP21: 0 | AU21: 0 | AV21: 0 | AW21: 0 | BB21: 0 | BC21: 0 | BD21: 0 | BI21: 0 | BJ21: 0 | BK21: 0 | BP21: 0 | BQ21: 0 | BR21: 0 | BW21: 0 | BX21: 0 | BY21: 0 | CD21: 0 | CE21: 0 | CF21: 0 | CK21: 0 | CL21: 0 | CM21: 0 | CR21: 0 | CS21: 0 | CT21: 0 | CY21: 0 | CZ21: 0 | DA21: 0 | DF21: 0 | DG21: 0 | DH21: 0 | DM21: 0 | DN21: 0 | DO21: 0 | DT21: 0 | DU21: 0 | DV21: 0 | EA21: 1 | EB21: 0 | EC21: 1 | EH21: 1 | EI21: 1 | EJ21: 2 | EO21: 0 | EP21: 0 | EQ21: 0 | EV21: 0 | EW21: 1 | EX21: 1 | FC21: 0 | FD21: 0 | FE21: 0 | FJ21: 0 | FK21: 0 | FL21: 0 | FQ21: 0 | FR21: 0 | FS21: 0 | FX21: 0 | FY21: 0 | FZ21: 0 | GE21: 0 | GF21: 0 | GG21: 0 | GL21: 0 | GM21: 0 | GN21: 0 | GS21: 0 | GT21: 0 | GU21: 0 | GZ21: 0 | HA21: 0 | HB21: 0 | HG21: 0 | HH21: 0 | HI21: 0 | HN21: 0 | HO21: 0 | HP21: 0 | HU21: 0 | HV21: 0 | HW21: 0 | IB21: 0 | IC21: 0 | ID21: 0 | II21: 0 | IJ21: 0 | IK21: 0 | IP21: 0 | IQ21: 0 | IR21: 0 | IW21: 0 | IX21: 0 | IY21: 0 | JD21: 0 | JE21: 0 | JF21: 0 | JK21: 1 | JL21: 0 | JM21: 1 | JR21: 0 | JS21: 0 | JT21: 0 | JY21: 0 | JZ21: 0 | KA21: 0 | KF21: 0 | KG21: 0 | KH21: 0 | KM21: 0 | KN21: 0 | KO21: 0 | KT21: 0 | KU21: 0 | KV21: 0 | LA21: 0 | LB21: 0 | LC21: 0 | LH21: 0 | LI21: 0 | LJ21: 0 | LO21: 0 | LP21: 0 | LQ21: 0 | LV21: 0 | LW21: 0 | LX21: 0 | MC21: 0 | MD21: 0 | ME21: 0 | MJ21: 0 | MK21: 0 | ML21: 0 | MQ21: 1 | MR21: 1 | MS21: 2 | MX21: 0 | MY21: 0 | MZ21: 0 | NE21: 0 | NF21: 0 | NG21: 0 | NL21: 0 | NM21: 0 | NN21: 0 | NS21: 0 | NT21: 0 | NU21: 0 | NZ21: 0 | OA21: 0 | OB21: 0 | OG21: 0 | OH21: 0 | OI21: 0 | ON21: 0 | OO21: 0 | OP21: 0 | OU21: 0 | OV21: 0 | OW21: 0 | PB21: 0 | PC21: 0 | PD21: 0 | PI21: 0 | PJ21: 0 | PK21: 0 | PP21: 1 | PQ21: 0 | PR21: 1 | PW21: 1 | PX21: 0 | PY21: 1 | QD21: 0 | QE21: 0 | QF21: 0 | QK21: 0 | QL21: 0 | QM21: 0 | QR21: 1 | QS21: 0 | QT21: 1 | QY21: 1 | QZ21: 0 | RA21: 1 | RF21: 0 | RG21: 0 | RH21: 0 | RM21: 0 | RN21: 0 | RO21: 0 | RT21: 0 | RU21: 0 | RV21: 0 | SA21: 0 | SB21: 0 | SC21: 0 | SH21: 0 | SI21: 0 | SJ21: 0 | SO21: 0 | SP21: 0 | SQ21: 0 | SV21: 0 | SW21: 0 | SX21: 0 | TC21: 0 | TD21: 0 | TE21: 0 | TJ21: 1 | TK21: 0 | TL21: 1 | TQ21: 0 | TR21: 0 | TS21: 0 | TX21: 1 | TY21: 0 | TZ21: 1 | UE21: 0 | UF21: 0 | UG21: 0 | UL21: 0 | UM21: 0 | UN21: 0 | US21: 0 | UT21: 0 | UU21: 0 | UZ21: 1 | VA21: 0 | VB21: 1 | VG21: 1 | VH21: 0 | VI21: 1 | VN21: 0 | VO21: 0 | VP21: 0 | VU21: 0 | VV21: 0 | VW21: 0
B22: Univariate Outcome by Ethnicity | E22: 0 | F22: 0 | G22: 0 | L22: 0 | M22: 0 | N22: 0 | S22: 0 | T22: 0 | U22: 0 | Z22: 0 | AA22: 0 | AB22: 0 | AG22: 0 | AH22: 0 | AI22: 0 | AN22: 0 | AO22: 0 | AP22: 0 | AU22: 0 | AV22: 0 | AW22: 0 | BB22: 0 | BC22: 0 | BD22: 0 | BI22: 0 | BJ22: 0 | BK22: 0 | BP22: 0 | BQ22: 0 | BR22: 0 | BW22: 0 | BX22: 0 | BY22: 0 | CD22: 0 | CE22: 0 | CF22: 0 | CK22: 0 | CL22: 0 | CM22: 0 | CR22: 0 | CS22: 0 | CT22: 0 | CY22: 0 | CZ22: 0 | DA22: 0 | DF22: 0 | DG22: 0 | DH22: 0 | DM22: 0 | DN22: 0 | DO22: 0 | DT22: 0 | DU22: 0 | DV22: 0 | EA22: 1 | EB22: 0 | EC22: 1 | EH22: 1 | EI22: 1 | EJ22: 2 | EO22: 0 | EP22: 0 | EQ22: 0 | EV22: 0 | EW22: 0 | EX22: 0 | FC22: 0 | FD22: 0 | FE22: 0 | FJ22: 0 | FK22: 0 | FL22: 0 | FQ22: 0 | FR22: 0 | FS22: 0 | FX22: 0 | FY22: 0 | FZ22: 0 | GE22: 0 | GF22: 0 | GG22: 0 | GL22: 0 | GM22: 0 | GN22: 0 | GS22: 0 | GT22: 0 | GU22: 0 | GZ22: 0 | HA22: 0 | HB22: 0 | HG22: 0 | HH22: 0 | HI22: 0 | HN22: 0 | HO22: 0 | HP22: 0 | HU22: 0 | HV22: 0 | HW22: 0 | IB22: 0 | IC22: 0 | ID22: 0 | II22: 0 | IJ22: 0 | IK22: 0 | IP22: 0 | IQ22: 0 | IR22: 0 | IW22: 0 | IX22: 0 | IY22: 0 | JD22: 0 | JE22: 0 | JF22: 0 | JK22: 0 | JL22: 0 | JM22: 0 | JR22: 0 | JS22: 0 | JT22: 0 | JY22: 0 | JZ22: 0 | KA22: 0 | KF22: 0 | KG22: 0 | KH22: 0 | KM22: 0 | KN22: 0 | KO22: 0 | KT22: 0 | KU22: 0 | KV22: 0 | LA22: 0 | LB22: 0 | LC22: 0 | LH22: 0 | LI22: 0 | LJ22: 0 | LO22: 0 | LP22: 0 | LQ22: 0 | LV22: 0 | LW22: 0 | LX22: 0 | MC22: 0 | MD22: 1 | ME22: 1 | MJ22: 0 | MK22: 0 | ML22: 0 | MQ22: 1 | MR22: 1 | MS22: 2 | MX22: 0 | MY22: 0 | MZ22: 0 | NE22: 0 | NF22: 0 | NG22: 0 | NL22: 0 | NM22: 0 | NN22: 0 | NS22: 0 | NT22: 0 | NU22: 0 | NZ22: 0 | OA22: 0 | OB22: 0 | OG22: 0 | OH22: 0 | OI22: 0 | ON22: 0 | OO22: 0 | OP22: 0 | OU22: 0 | OV22: 0 | OW22: 0 | PB22: 0 | PC22: 0 | PD22: 0 | PI22: 0 | PJ22: 0 | PK22: 0 | PP22: 0 | PQ22: 0 | PR22: 0 | PW22: 0 | PX22: 1 | PY22: 1 | QD22: 0 | QE22: 0 | QF22: 0 | QK22: 0 | QL22: 0 | QM22: 0 | QR22: 0 | QS22: 0 | QT22: 0 | QY22: 1 | QZ22: 0 | RA22: 1 | RF22: 0 | RG22: 0 | RH22: 0 | RM22: 0 | RN22: 0 | RO22: 0 | RT22: 0 | RU22: 0 | RV22: 0 | SA22: 0 | SB22: 0 | SC22: 0 | SH22: 0 | SI22: 0 | SJ22: 0 | SO22: 0 | SP22: 0 | SQ22: 0 | SV22: 0 | SW22: 0 | SX22: 0 | TC22: 0 | TD22: 0 | TE22: 0 | TJ22: 0 | TK22: 0 | TL22: 0 | TQ22: 0 | TR22: 0 | TS22: 0 | TX22: 0 | TY22: 0 | TZ22: 0 | UE22: 0 | UF22: 0 | UG22: 0 | UL22: 0 | UM22: 0 | UN22: 0 | US22: 0 | UT22: 0 | UU22: 0 | UZ22: 0 | VA22: 0 | VB22: 0 | VG22: 0 | VH22: 0 | VI22: 0 | VN22: 0 | VO22: 0 | VP22: 0 | VU22: 0 | VV22: 0 | VW22: 0
B23: Multivariate Outcome by Ethnicity
E24: Reviewer 1 | L24: Reviewer 1 | S24: Reviewer 1 | Z24: Reviewer 1 | AG24: Reviewer 1 | AN24: Reviewer 1 | AU24: Reviewer 1 | BB24: Reviewer 1 | BI24: Reviewer 1 | BP24: Reviewer 1 | BW24: Reviewer 1 | CD24: Reviewer 1 | CK24: Reviewer 1 | CR24: Reviewer 1 | CY24: Reviewer 1 | DF24: Reviewer 1 | DM24: Reviewer 1 | DT24: Reviewer 1 | EA24: Reviewer 1 | EH24: Reviewer 1 | EO24: Reviewer 1 | EV24: Reviewer 1 | FC24: Reviewer 1 | FJ24: Reviewer 1 | FQ24: Reviewer 1 | FX24: Reviewer 1 | GE24: Reviewer 1 | GL24: Reviewer 1 | GS24: Reviewer 1 | GZ24: Reviewer 1 | HG24: Reviewer 1 | HN24: Reviewer 1 | HU24: Reviewer 1 | IB24: Reviewer 1 | II24: Reviewer 1 | IP24: Reviewer 1 | IW24: Reviewer 1 | JD24: Reviewer 1 | JK24: Reviewer 1 | JR24: Reviewer 1 | JY24: Reviewer 1 | KF24: Reviewer 1 | KM24: Reviewer 1 | KT24: Reviewer 1 | LA24: Reviewer 1 | LH24: Reviewer 1 | LO24: Reviewer 1 | LV24: Reviewer 1 | MC24: Reviewer 1 | MJ24: Reviewer 1 | MQ24: Reviewer 1 | MX24: Reviewer 1 | NE24: Reviewer 1 | NL24: Reviewer 1 | NS24: Reviewer 1 | NZ24: Reviewer 1 | OG24: Reviewer 1 | ON24: Reviewer 1 | OU24: Reviewer 1 | PB24: Reviewer 1 | PI24: Reviewer 1 | PP24: Reviewer 1 | PW24: Reviewer 1 | QD24: Reviewer 1 | QK24: Reviewer 1 | QR24: Reviewer 1 | QY24: Reviewer 1 | RF24: Reviewer 1 | RM24: Reviewer 1 | RT24: Reviewer 1 | SA24: Reviewer 1 | SH24: Reviewer 1 | SO24: Reviewer 1 | SV24: Reviewer 1 | TC24: Reviewer 1 | TJ24: Reviewer 1 | TQ24: Reviewer 1 | TX24: Reviewer 1 | UE24: Reviewer 1 | UL24: Reviewer 1 | US24: Reviewer 1 | UZ24: Reviewer 1 | VG24: Reviewer 1 | VN24: Reviewer 1 | VU24: Reviewer 1
E25: 0 | F25: 1 | L25: 0 | M25: 1 | S25: 0 | T25: 1 | Z25: 0 | AA25: 1 | AG25: 0 | AH25: 1 | AN25: 0 | AO25: 1 | AU25: 0 | AV25: 1 | BB25: 0 | BC25: 1 | BI25: 0 | BJ25: 1 | BP25: 0 | BQ25: 1 | BW25: 0 | BX25: 1 | CD25: 0 | CE25: 1 | CK25: 0 | CL25: 1 | CR25: 0 | CS25: 1 | CY25: 0 | CZ25: 1 | DF25: 0 | DG25: 1 | DM25: 0 | DN25: 1 | DT25: 0 | DU25: 1 | EA25: 0 | EB25: 1 | EH25: 0 | EI25: 1 | EO25: 0 | EP25: 1 | EV25: 0 | EW25: 1 | FC25: 0 | FD25: 1 | FJ25: 0 | FK25: 1 | FQ25: 0 | FR25: 1 | FX25: 0 | FY25: 1 | GE25: 0 | GF25: 1 | GL25: 0 | GM25: 1 | GS25: 0 | GT25: 1 | GZ25: 0 | HA25: 1 | HG25: 0 | HH25: 1 | HN25: 0 | HO25: 1 | HU25: 0 | HV25: 1 | IB25: 0 | IC25: 1 | II25: 0 | IJ25: 1 | IP25: 0 | IQ25: 1 | IW25: 0 | IX25: 1 | JD25: 0 | JE25: 1 | JK25: 0 | JL25: 1 | JR25: 0 | JS25: 1 | JY25: 0 | JZ25: 1 | KF25: 0 | KG25: 1 | KM25: 0 | KN25: 1 | KT25: 0 | KU25: 1 | LA25: 0 | LB25: 1 | LH25: 0 | LI25: 1 | LO25: 0 | LP25: 1 | LV25: 0 | LW25: 1 | MC25: 0 | MD25: 1 | MJ25: 0 | MK25: 1 | MQ25: 0 | MR25: 1 | MX25: 0 | MY25: 1 | NE25: 0 | NF25: 1 | NL25: 0 | NM25: 1 | NS25: 0 | NT25: 1 | NZ25: 0 | OA25: 1 | OG25: 0 | OH25: 1 | ON25: 0 | OO25: 1 | OU25: 0 | OV25: 1 | PB25: 0 | PC25: 1 | PI25: 0 | PJ25: 1 | PP25: 0 | PQ25: 1 | PW25: 0 | PX25: 1 | QD25: 0 | QE25: 1 | QK25: 0 | QL25: 1 | QR25: 0 | QS25: 1 | QY25: 0 | QZ25: 1 | RF25: 0 | RG25: 1 | RM25: 0 | RN25: 1 | RT25: 0 | RU25: 1 | SA25: 0 | SB25: 1 | SH25: 0 | SI25: 1 | SO25: 0 | SP25: 1 | SV25: 0 | SW25: 1 | TC25: 0 | TD25: 1 | TJ25: 0 | TK25: 1 | TQ25: 0 | TR25: 1 | TX25: 0 | TY25: 1 | UE25: 0 | UF25: 1 | UL25: 0 | UM25: 1 | US25: 0 | UT25: 1 | UZ25: 0 | VA25: 1 | VG25: 0 | VH25: 1 | VN25: 0 | VO25: 1 | VU25: 0 | VV25: 1
C26: Reviewer 2 | D26: 0 | E26: =COUNTIF(G7:G22,0) -> 15 | F26: =COUNTIF(E7:E22,1)-COUNTIF(G7:G22,2) -> 0 | G26: =SUM(E26:F26) -> 15 | H26: =G26/SUM(G26:G27) -> 94% | J26: Reviewer 2 | K26: 0 | L26: =COUNTIF(N7:N22,0) -> 15 | M26: =COUNTIF(L7:L22,1)-COUNTIF(N7:N22,2) -> 0 | N26: =SUM(L26:M26) -> 15 | O26: =N26/SUM(N26:N27) -> 94% | Q26: Reviewer 2 | R26: 0 | S26: =COUNTIF(U7:U22,0) -> 15 | T26: =COUNTIF(S7:S22,1)-COUNTIF(U7:U22,2) -> 0 | U26: =SUM(S26:T26) -> 15 | V26: =U26/SUM(U26:U27) -> 94% | X26: Reviewer 2 | Y26: 0 | Z26: =COUNTIF(AB7:AB22,0) -> 15 | AA26: =COUNTIF(Z7:Z22,1)-COUNTIF(AB7:AB22,2) -> 0 | AB26: =SUM(Z26:AA26) -> 15 | AC26: =AB26/SUM(AB26:AB27) -> 94% | AE26: Reviewer 2 | AF26: 0 | AG26: =COUNTIF(AI7:AI22,0) -> 11 | AH26: =COUNTIF(AG7:AG22,1)-COUNTIF(AI7:AI22,2) -> 1 | AI26: =SUM(AG26:AH26) -> 12 | AJ26: =AI26/SUM(AI26:AI27) -> 75% | AL26: Reviewer 2 | AM26: 0 | AN26: =COUNTIF(AP7:AP22,0) -> 15 | AO26: =COUNTIF(AN7:AN22,1)-COUNTIF(AP7:AP22,2) -> 0 | AP26: =SUM(AN26:AO26) -> 15 | AQ26: =AP26/SUM(AP26:AP27) -> 94% | AS26: Reviewer 2 | AT26: 0 | AU26: =COUNTIF(AW7:AW22,0) -> 9 | AV26: =COUNTIF(AU7:AU22,1)-COUNTIF(AW7:AW22,2) -> 1 | AW26: =SUM(AU26:AV26) -> 10 | AX26: =AW26/SUM(AW26:AW27) -> 63% | AZ26: Reviewer 2 | BA26: 0 | BB26: =COUNTIF(BD7:BD22,0) -> 15 | BC26: =COUNTIF(BB7:BB22,1)-COUNTIF(BD7:BD22,2) -> 0 | BD26: =SUM(BB26:BC26) -> 15 | BE26: =BD26/SUM(BD26:BD27) -> 94% | BG26: Reviewer 2 | BH26: 0 | BI26: =COUNTIF(BK7:BK22,0) -> 5 | BJ26: =COUNTIF(BI7:BI22,1)-COUNTIF(BK7:BK22,2) -> 1 | BK26: =SUM(BI26:BJ26) -> 6 | BL26: =BK26/SUM(BK26:BK27) -> 38% | BN26: Reviewer 2 | BO26: 0 | BP26: =COUNTIF(BR7:BR22,0) -> 11 | BQ26: =COUNTIF(BP7:BP22,1)-COUNTIF(BR7:BR22,2) -> 1 | BR26: =SUM(BP26:BQ26) -> 12 | BS26: =BR26/SUM(BR26:BR27) -> 75% | BU26: Reviewer 2 | BV26: 0 | BW26: =COUNTIF(BY7:BY22,0) -> 15 | BX26: =COUNTIF(BW7:BW22,1)-COUNTIF(BY7:BY22,2) -> 0 | BY26: =SUM(BW26:BX26) -> 15 | BZ26: =BY26/SUM(BY26:BY27) -> 94% | CB26: Reviewer 2 | CC26: 0 | CD26: =COUNTIF(CF7:CF22,0) -> 15 | CE26: =COUNTIF(CD7:CD22,1)-COUNTIF(CF7:CF22,2) -> 0 | CF26: =SUM(CD26:CE26) -> 15 | CG26: =CF26/SUM(CF26:CF27) -> 94% | CI26: Reviewer 2 | CJ26: 0 | CK26: =COUNTIF(CM7:CM22,0) -> 6 | CL26: =COUNTIF(CK7:CK22,1)-COUNTIF(CM7:CM22,2) -> 1 | CM26: =SUM(CK26:CL26) -> 7 | CN26: =CM26/SUM(CM26:CM27) -> 44% | CP26: Reviewer 2 | CQ26: 0 | CR26: =COUNTIF(CT7:CT22,0) -> 15 | CS26: =COUNTIF(CR7:CR22,1)-COUNTIF(CT7:CT22,2) -> 0 | CT26: =SUM(CR26:CS26) -> 15 | CU26: =CT26/SUM(CT26:CT27) -> 94% | CW26: Reviewer 2 | CX26: 0 | CY26: =COUNTIF(DA7:DA22,0) -> 15 | CZ26: =COUNTIF(CY7:CY22,1)-COUNTIF(DA7:DA22,2) -> 0 | DA26: =SUM(CY26:CZ26) -> 15 | DB26: =DA26/SUM(DA26:DA27) -> 94% | DD26: Reviewer 2 | DE26: 0 | DF26: =COUNTIF(DH7:DH22,0) -> 15 | DG26: =COUNTIF(DF7:DF22,1)-COUNTIF(DH7:DH22,2) -> 0 | DH26: =SUM(DF26:DG26) -> 15 | DI26: =DH26/SUM(DH26:DH27) -> 94% | DK26: Reviewer 2 | DL26: 0 | DM26: =COUNTIF(DO7:DO22,0) -> 10 | DN26: =COUNTIF(DM7:DM22,1)-COUNTIF(DO7:DO22,2) -> 1 | DO26: =SUM(DM26:DN26) -> 11 | DP26: =DO26/SUM(DO26:DO27) -> 69% | DR26: Reviewer 2 | DS26: 0 | DT26: =COUNTIF(DV7:DV22,0) -> 15 | DU26: =COUNTIF(DT7:DT22,1)-COUNTIF(DV7:DV22,2) -> 0 | DV26: =SUM(DT26:DU26) -> 15 | DW26: =DV26/SUM(DV26:DV27) -> 94% | DY26: Reviewer 2 | DZ26: 0 | EA26: =COUNTIF(EC7:EC22,0) -> 3 | EB26: =COUNTIF(EA7:EA22,1)-COUNTIF(EC7:EC22,2) -> 5 | EC26: =SUM(EA26:EB26) -> 8 | ED26: =EC26/SUM(EC26:EC27) -> 50% | EF26: Reviewer 2 | EG26: 0 | EH26: =COUNTIF(EJ7:EJ22,0) -> 9 | EI26: =COUNTIF(EH7:EH22,1)-COUNTIF(EJ7:EJ22,2) -> 1 | EJ26: =SUM(EH26:EI26) -> 10 | EK26: =EJ26/SUM(EJ26:EJ27) -> 63% | EM26: Reviewer 2 | EN26: 0 | EO26: =COUNTIF(EQ7:EQ22,0) -> 15 | EP26: =COUNTIF(EO7:EO22,1)-COUNTIF(EQ7:EQ22,2) -> 1 | EQ26: =SUM(EO26:EP26) -> 16 | ER26: =EQ26/SUM(EQ26:EQ27) -> 100% | ET26: Reviewer 2 | EU26: 0 | EV26: =COUNTIF(EX7:EX22,0) -> 8 | EW26: =COUNTIF(EV7:EV22,1)-COUNTIF(EX7:EX22,2) -> 0 | EX26: =SUM(EV26:EW26) -> 8 | EY26: =EX26/SUM(EX26:EX27) -> 50% | FA26: Reviewer 2 | FB26: 0 | FC26: =COUNTIF(FE7:FE22,0) -> 15 | FD26: =COUNTIF(FC7:FC22,1)-COUNTIF(FE7:FE22,2) -> 0 | FE26: =SUM(FC26:FD26) -> 15 | FF26: =FE26/SUM(FE26:FE27) -> 94% | FH26: Reviewer 2 | FI26: 0 | FJ26: =COUNTIF(FL7:FL22,0) -> 15 | FK26: =COUNTIF(FJ7:FJ22,1)-COUNTIF(FL7:FL22,2) -> 0 | FL26: =SUM(FJ26:FK26) -> 15 | FM26: =FL26/SUM(FL26:FL27) -> 94% | FO26: Reviewer 2 | FP26: 0 | FQ26: =COUNTIF(FS7:FS22,0) -> 16 | FR26: =COUNTIF(FQ7:FQ22,1)-COUNTIF(FS7:FS22,2) -> 0 | FS26: =SUM(FQ26:FR26) -> 16 | FT26: =FS26/SUM(FS26:FS27) -> 100% | FV26: Reviewer 2 | FW26: 0 | FX26: =COUNTIF(FZ7:FZ22,0) -> 8 | FY26: =COUNTIF(FX7:FX22,1)-COUNTIF(FZ7:FZ22,2) -> 4 | FZ26: =SUM(FX26:FY26) -> 12 | GA26: =FZ26/SUM(FZ26:FZ27) -> 75% | GC26: Reviewer 2 | GD26: 0 | GE26: =COUNTIF(GG7:GG22,0) -> 15 | GF26: =COUNTIF(GE7:GE22,1)-COUNTIF(GG7:GG22,2) -> 1 | GG26: =SUM(GE26:GF26) -> 16 | GH26: =GG26/SUM(GG26:GG27) -> 100% | GJ26: Reviewer 2 | GK26: 0 | GL26: =COUNTIF(GN7:GN22,0) -> 15 | GM26: =COUNTIF(GL7:GL22,1)-COUNTIF(GN7:GN22,2) -> 1 | GN26: =SUM(GL26:GM26) -> 16 | GO26: =GN26/SUM(GN26:GN27) -> 100% | GQ26: Reviewer 2 | GR26: 0 | GS26: =COUNTIF(GU7:GU22,0) -> 15 | GT26: =COUNTIF(GS7:GS22,1)-COUNTIF(GU7:GU22,2) -> 1 | GU26: =SUM(GS26:GT26) -> 16 | GV26: =GU26/SUM(GU26:GU27) -> 100% | GX26: Reviewer 2 | GY26: 0 | GZ26: =COUNTIF(HB7:HB22,0) -> 15 | HA26: =COUNTIF(GZ7:GZ22,1)-COUNTIF(HB7:HB22,2) -> 0 | HB26: =SUM(GZ26:HA26) -> 15 | HC26: =HB26/SUM(HB26:HB27) -> 94% | HE26: Reviewer 2 | HF26: 0 | HG26: =COUNTIF(HI7:HI22,0) -> 15 | HH26: =COUNTIF(HG7:HG22,1)-COUNTIF(HI7:HI22,2) -> 0 | HI26: =SUM(HG26:HH26) -> 15 | HJ26: =HI26/SUM(HI26:HI27) -> 94% | HL26: Reviewer 2 | HM26: 0 | HN26: =COUNTIF(HP7:HP22,0) -> 15 | HO26: =COUNTIF(HN7:HN22,1)-COUNTIF(HP7:HP22,2) -> 1 | HP26: =SUM(HN26:HO26) -> 16 | HQ26: =HP26/SUM(HP26:HP27) -> 100% | HS26: Reviewer 2 | HT26: 0 | HU26: =COUNTIF(HW7:HW22,0) -> 5 | HV26: =COUNTIF(HU7:HU22,1)-COUNTIF(HW7:HW22,2) -> 3 | HW26: =SUM(HU26:HV26) -> 8 | HX26: =HW26/SUM(HW26:HW27) -> 50% | HZ26: Reviewer 2 | IA26: 0 | IB26: =COUNTIF(ID7:ID22,0) -> 15 | IC26: =COUNTIF(IB7:IB22,1)-COUNTIF(ID7:ID22,2) -> 1 | ID26: =SUM(IB26:IC26) -> 16 | IE26: =ID26/SUM(ID26:ID27) -> 100% | IG26: Reviewer 2 | IH26: 0 | II26: =COUNTIF(IK7:IK22,0) -> 15 | IJ26: =COUNTIF(II7:II22,1)-COUNTIF(IK7:IK22,2) -> 1 | IK26: =SUM(II26:IJ26) -> 16 | IL26: =IK26/SUM(IK26:IK27) -> 100% | IN26: Reviewer 2 | IO26: 0 | IP26: =COUNTIF(IR7:IR22,0) -> 15 | IQ26: =COUNTIF(IP7:IP22,1)-COUNTIF(IR7:IR22,2) -> 1 | IR26: =SUM(IP26:IQ26) -> 16 | IS26: =IR26/SUM(IR26:IR27) -> 100% | IU26: Reviewer 2 | IV26: 0 | IW26: =COUNTIF(IY7:IY22,0) -> 14 | IX26: =COUNTIF(IW7:IW22,1)-COUNTIF(IY7:IY22,2) -> 2 | IY26: =SUM(IW26:IX26) -> 16 | IZ26: =IY26/SUM(IY26:IY27) -> 100% | JB26: Reviewer 2 | JC26: 0 | JD26: =COUNTIF(JF7:JF22,0) -> 10 | JE26: =COUNTIF(JD7:JD22,1)-COUNTIF(JF7:JF22,2) -> 0 | JF26: =SUM(JD26:JE26) -> 10 | JG26: =JF26/SUM(JF26:JF27) -> 63% | JI26: Reviewer 2 | JJ26: 0 | JK26: =COUNTIF(JM7:JM22,0) -> 11 | JL26: =COUNTIF(JK7:JK22,1)-COUNTIF(JM7:JM22,2) -> 2 | JM26: =SUM(JK26:JL26) -> 13 | JN26: =JM26/SUM(JM26:JM27) -> 81% | JP26: Reviewer 2 | JQ26: 0 | JR26: =COUNTIF(JT7:JT22,0) -> 13 | JS26: =COUNTIF(JR7:JR22,1)-COUNTIF(JT7:JT22,2) -> 0 | JT26: =SUM(JR26:JS26) -> 13 | JU26: =JT26/SUM(JT26:JT27) -> 81% | JW26: Reviewer 2 | JX26: 0 | JY26: =COUNTIF(KA7:KA22,0) -> 13 | JZ26: =COUNTIF(JY7:JY22,1)-COUNTIF(KA7:KA22,2) -> 0 | KA26: =SUM(JY26:JZ26) -> 13 | KB26: =KA26/SUM(KA26:KA27) -> 81% | KD26: Reviewer 2 | KE26: 0 | KF26: =COUNTIF(KH7:KH22,0) -> 5 | KG26: =COUNTIF(KF7:KF22,1)-COUNTIF(KH7:KH22,2) -> 2 | KH26: =SUM(KF26:KG26) -> 7 | KI26: =KH26/SUM(KH26:KH27) -> 44% | KK26: Reviewer 2 | KL26: 0 | KM26: =COUNTIF(KO7:KO22,0) -> 15 | KN26: =COUNTIF(KM7:KM22,1)-COUNTIF(KO7:KO22,2) -> 0 | KO26: =SUM(KM26:KN26) -> 15 | KP26: =KO26/SUM(KO26:KO27) -> 94% | KR26: Reviewer 2 | KS26: 0 | KT26: =COUNTIF(KV7:KV22,0) -> 8 | KU26: =COUNTIF(KT7:KT22,1)-COUNTIF(KV7:KV22,2) -> 0 | KV26: =SUM(KT26:KU26) -> 8 | KW26: =KV26/SUM(KV26:KV27) -> 50% | KY26: Reviewer 2 | KZ26: 0 | LA26: =COUNTIF(LC7:LC22,0) -> 8 | LB26: =COUNTIF(LA7:LA22,1)-COUNTIF(LC7:LC22,2) -> 1 | LC26: =SUM(LA26:LB26) -> 9 | LD26: =LC26/SUM(LC26:LC27) -> 56% | LF26: Reviewer 2 | LG26: 0 | LH26: =COUNTIF(LJ7:LJ22,0) -> 15 | LI26: =COUNTIF(LH7:LH22,1)-COUNTIF(LJ7:LJ22,2) -> 0 | LJ26: =SUM(LH26:LI26) -> 15 | LK26: =LJ26/SUM(LJ26:LJ27) -> 94% | LM26: Reviewer 2 | LN26: 0 | LO26: =COUNTIF(LQ7:LQ22,0) -> 11 | LP26: =COUNTIF(LO7:LO22,1)-COUNTIF(LQ7:LQ22,2) -> 0 | LQ26: =SUM(LO26:LP26) -> 11 | LR26: =LQ26/SUM(LQ26:LQ27) -> 69% | LT26: Reviewer 2 | LU26: 0 | LV26: =COUNTIF(LX7:LX22,0) -> 15 | LW26: =COUNTIF(LV7:LV22,1)-COUNTIF(LX7:LX22,2) -> 0 | LX26: =SUM(LV26:LW26) -> 15 | LY26: =LX26/SUM(LX26:LX27) -> 94% | MA26: Reviewer 2 | MB26: 0 | MC26: =COUNTIF(ME7:ME22,0) -> 2 | MD26: =COUNTIF(MC7:MC22,1)-COUNTIF(ME7:ME22,2) -> 2 | ME26: =SUM(MC26:MD26) -> 4 | MF26: =ME26/SUM(ME26:ME27) -> 25% | MH26: Reviewer 2 | MI26: 0 | MJ26: =COUNTIF(ML7:ML22,0) -> 15 | MK26: =COUNTIF(MJ7:MJ22,1)-COUNTIF(ML7:ML22,2) -> 0 | ML26: =SUM(MJ26:MK26) -> 15 | MM26: =ML26/SUM(ML26:ML27) -> 94% | MO26: Reviewer 2 | MP26: 0 | MQ26: =COUNTIF(MS7:MS22,0) -> 4 | MR26: =COUNTIF(MQ7:MQ22,1)-COUNTIF(MS7:MS22,2) -> 9 | MS26: =SUM(MQ26:MR26) -> 13 | MT26: =MS26/SUM(MS26:MS27) -> 81% | MV26: Reviewer 2 | MW26: 0 | MX26: =COUNTIF(MZ7:MZ22,0) -> 10 | MY26: =COUNTIF(MX7:MX22,1)-COUNTIF(MZ7:MZ22,2) -> 2 | MZ26: =SUM(MX26:MY26) -> 12 | NA26: =MZ26/SUM(MZ26:MZ27) -> 75% | NC26: Reviewer 2 | ND26: 0 | NE26: =COUNTIF(NG7:NG22,0) -> 15 | NF26: =COUNTIF(NE7:NE22,1)-COUNTIF(NG7:NG22,2) -> 0 | NG26: =SUM(NE26:NF26) -> 15 | NH26: =NG26/SUM(NG26:NG27) -> 94% | NJ26: Reviewer 2 | NK26: 0 | NL26: =COUNTIF(NN7:NN22,0) -> 15 | NM26: =COUNTIF(NL7:NL22,1)-COUNTIF(NN7:NN22,2) -> 1 | NN26: =SUM(NL26:NM26) -> 16 | NO26: =NN26/SUM(NN26:NN27) -> 100% | NQ26: Reviewer 2 | NR26: 0 | NS26: =COUNTIF(NU7:NU22,0) -> 13 | NT26: =COUNTIF(NS7:NS22,1)-COUNTIF(NU7:NU22,2) -> 2 | NU26: =SUM(NS26:NT26) -> 15 | NV26: =NU26/SUM(NU26:NU27) -> 94% | NX26: Reviewer 2 | NY26: 0 | NZ26: =COUNTIF(OB7:OB22,0) -> 7 | OA26: =COUNTIF(NZ7:NZ22,1)-COUNTIF(OB7:OB22,2) -> 4 | OB26: =SUM(NZ26:OA26) -> 11 | OC26: =OB26/SUM(OB26:OB27) -> 69% | OE26: Reviewer 2 | OF26: 0 | OG26: =COUNTIF(OI7:OI22,0) -> 7 | OH26: =COUNTIF(OG7:OG22,1)-COUNTIF(OI7:OI22,2) -> 3 | OI26: =SUM(OG26:OH26) -> 10 | OJ26: =OI26/SUM(OI26:OI27) -> 63% | OL26: Reviewer 2 | OM26: 0 | ON26: =COUNTIF(OP7:OP22,0) -> 7 | OO26: =COUNTIF(ON7:ON22,1)-COUNTIF(OP7:OP22,2) -> 2 | OP26: =SUM(ON26:OO26) -> 9 | OQ26: =OP26/SUM(OP26:OP27) -> 56% | OS26: Reviewer 2 | OT26: 0 | OU26: =COUNTIF(OW7:OW22,0) -> 5 | OV26: =COUNTIF(OU7:OU22,1)-COUNTIF(OW7:OW22,2) -> 2 | OW26: =SUM(OU26:OV26) -> 7 | OX26: =OW26/SUM(OW26:OW27) -> 44% | OZ26: Reviewer 2 | PA26: 0 | PB26: =COUNTIF(PD7:PD22,0) -> 7 | PC26: =COUNTIF(PB7:PB22,1)-COUNTIF(PD7:PD22,2) -> 3 | PD26: =SUM(PB26:PC26) -> 10 | PE26: =PD26/SUM(PD26:PD27) -> 63% | PG26: Reviewer 2 | PH26: 0 | PI26: =COUNTIF(PK7:PK22,0) -> 6 | PJ26: =COUNTIF(PI7:PI22,1)-COUNTIF(PK7:PK22,2) -> 3 | PK26: =SUM(PI26:PJ26) -> 9 | PL26: =PK26/SUM(PK26:PK27) -> 56% | PN26: Reviewer 2 | PO26: 0 | PP26: =COUNTIF(PR7:PR22,0) -> 4 | PQ26: =COUNTIF(PP7:PP22,1)-COUNTIF(PR7:PR22,2) -> 4 | PR26: =SUM(PP26:PQ26) -> 8 | PS26: =PR26/SUM(PR26:PR27) -> 50% | PU26: Reviewer 2 | PV26: 0 | PW26: =COUNTIF(PY7:PY22,0) -> 0 | PX26: =COUNTIF(PW7:PW22,1)-COUNTIF(PY7:PY22,2) -> 7 | PY26: =SUM(PW26:PX26) -> 7 | PZ26: =PY26/SUM(PY26:PY27) -> 44% | QB26: Reviewer 2 | QC26: 0 | QD26: =COUNTIF(QF7:QF22,0) -> 10 | QE26: =COUNTIF(QD7:QD22,1)-COUNTIF(QF7:QF22,2) -> 1 | QF26: =SUM(QD26:QE26) -> 11 | QG26: =QF26/SUM(QF26:QF27) -> 69% | QI26: Reviewer 2 | QJ26: 0 | QK26: =COUNTIF(QM7:QM22,0) -> 9 | QL26: =COUNTIF(QK7:QK22,1)-COUNTIF(QM7:QM22,2) -> 0 | QM26: =SUM(QK26:QL26) -> 9 | QN26: =QM26/SUM(QM26:QM27) -> 56% | QP26: Reviewer 2 | QQ26: 0 | QR26: =COUNTIF(QT7:QT22,0) -> 2 | QS26: =COUNTIF(QR7:QR22,1)-COUNTIF(QT7:QT22,2) -> 5 | QT26: =SUM(QR26:QS26) -> 7 | QU26: =QT26/SUM(QT26:QT27) -> 44% | QW26: Reviewer 2 | QX26: 0 | QY26: =COUNTIF(RA7:RA22,0) -> 1 | QZ26: =COUNTIF(QY7:QY22,1)-COUNTIF(RA7:RA22,2) -> 6 | RA26: =SUM(QY26:QZ26) -> 7 | RB26: =RA26/SUM(RA26:RA27) -> 44% | RD26: Reviewer 2 | RE26: 0 | RF26: =COUNTIF(RH7:RH22,0) -> 15 | RG26: =COUNTIF(RF7:RF22,1)-COUNTIF(RH7:RH22,2) -> 0 | RH26: =SUM(RF26:RG26) -> 15 | RI26: =RH26/SUM(RH26:RH27) -> 94% | RK26: Reviewer 2 | RL26: 0 | RM26: =COUNTIF(RO7:RO22,0) -> 15 | RN26: =COUNTIF(RM7:RM22,1)-COUNTIF(RO7:RO22,2) -> 0 | RO26: =SUM(RM26:RN26) -> 15 | RP26: =RO26/SUM(RO26:RO27) -> 94% | RR26: Reviewer 2 | RS26: 0 | RT26: =COUNTIF(RV7:RV22,0) -> 15 | RU26: =COUNTIF(RT7:RT22,1)-COUNTIF(RV7:RV22,2) -> 0 | RV26: =SUM(RT26:RU26) -> 15 | RW26: =RV26/SUM(RV26:RV27) -> 94% | RY26: Reviewer 2 | RZ26: 0 | SA26: =COUNTIF(SC7:SC22,0) -> 9 | SB26: =COUNTIF(SA7:SA22,1)-COUNTIF(SC7:SC22,2) -> 2 | SC26: =SUM(SA26:SB26) -> 11 | SD26: =SC26/SUM(SC26:SC27) -> 69% | SF26: Reviewer 2 | SG26: 0 | SH26: =COUNTIF(SJ7:SJ22,0) -> 15 | SI26: =COUNTIF(SH7:SH22,1)-COUNTIF(SJ7:SJ22,2) -> 0 | SJ26: =SUM(SH26:SI26) -> 15 | SK26: =SJ26/SUM(SJ26:SJ27) -> 94% | SM26: Reviewer 2 | SN26: 0 | SO26: =COUNTIF(SQ7:SQ22,0) -> 15 | SP26: =COUNTIF(SO7:SO22,1)-COUNTIF(SQ7:SQ22,2) -> 0 | SQ26: =SUM(SO26:SP26) -> 15 | SR26: =SQ26/SUM(SQ26:SQ27) -> 94% | ST26: Reviewer 2 | SU26: 0 | SV26: =COUNTIF(SX7:SX22,0) -> 15 | SW26: =COUNTIF(SV7:SV22,1)-COUNTIF(SX7:SX22,2) -> 0 | SX26: =SUM(SV26:SW26) -> 15 | SY26: =SX26/SUM(SX26:SX27) -> 94% | TA26: Reviewer 2 | TB26: 0 | TC26: =COUNTIF(TE7:TE22,0) -> 6 | TD26: =COUNTIF(TC7:TC22,1)-COUNTIF(TE7:TE22,2) -> 2 | TE26: =SUM(TC26:TD26) -> 8 | TF26: =TE26/SUM(TE26:TE27) -> 50% | TH26: Reviewer 2 | TI26: 0 | TJ26: =COUNTIF(TL7:TL22,0) -> 5 | TK26: =COUNTIF(TJ7:TJ22,1)-COUNTIF(TL7:TL22,2) -> 6 | TL26: =SUM(TJ26:TK26) -> 11 | TM26: =TL26/SUM(TL26:TL27) -> 69% | TO26: Reviewer 2 | TP26: 0 | TQ26: =COUNTIF(TS7:TS22,0) -> 15 | TR26: =COUNTIF(TQ7:TQ22,1)-COUNTIF(TS7:TS22,2) -> 0 | TS26: =SUM(TQ26:TR26) -> 15 | TT26: =TS26/SUM(TS26:TS27) -> 94% | TV26: Reviewer 2 | TW26: 0 | TX26: =COUNTIF(TZ7:TZ22,0) -> 3 | TY26: =COUNTIF(TX7:TX22,1)-COUNTIF(TZ7:TZ22,2) -> 3 | TZ26: =SUM(TX26:TY26) -> 6 | UA26: =TZ26/SUM(TZ26:TZ27) -> 38% | UC26: Reviewer 2 | UD26: 0 | UE26: =COUNTIF(UG7:UG22,0) -> 15 | UF26: =COUNTIF(UE7:UE22,1)-COUNTIF(UG7:UG22,2) -> 0 | UG26: =SUM(UE26:UF26) -> 15 | UH26: =UG26/SUM(UG26:UG27) -> 94% | UJ26: Reviewer 2 | UK26: 0 | UL26: =COUNTIF(UN7:UN22,0) -> 12 | UM26: =COUNTIF(UL7:UL22,1)-COUNTIF(UN7:UN22,2) -> 3 | UN26: =SUM(UL26:UM26) -> 15 | UO26: =UN26/SUM(UN26:UN27) -> 94% | UQ26: Reviewer 2 | UR26: 0 | US26: =COUNTIF(UU7:UU22,0) -> 15 | UT26: =COUNTIF(US7:US22,1)-COUNTIF(UU7:UU22,2) -> 1 | UU26: =SUM(US26:UT26) -> 16 | UV26: =UU26/SUM(UU26:UU27) -> 100% | UX26: Reviewer 2 | UY26: 0 | UZ26: =COUNTIF(VB7:VB22,0) -> 2 | VA26: =COUNTIF(UZ7:UZ22,1)-COUNTIF(VB7:VB22,2) -> 5 | VB26: =SUM(UZ26:VA26) -> 7 | VC26: =VB26/SUM(VB26:VB27) -> 44% | VE26: Reviewer 2 | VF26: 0 | VG26: =COUNTIF(VI7:VI22,0) -> 1 | VH26: =COUNTIF(VG7:VG22,1)-COUNTIF(VI7:VI22,2) -> 4 | VI26: =SUM(VG26:VH26) -> 5 | VJ26: =VI26/SUM(VI26:VI27) -> 31% | VL26: Reviewer 2 | VM26: 0 | VN26: =COUNTIF(VP7:VP22,0) -> 15 | VO26: =COUNTIF(VN7:VN22,1)-COUNTIF(VP7:VP22,2) -> 0 | VP26: =SUM(VN26:VO26) -> 15 | VQ26: =VP26/SUM(VP26:VP27) -> 94% | VS26: Reviewer 2 | VT26: 0 | VU26: =COUNTIF(VW7:VW22,0) -> 15 | VV26: =COUNTIF(VU7:VU22,1)-COUNTIF(VW7:VW22,2) -> 1 | VW26: =SUM(VU26:VV26) -> 16 | VX26: =VW26/SUM(VW26:VW27) -> 100%
D27: 1 | E27: =COUNTIF(F7:F22,1)-COUNTIF(G7:G22,2) -> 0 | F27: =COUNTIF(G7:G22,2) -> 1 | G27: =SUM(E27:F27) -> 1 | H27: =G27/SUM(G26:G27) -> 6% | K27: 1 | L27: =COUNTIF(M7:M22,1)-COUNTIF(N7:N22,2) -> 0 | M27: =COUNTIF(N7:N22,2) -> 1 | N27: =SUM(L27:M27) -> 1 | O27: =N27/SUM(N26:N27) -> 6% | R27: 1 | S27: =COUNTIF(T7:T22,1)-COUNTIF(U7:U22,2) -> 0 | T27: =COUNTIF(U7:U22,2) -> 1 | U27: =SUM(S27:T27) -> 1 | V27: =U27/SUM(U26:U27) -> 6% | Y27: 1 | Z27: =COUNTIF(AA7:AA22,1)-COUNTIF(AB7:AB22,2) -> 0 | AA27: =COUNTIF(AB7:AB22,2) -> 1 | AB27: =SUM(Z27:AA27) -> 1 | AC27: =AB27/SUM(AB26:AB27) -> 6% | AF27: 1 | AG27: =COUNTIF(AH7:AH22,1)-COUNTIF(AI7:AI22,2) -> 2 | AH27: =COUNTIF(AI7:AI22,2) -> 2 | AI27: =SUM(AG27:AH27) -> 4 | AJ27: =AI27/SUM(AI26:AI27) -> 25% | AM27: 1 | AN27: =COUNTIF(AO7:AO22,1)-COUNTIF(AP7:AP22,2) -> 0 | AO27: =COUNTIF(AP7:AP22,2) -> 1 | AP27: =SUM(AN27:AO27) -> 1 | AQ27: =AP27/SUM(AP26:AP27) -> 6% | AT27: 1 | AU27: =COUNTIF(AV7:AV22,1)-COUNTIF(AW7:AW22,2) -> 2 | AV27: =COUNTIF(AW7:AW22,2) -> 4 | AW27: =SUM(AU27:AV27) -> 6 | AX27: =AW27/SUM(AW26:AW27) -> 38% | BA27: 1 | BB27: =COUNTIF(BC7:BC22,1)-COUNTIF(BD7:BD22,2) -> 0 | BC27: =COUNTIF(BD7:BD22,2) -> 1 | BD27: =SUM(BB27:BC27) -> 1 | BE27: =BD27/SUM(BD26:BD27) -> 6% | BH27: 1 | BI27: =COUNTIF(BJ7:BJ22,1)-COUNTIF(BK7:BK22,2) -> 3 | BJ27: =COUNTIF(BK7:BK22,2) -> 7 | BK27: =SUM(BI27:BJ27) -> 10 | BL27: =BK27/SUM(BK26:BK27) -> 63% | BO27: 1 | BP27: =COUNTIF(BQ7:BQ22,1)-COUNTIF(BR7:BR22,2) -> 2 | BQ27: =COUNTIF(BR7:BR22,2) -> 2 | BR27: =SUM(BP27:BQ27) -> 4 | BS27: =BR27/SUM(BR26:BR27) -> 25% | BV27: 1 | BW27: =COUNTIF(BX7:BX22,1)-COUNTIF(BY7:BY22,2) -> 0 | BX27: =COUNTIF(BY7:BY22,2) -> 1 | BY27: =SUM(BW27:BX27) -> 1 | BZ27: =BY27/SUM(BY26:BY27) -> 6% | CC27: 1 | CD27: =COUNTIF(CE7:CE22,1)-COUNTIF(CF7:CF22,2) -> 0 | CE27: =COUNTIF(CF7:CF22,2) -> 1 | CF27: =SUM(CD27:CE27) -> 1 | CG27: =CF27/SUM(CF26:CF27) -> 6% | CJ27: 1 | CK27: =COUNTIF(CL7:CL22,1)-COUNTIF(CM7:CM22,2) -> 2 | CL27: =COUNTIF(CM7:CM22,2) -> 7 | CM27: =SUM(CK27:CL27) -> 9 | CN27: =CM27/SUM(CM26:CM27) -> 56% | CQ27: 1 | CR27: =COUNTIF(CS7:CS22,1)-COUNTIF(CT7:CT22,2) -> 0 | CS27: =COUNTIF(CT7:CT22,2) -> 1 | CT27: =SUM(CR27:CS27) -> 1 | CU27: =CT27/SUM(CT26:CT27) -> 6% | CX27: 1 | CY27: =COUNTIF(CZ7:CZ22,1)-COUNTIF(DA7:DA22,2) -> 0 | CZ27: =COUNTIF(DA7:DA22,2) -> 1 | DA27: =SUM(CY27:CZ27) -> 1 | DB27: =DA27/SUM(DA26:DA27) -> 6% | DE27: 1 | DF27: =COUNTIF(DG7:DG22,1)-COUNTIF(DH7:DH22,2) -> 0 | DG27: =COUNTIF(DH7:DH22,2) -> 1 | DH27: =SUM(DF27:DG27) -> 1 | DI27: =DH27/SUM(DH26:DH27) -> 6% | DL27: 1 | DM27: =COUNTIF(DN7:DN22,1)-COUNTIF(DO7:DO22,2) -> 0 | DN27: =COUNTIF(DO7:DO22,2) -> 5 | DO27: =SUM(DM27:DN27) -> 5 | DP27: =DO27/SUM(DO26:DO27) -> 31% | DS27: 1 | DT27: =COUNTIF(DU7:DU22,1)-COUNTIF(DV7:DV22,2) -> 0 | DU27: =COUNTIF(DV7:DV22,2) -> 1 | DV27: =SUM(DT27:DU27) -> 1 | DW27: =DV27/SUM(DV26:DV27) -> 6% | DZ27: 1 | EA27: =COUNTIF(EB7:EB22,1)-COUNTIF(EC7:EC22,2) -> 0 | EB27: =COUNTIF(EC7:EC22,2) -> 8 | EC27: =SUM(EA27:EB27) -> 8 | ED27: =EC27/SUM(EC26:EC27) -> 50% | EG27: 1 | EH27: =COUNTIF(EI7:EI22,1)-COUNTIF(EJ7:EJ22,2) -> 1 | EI27: =COUNTIF(EJ7:EJ22,2) -> 5 | EJ27: =SUM(EH27:EI27) -> 6 | EK27: =EJ27/SUM(EJ26:EJ27) -> 38% | EN27: 1 | EO27: =COUNTIF(EP7:EP22,1)-COUNTIF(EQ7:EQ22,2) -> 0 | EP27: =COUNTIF(EQ7:EQ22,2) -> 0 | EQ27: =SUM(EO27:EP27) -> 0 | ER27: =EQ27/SUM(EQ26:EQ27) -> 0% | EU27: 1 | EV27: =COUNTIF(EW7:EW22,1)-COUNTIF(EX7:EX22,2) -> 7 | EW27: =COUNTIF(EX7:EX22,2) -> 1 | EX27: =SUM(EV27:EW27) -> 8 | EY27: =EX27/SUM(EX26:EX27) -> 50% | FB27: 1 | FC27: =COUNTIF(FD7:FD22,1)-COUNTIF(FE7:FE22,2) -> 0 | FD27: =COUNTIF(FE7:FE22,2) -> 1 | FE27: =SUM(FC27:FD27) -> 1 | FF27: =FE27/SUM(FE26:FE27) -> 6% | FI27: 1 | FJ27: =COUNTIF(FK7:FK22,1)-COUNTIF(FL7:FL22,2) -> 0 | FK27: =COUNTIF(FL7:FL22,2) -> 1 | FL27: =SUM(FJ27:FK27) -> 1 | FM27: =FL27/SUM(FL26:FL27) -> 6% | FP27: 1 | FQ27: =COUNTIF(FR7:FR22,1)-COUNTIF(FS7:FS22,2) -> 0 | FR27: =COUNTIF(FS7:FS22,2) -> 0 | FS27: =SUM(FQ27:FR27) -> 0 | FT27: =FS27/SUM(FS26:FS27) -> 0% | FW27: 1 | FX27: =COUNTIF(FY7:FY22,1)-COUNTIF(FZ7:FZ22,2) -> 1 | FY27: =COUNTIF(FZ7:FZ22,2) -> 3 | FZ27: =SUM(FX27:FY27) -> 4 | GA27: =FZ27/SUM(FZ26:FZ27) -> 25% | GD27: 1 | GE27: =COUNTIF(GF7:GF22,1)-COUNTIF(GG7:GG22,2) -> 0 | GF27: =COUNTIF(GG7:GG22,2) -> 0 | GG27: =SUM(GE27:GF27) -> 0 | GH27: =GG27/SUM(GG26:GG27) -> 0% | GK27: 1 | GL27: =COUNTIF(GM7:GM22,1)-COUNTIF(GN7:GN22,2) -> 0 | GM27: =COUNTIF(GN7:GN22,2) -> 0 | GN27: =SUM(GL27:GM27) -> 0 | GO27: =GN27/SUM(GN26:GN27) -> 0% | GR27: 1 | GS27: =COUNTIF(GT7:GT22,1)-COUNTIF(GU7:GU22,2) -> 0 | GT27: =COUNTIF(GU7:GU22,2) -> 0 | GU27: =SUM(GS27:GT27) -> 0 | GV27: =GU27/SUM(GU26:GU27) -> 0% | GY27: 1 | GZ27: =COUNTIF(HA7:HA22,1)-COUNTIF(HB7:HB22,2) -> 0 | HA27: =COUNTIF(HB7:HB22,2) -> 1 | HB27: =SUM(GZ27:HA27) -> 1 | HC27: =HB27/SUM(HB26:HB27) -> 6% | HF27: 1 | HG27: =COUNTIF(HH7:HH22,1)-COUNTIF(HI7:HI22,2) -> 0 | HH27: =COUNTIF(HI7:HI22,2) -> 1 | HI27: =SUM(HG27:HH27) -> 1 | HJ27: =HI27/SUM(HI26:HI27) -> 6% | HM27: 1 | HN27: =COUNTIF(HO7:HO22,1)-COUNTIF(HP7:HP22,2) -> 0 | HO27: =COUNTIF(HP7:HP22,2) -> 0 | HP27: =SUM(HN27:HO27) -> 0 | HQ27: =HP27/SUM(HP26:HP27) -> 0% | HT27: 1 | HU27: =COUNTIF(HV7:HV22,1)-COUNTIF(HW7:HW22,2) -> 3 | HV27: =COUNTIF(HW7:HW22,2) -> 5 | HW27: =SUM(HU27:HV27) -> 8 | HX27: =HW27/SUM(HW26:HW27) -> 50% | IA27: 1 | IB27: =COUNTIF(IC7:IC22,1)-COUNTIF(ID7:ID22,2) -> 0 | IC27: =COUNTIF(ID7:ID22,2) -> 0 | ID27: =SUM(IB27:IC27) -> 0 | IE27: =ID27/SUM(ID26:ID27) -> 0% | IH27: 1 | II27: =COUNTIF(IJ7:IJ22,1)-COUNTIF(IK7:IK22,2) -> 0 | IJ27: =COUNTIF(IK7:IK22,2) -> 0 | IK27: =SUM(II27:IJ27) -> 0 | IL27: =IK27/SUM(IK26:IK27) -> 0% | IO27: 1 | IP27: =COUNTIF(IQ7:IQ22,1)-COUNTIF(IR7:IR22,2) -> 0 | IQ27: =COUNTIF(IR7:IR22,2) -> 0 | IR27: =SUM(IP27:IQ27) -> 0 | IS27: =IR27/SUM(IR26:IR27) -> 0% | IV27: 1 | IW27: =COUNTIF(IX7:IX22,1)-COUNTIF(IY7:IY22,2) -> 0 | IX27: =COUNTIF(IY7:IY22,2) -> 0 | IY27: =SUM(IW27:IX27) -> 0 | IZ27: =IY27/SUM(IY26:IY27) -> 0% | JC27: 1 | JD27: =COUNTIF(JE7:JE22,1)-COUNTIF(JF7:JF22,2) -> 2 | JE27: =COUNTIF(JF7:JF22,2) -> 4 | JF27: =SUM(JD27:JE27) -> 6 | JG27: =JF27/SUM(JF26:JF27) -> 38% | JJ27: 1 | JK27: =COUNTIF(JL7:JL22,1)-COUNTIF(JM7:JM22,2) -> 0 | JL27: =COUNTIF(JM7:JM22,2) -> 3 | JM27: =SUM(JK27:JL27) -> 3 | JN27: =JM27/SUM(JM26:JM27) -> 19% | JQ27: 1 | JR27: =COUNTIF(JS7:JS22,1)-COUNTIF(JT7:JT22,2) -> 2 | JS27: =COUNTIF(JT7:JT22,2) -> 1 | JT27: =SUM(JR27:JS27) -> 3 | JU27: =JT27/SUM(JT26:JT27) -> 19% | JX27: 1 | JY27: =COUNTIF(JZ7:JZ22,1)-COUNTIF(KA7:KA22,2) -> 2 | JZ27: =COUNTIF(KA7:KA22,2) -> 1 | KA27: =SUM(JY27:JZ27) -> 3 | KB27: =KA27/SUM(KA26:KA27) -> 19% | KE27: 1 | KF27: =COUNTIF(KG7:KG22,1)-COUNTIF(KH7:KH22,2) -> 0 | KG27: =COUNTIF(KH7:KH22,2) -> 9 | KH27: =SUM(KF27:KG27) -> 9 | KI27: =KH27/SUM(KH26:KH27) -> 56% | KL27: 1 | KM27: =COUNTIF(KN7:KN22,1)-COUNTIF(KO7:KO22,2) -> 0 | KN27: =COUNTIF(KO7:KO22,2) -> 1 | KO27: =SUM(KM27:KN27) -> 1 | KP27: =KO27/SUM(KO26:KO27) -> 6% | KS27: 1 | KT27: =COUNTIF(KU7:KU22,1)-COUNTIF(KV7:KV22,2) -> 0 | KU27: =COUNTIF(KV7:KV22,2) -> 8 | KV27: =SUM(KT27:KU27) -> 8 | KW27: =KV27/SUM(KV26:KV27) -> 50% | KZ27: 1 | LA27: =COUNTIF(LB7:LB22,1)-COUNTIF(LC7:LC22,2) -> 1 | LB27: =COUNTIF(LC7:LC22,2) -> 6 | LC27: =SUM(LA27:LB27) -> 7 | LD27: =LC27/SUM(LC26:LC27) -> 44% | LG27: 1 | LH27: =COUNTIF(LI7:LI22,1)-COUNTIF(LJ7:LJ22,2) -> 0 | LI27: =COUNTIF(LJ7:LJ22,2) -> 1 | LJ27: =SUM(LH27:LI27) -> 1 | LK27: =LJ27/SUM(LJ26:LJ27) -> 6% | LN27: 1 | LO27: =COUNTIF(LP7:LP22,1)-COUNTIF(LQ7:LQ22,2) -> 0 | LP27: =COUNTIF(LQ7:LQ22,2) -> 5 | LQ27: =SUM(LO27:LP27) -> 5 | LR27: =LQ27/SUM(LQ26:LQ27) -> 31% | LU27: 1 | LV27: =COUNTIF(LW7:LW22,1)-COUNTIF(LX7:LX22,2) -> 0 | LW27: =COUNTIF(LX7:LX22,2) -> 1 | LX27: =SUM(LV27:LW27) -> 1 | LY27: =LX27/SUM(LX26:LX27) -> 6% | MB27: 1 | MC27: =COUNTIF(MD7:MD22,1)-COUNTIF(ME7:ME22,2) -> 1 | MD27: =COUNTIF(ME7:ME22,2) -> 11 | ME27: =SUM(MC27:MD27) -> 12 | MF27: =ME27/SUM(ME26:ME27) -> 75% | MI27: 1 | MJ27: =COUNTIF(MK7:MK22,1)-COUNTIF(ML7:ML22,2) -> 0 | MK27: =COUNTIF(ML7:ML22,2) -> 1 | ML27: =SUM(MJ27:MK27) -> 1 | MM27: =ML27/SUM(ML26:ML27) -> 6% | MP27: 1 | MQ27: =COUNTIF(MR7:MR22,1)-COUNTIF(MS7:MS22,2) -> 0 | MR27: =COUNTIF(MS7:MS22,2) -> 3 | MS27: =SUM(MQ27:MR27) -> 3 | MT27: =MS27/SUM(MS26:MS27) -> 19% | MW27: 1 | MX27: =COUNTIF(MY7:MY22,1)-COUNTIF(MZ7:MZ22,2) -> 1 | MY27: =COUNTIF(MZ7:MZ22,2) -> 3 | MZ27: =SUM(MX27:MY27) -> 4 | NA27: =MZ27/SUM(MZ26:MZ27) -> 25% | ND27: 1 | NE27: =COUNTIF(NF7:NF22,1)-COUNTIF(NG7:NG22,2) -> 0 | NF27: =COUNTIF(NG7:NG22,2) -> 1 | NG27: =SUM(NE27:NF27) -> 1 | NH27: =NG27/SUM(NG26:NG27) -> 6% | NK27: 1 | NL27: =COUNTIF(NM7:NM22,1)-COUNTIF(NN7:NN22,2) -> 0 | NM27: =COUNTIF(NN7:NN22,2) -> 0 | NN27: =SUM(NL27:NM27) -> 0 | NO27: =NN27/SUM(NN26:NN27) -> 0% | NR27: 1 | NS27: =COUNTIF(NT7:NT22,1)-COUNTIF(NU7:NU22,2) -> 0 | NT27: =COUNTIF(NU7:NU22,2) -> 1 | NU27: =SUM(NS27:NT27) -> 1 | NV27: =NU27/SUM(NU26:NU27) -> 6% | NY27: 1 | NZ27: =COUNTIF(OA7:OA22,1)-COUNTIF(OB7:OB22,2) -> 1 | OA27: =COUNTIF(OB7:OB22,2) -> 4 | OB27: =SUM(NZ27:OA27) -> 5 | OC27: =OB27/SUM(OB26:OB27) -> 31% | OF27: 1 | OG27: =COUNTIF(OH7:OH22,1)-COUNTIF(OI7:OI22,2) -> 1 | OH27: =COUNTIF(OI7:OI22,2) -> 5 | OI27: =SUM(OG27:OH27) -> 6 | OJ27: =OI27/SUM(OI26:OI27) -> 38% | OM27: 1 | ON27: =COUNTIF(OO7:OO22,1)-COUNTIF(OP7:OP22,2) -> 2 | OO27: =COUNTIF(OP7:OP22,2) -> 5 | OP27: =SUM(ON27:OO27) -> 7 | OQ27: =OP27/SUM(OP26:OP27) -> 44% | OT27: 1 | OU27: =COUNTIF(OV7:OV22,1)-COUNTIF(OW7:OW22,2) -> 1 | OV27: =COUNTIF(OW7:OW22,2) -> 8 | OW27: =SUM(OU27:OV27) -> 9 | OX27: =OW27/SUM(OW26:OW27) -> 56% | PA27: 1 | PB27: =COUNTIF(PC7:PC22,1)-COUNTIF(PD7:PD22,2) -> 1 | PC27: =COUNTIF(PD7:PD22,2) -> 5 | PD27: =SUM(PB27:PC27) -> 6 | PE27: =PD27/SUM(PD26:PD27) -> 38% | PH27: 1 | PI27: =COUNTIF(PJ7:PJ22,1)-COUNTIF(PK7:PK22,2) -> 1 | PJ27: =COUNTIF(PK7:PK22,2) -> 6 | PK27: =SUM(PI27:PJ27) -> 7 | PL27: =PK27/SUM(PK26:PK27) -> 44% | PO27: 1 | PP27: =COUNTIF(PQ7:PQ22,1)-COUNTIF(PR7:PR22,2) -> 0 | PQ27: =COUNTIF(PR7:PR22,2) -> 8 | PR27: =SUM(PP27:PQ27) -> 8 | PS27: =PR27/SUM(PR26:PR27) -> 50% | PV27: 1 | PW27: =COUNTIF(PX7:PX22,1)-COUNTIF(PY7:PY22,2) -> 2 | PX27: =COUNTIF(PY7:PY22,2) -> 7 | PY27: =SUM(PW27:PX27) -> 9 | PZ27: =PY27/SUM(PY26:PY27) -> 56% | QC27: 1 | QD27: =COUNTIF(QE7:QE22,1)-COUNTIF(QF7:QF22,2) -> 0 | QE27: =COUNTIF(QF7:QF22,2) -> 5 | QF27: =SUM(QD27:QE27) -> 5 | QG27: =QF27/SUM(QF26:QF27) -> 31% | QJ27: 1 | QK27: =COUNTIF(QL7:QL22,1)-COUNTIF(QM7:QM22,2) -> 1 | QL27: =COUNTIF(QM7:QM22,2) -> 6 | QM27: =SUM(QK27:QL27) -> 7 | QN27: =QM27/SUM(QM26:QM27) -> 44% | QQ27: 1 | QR27: =COUNTIF(QS7:QS22,1)-COUNTIF(QT7:QT22,2) -> 0 | QS27: =COUNTIF(QT7:QT22,2) -> 9 | QT27: =SUM(QR27:QS27) -> 9 | QU27: =QT27/SUM(QT26:QT27) -> 56% | QX27: 1 | QY27: =COUNTIF(QZ7:QZ22,1)-COUNTIF(RA7:RA22,2) -> 0 | QZ27: =COUNTIF(RA7:RA22,2) -> 9 | RA27: =SUM(QY27:QZ27) -> 9 | RB27: =RA27/SUM(RA26:RA27) -> 56% | RE27: 1 | RF27: =COUNTIF(RG7:RG22,1)-COUNTIF(RH7:RH22,2) -> 0 | RG27: =COUNTIF(RH7:RH22,2) -> 1 | RH27: =SUM(RF27:RG27) -> 1 | RI27: =RH27/SUM(RH26:RH27) -> 6% | RL27: 1 | RM27: =COUNTIF(RN7:RN22,1)-COUNTIF(RO7:RO22,2) -> 0 | RN27: =COUNTIF(RO7:RO22,2) -> 1 | RO27: =SUM(RM27:RN27) -> 1 | RP27: =RO27/SUM(RO26:RO27) -> 6% | RS27: 1 | RT27: =COUNTIF(RU7:RU22,1)-COUNTIF(RV7:RV22,2) -> 0 | RU27: =COUNTIF(RV7:RV22,2) -> 1 | RV27: =SUM(RT27:RU27) -> 1 | RW27: =RV27/SUM(RV26:RV27) -> 6% | RZ27: 1 | SA27: =COUNTIF(SB7:SB22,1)-COUNTIF(SC7:SC22,2) -> 0 | SB27: =COUNTIF(SC7:SC22,2) -> 5 | SC27: =SUM(SA27:SB27) -> 5 | SD27: =SC27/SUM(SC26:SC27) -> 31% | SG27: 1 | SH27: =COUNTIF(SI7:SI22,1)-COUNTIF(SJ7:SJ22,2) -> 0 | SI27: =COUNTIF(SJ7:SJ22,2) -> 1 | SJ27: =SUM(SH27:SI27) -> 1 | SK27: =SJ27/SUM(SJ26:SJ27) -> 6% | SN27: 1 | SO27: =COUNTIF(SP7:SP22,1)-COUNTIF(SQ7:SQ22,2) -> 0 | SP27: =COUNTIF(SQ7:SQ22,2) -> 1 | SQ27: =SUM(SO27:SP27) -> 1 | SR27: =SQ27/SUM(SQ26:SQ27) -> 6% | SU27: 1 | SV27: =COUNTIF(SW7:SW22,1)-COUNTIF(SX7:SX22,2) -> 0 | SW27: =COUNTIF(SX7:SX22,2) -> 1 | SX27: =SUM(SV27:SW27) -> 1 | SY27: =SX27/SUM(SX26:SX27) -> 6% | TB27: 1 | TC27: =COUNTIF(TD7:TD22,1)-COUNTIF(TE7:TE22,2) -> 0 | TD27: =COUNTIF(TE7:TE22,2) -> 8 | TE27: =SUM(TC27:TD27) -> 8 | TF27: =TE27/SUM(TE26:TE27) -> 50% | TI27: 1 | TJ27: =COUNTIF(TK7:TK22,1)-COUNTIF(TL7:TL22,2) -> 0 | TK27: =COUNTIF(TL7:TL22,2) -> 5 | TL27: =SUM(TJ27:TK27) -> 5 | TM27: =TL27/SUM(TL26:TL27) -> 31% | TP27: 1 | TQ27: =COUNTIF(TR7:TR22,1)-COUNTIF(TS7:TS22,2) -> 0 | TR27: =COUNTIF(TS7:TS22,2) -> 1 | TS27: =SUM(TQ27:TR27) -> 1 | TT27: =TS27/SUM(TS26:TS27) -> 6% | TW27: 1 | TX27: =COUNTIF(TY7:TY22,1)-COUNTIF(TZ7:TZ22,2) -> 2 | TY27: =COUNTIF(TZ7:TZ22,2) -> 8 | TZ27: =SUM(TX27:TY27) -> 10 | UA27: =TZ27/SUM(TZ26:TZ27) -> 63% | UD27: 1 | UE27: =COUNTIF(UF7:UF22,1)-COUNTIF(UG7:UG22,2) -> 0 | UF27: =COUNTIF(UG7:UG22,2) -> 1 | UG27: =SUM(UE27:UF27) -> 1 | UH27: =UG27/SUM(UG26:UG27) -> 6% | UK27: 1 | UL27: =COUNTIF(UM7:UM22,1)-COUNTIF(UN7:UN22,2) -> 0 | UM27: =COUNTIF(UN7:UN22,2) -> 1 | UN27: =SUM(UL27:UM27) -> 1 | UO27: =UN27/SUM(UN26:UN27) -> 6% | UR27: 1 | US27: =COUNTIF(UT7:UT22,1)-COUNTIF(UU7:UU22,2) -> 0 | UT27: =COUNTIF(UU7:UU22,2) -> 0 | UU27: =SUM(US27:UT27) -> 0 | UV27: =UU27/SUM(UU26:UU27) -> 0% | UY27: 1 | UZ27: =COUNTIF(VA7:VA22,1)-COUNTIF(VB7:VB22,2) -> 1 | VA27: =COUNTIF(VB7:VB22,2) -> 8 | VB27: =SUM(UZ27:VA27) -> 9 | VC27: =VB27/SUM(VB26:VB27) -> 56% | VF27: 1 | VG27: =COUNTIF(VH7:VH22,1)-COUNTIF(VI7:VI22,2) -> 1 | VH27: =COUNTIF(VI7:VI22,2) -> 10 | VI27: =SUM(VG27:VH27) -> 11 | VJ27: =VI27/SUM(VI26:VI27) -> 69% | VM27: 1 | VN27: =COUNTIF(VO7:VO22,1)-COUNTIF(VP7:VP22,2) -> 0 | VO27: =COUNTIF(VP7:VP22,2) -> 1 | VP27: =SUM(VN27:VO27) -> 1 | VQ27: =VP27/SUM(VP26:VP27) -> 6% | VT27: 1 | VU27: =COUNTIF(VV7:VV22,1)-COUNTIF(VW7:VW22,2) -> 0 | VV27: =COUNTIF(VW7:VW22,2) -> 0 | VW27: =SUM(VU27:VV27) -> 0 | VX27: =VW27/SUM(VW26:VW27) -> 0%
E28: =SUM(E26:E27) -> 15 | F28: =SUM(F26:F27) -> 1 | G28: =SUM(G26:G27) -> 16 | L28: =SUM(L26:L27) -> 15 | M28: =SUM(M26:M27) -> 1 | N28: =SUM(N26:N27) -> 16 | S28: =SUM(S26:S27) -> 15 | T28: =SUM(T26:T27) -> 1 | U28: =SUM(U26:U27) -> 16 | Z28: =SUM(Z26:Z27) -> 15 | AA28: =SUM(AA26:AA27) -> 1 | AB28: =SUM(AB26:AB27) -> 16 | AG28: =SUM(AG26:AG27) -> 13 | AH28: =SUM(AH26:AH27) -> 3 | AI28: =SUM(AI26:AI27) -> 16 | AN28: =SUM(AN26:AN27) -> 15 | AO28: =SUM(AO26:AO27) -> 1 | AP28: =SUM(AP26:AP27) -> 16 | AU28: =SUM(AU26:AU27) -> 11 | AV28: =SUM(AV26:AV27) -> 5 | AW28: =SUM(AW26:AW27) -> 16 | BB28: =SUM(BB26:BB27) -> 15 | BC28: =SUM(BC26:BC27) -> 1 | BD28: =SUM(BD26:BD27) -> 16 | BI28: =SUM(BI26:BI27) -> 8 | BJ28: =SUM(BJ26:BJ27) -> 8 | BK28: =SUM(BK26:BK27) -> 16 | BP28: =SUM(BP26:BP27) -> 13 | BQ28: =SUM(BQ26:BQ27) -> 3 | BR28: =SUM(BR26:BR27) -> 16 | BW28: =SUM(BW26:BW27) -> 15 | BX28: =SUM(BX26:BX27) -> 1 | BY28: =SUM(BY26:BY27) -> 16 | CD28: =SUM(CD26:CD27) -> 15 | CE28: =SUM(CE26:CE27) -> 1 | CF28: =SUM(CF26:CF27) -> 16 | CK28: =SUM(CK26:CK27) -> 8 | CL28: =SUM(CL26:CL27) -> 8 | CM28: =SUM(CM26:CM27) -> 16 | CR28: =SUM(CR26:CR27) -> 15 | CS28: =SUM(CS26:CS27) -> 1 | CT28: =SUM(CT26:CT27) -> 16 | CY28: =SUM(CY26:CY27) -> 15 | CZ28: =SUM(CZ26:CZ27) -> 1 | DA28: =SUM(DA26:DA27) -> 16 | DF28: =SUM(DF26:DF27) -> 15 | DG28: =SUM(DG26:DG27) -> 1 | DH28: =SUM(DH26:DH27) -> 16 | DM28: =SUM(DM26:DM27) -> 10 | DN28: =SUM(DN26:DN27) -> 6 | DO28: =SUM(DO26:DO27) -> 16 | DT28: =SUM(DT26:DT27) -> 15 | DU28: =SUM(DU26:DU27) -> 1 | DV28: =SUM(DV26:DV27) -> 16 | EA28: =SUM(EA26:EA27) -> 3 | EB28: =SUM(EB26:EB27) -> 13 | EC28: =SUM(EC26:EC27) -> 16 | EH28: =SUM(EH26:EH27) -> 10 | EI28: =SUM(EI26:EI27) -> 6 | EJ28: =SUM(EJ26:EJ27) -> 16 | EO28: =SUM(EO26:EO27) -> 15 | EP28: =SUM(EP26:EP27) -> 1 | EQ28: =SUM(EQ26:EQ27) -> 16 | EV28: =SUM(EV26:EV27) -> 15 | EW28: =SUM(EW26:EW27) -> 1 | EX28: =SUM(EX26:EX27) -> 16 | FC28: =SUM(FC26:FC27) -> 15 | FD28: =SUM(FD26:FD27) -> 1 | FE28: =SUM(FE26:FE27) -> 16 | FJ28: =SUM(FJ26:FJ27) -> 15 | FK28: =SUM(FK26:FK27) -> 1 | FL28: =SUM(FL26:FL27) -> 16 | FQ28: =SUM(FQ26:FQ27) -> 16 | FR28: =SUM(FR26:FR27) -> 0 | FS28: =SUM(FS26:FS27) -> 16 | FX28: =SUM(FX26:FX27) -> 9 | FY28: =SUM(FY26:FY27) -> 7 | FZ28: =SUM(FZ26:FZ27) -> 16 | GE28: =SUM(GE26:GE27) -> 15 | GF28: =SUM(GF26:GF27) -> 1 | GG28: =SUM(GG26:GG27) -> 16 | GL28: =SUM(GL26:GL27) -> 15 | GM28: =SUM(GM26:GM27) -> 1 | GN28: =SUM(GN26:GN27) -> 16 | GS28: =SUM(GS26:GS27) -> 15 | GT28: =SUM(GT26:GT27) -> 1 | GU28: =SUM(GU26:GU27) -> 16 | GZ28: =SUM(GZ26:GZ27) -> 15 | HA28: =SUM(HA26:HA27) -> 1 | HB28: =SUM(HB26:HB27) -> 16 | HG28: =SUM(HG26:HG27) -> 15 | HH28: =SUM(HH26:HH27) -> 1 | HI28: =SUM(HI26:HI27) -> 16 | HN28: =SUM(HN26:HN27) -> 15 | HO28: =SUM(HO26:HO27) -> 1 | HP28: =SUM(HP26:HP27) -> 16 | HU28: =SUM(HU26:HU27) -> 8 | HV28: =SUM(HV26:HV27) -> 8 | HW28: =SUM(HW26:HW27) -> 16 | IB28: =SUM(IB26:IB27) -> 15 | IC28: =SUM(IC26:IC27) -> 1 | ID28: =SUM(ID26:ID27) -> 16 | II28: =SUM(II26:II27) -> 15 | IJ28: =SUM(IJ26:IJ27) -> 1 | IK28: =SUM(IK26:IK27) -> 16 | IP28: =SUM(IP26:IP27) -> 15 | IQ28: =SUM(IQ26:IQ27) -> 1 | IR28: =SUM(IR26:IR27) -> 16 | IW28: =SUM(IW26:IW27) -> 14 | IX28: =SUM(IX26:IX27) -> 2 | IY28: =SUM(IY26:IY27) -> 16 | JD28: =SUM(JD26:JD27) -> 12 | JE28: =SUM(JE26:JE27) -> 4 | JF28: =SUM(JF26:JF27) -> 16 | JK28: =SUM(JK26:JK27) -> 11 | JL28: =SUM(JL26:JL27) -> 5 | JM28: =SUM(JM26:JM27) -> 16 | JR28: =SUM(JR26:JR27) -> 15 | JS28: =SUM(JS26:JS27) -> 1 | JT28: =SUM(JT26:JT27) -> 16 | JY28: =SUM(JY26:JY27) -> 15 | JZ28: =SUM(JZ26:JZ27) -> 1 | KA28: =SUM(KA26:KA27) -> 16 | KF28: =SUM(KF26:KF27) -> 5 | KG28: =SUM(KG26:KG27) -> 11 | KH28: =SUM(KH26:KH27) -> 16 | KM28: =SUM(KM26:KM27) -> 15 | KN28: =SUM(KN26:KN27) -> 1 | KO28: =SUM(KO26:KO27) -> 16 | KT28: =SUM(KT26:KT27) -> 8 | KU28: =SUM(KU26:KU27) -> 8 | KV28: =SUM(KV26:KV27) -> 16 | LA28: =SUM(LA26:LA27) -> 9 | LB28: =SUM(LB26:LB27) -> 7 | LC28: =SUM(LC26:LC27) -> 16 | LH28: =SUM(LH26:LH27) -> 15 | LI28: =SUM(LI26:LI27) -> 1 | LJ28: =SUM(LJ26:LJ27) -> 16 | LO28: =SUM(LO26:LO27) -> 11 | LP28: =SUM(LP26:LP27) -> 5 | LQ28: =SUM(LQ26:LQ27) -> 16 | LV28: =SUM(LV26:LV27) -> 15 | LW28: =SUM(LW26:LW27) -> 1 | LX28: =SUM(LX26:LX27) -> 16 | MC28: =SUM(MC26:MC27) -> 3 | MD28: =SUM(MD26:MD27) -> 13 | ME28: =SUM(ME26:ME27) -> 16 | MJ28: =SUM(MJ26:MJ27) -> 15 | MK28: =SUM(MK26:MK27) -> 1 | ML28: =SUM(ML26:ML27) -> 16 | MQ28: =SUM(MQ26:MQ27) -> 4 | MR28: =SUM(MR26:MR27) -> 12 | MS28: =SUM(MS26:MS27) -> 16 | MX28: =SUM(MX26:MX27) -> 11 | MY28: =SUM(MY26:MY27) -> 5 | MZ28: =SUM(MZ26:MZ27) -> 16 | NE28: =SUM(NE26:NE27) -> 15 | NF28: =SUM(NF26:NF27) -> 1 | NG28: =SUM(NG26:NG27) -> 16 | NL28: =SUM(NL26:NL27) -> 15 | NM28: =SUM(NM26:NM27) -> 1 | NN28: =SUM(NN26:NN27) -> 16 | NS28: =SUM(NS26:NS27) -> 13 | NT28: =SUM(NT26:NT27) -> 3 | NU28: =SUM(NU26:NU27) -> 16 | NZ28: =SUM(NZ26:NZ27) -> 8 | OA28: =SUM(OA26:OA27) -> 8 | OB28: =SUM(OB26:OB27) -> 16 | OG28: =SUM(OG26:OG27) -> 8 | OH28: =SUM(OH26:OH27) -> 8 | OI28: =SUM(OI26:OI27) -> 16 | ON28: =SUM(ON26:ON27) -> 9 | OO28: =SUM(OO26:OO27) -> 7 | OP28: =SUM(OP26:OP27) -> 16 | OU28: =SUM(OU26:OU27) -> 6 | OV28: =SUM(OV26:OV27) -> 10 | OW28: =SUM(OW26:OW27) -> 16 | PB28: =SUM(PB26:PB27) -> 8 | PC28: =SUM(PC26:PC27) -> 8 | PD28: =SUM(PD26:PD27) -> 16 | PI28: =SUM(PI26:PI27) -> 7 | PJ28: =SUM(PJ26:PJ27) -> 9 | PK28: =SUM(PK26:PK27) -> 16 | PP28: =SUM(PP26:PP27) -> 4 | PQ28: =SUM(PQ26:PQ27) -> 12 | PR28: =SUM(PR26:PR27) -> 16 | PW28: =SUM(PW26:PW27) -> 2 | PX28: =SUM(PX26:PX27) -> 14 | PY28: =SUM(PY26:PY27) -> 16 | QD28: =SUM(QD26:QD27) -> 10 | QE28: =SUM(QE26:QE27) -> 6 | QF28: =SUM(QF26:QF27) -> 16 | QK28: =SUM(QK26:QK27) -> 10 | QL28: =SUM(QL26:QL27) -> 6 | QM28: =SUM(QM26:QM27) -> 16 | QR28: =SUM(QR26:QR27) -> 2 | QS28: =SUM(QS26:QS27) -> 14 | QT28: =SUM(QT26:QT27) -> 16 | QY28: =SUM(QY26:QY27) -> 1 | QZ28: =SUM(QZ26:QZ27) -> 15 | RA28: =SUM(RA26:RA27) -> 16 | RF28: =SUM(RF26:RF27) -> 15 | RG28: =SUM(RG26:RG27) -> 1 | RH28: =SUM(RH26:RH27) -> 16 | RM28: =SUM(RM26:RM27) -> 15 | RN28: =SUM(RN26:RN27) -> 1 | RO28: =SUM(RO26:RO27) -> 16 | RT28: =SUM(RT26:RT27) -> 15 | RU28: =SUM(RU26:RU27) -> 1 | RV28: =SUM(RV26:RV27) -> 16 | SA28: =SUM(SA26:SA27) -> 9 | SB28: =SUM(SB26:SB27) -> 7 | SC28: =SUM(SC26:SC27) -> 16 | SH28: =SUM(SH26:SH27) -> 15 | SI28: =SUM(SI26:SI27) -> 1 | SJ28: =SUM(SJ26:SJ27) -> 16 | SO28: =SUM(SO26:SO27) -> 15 | SP28: =SUM(SP26:SP27) -> 1 | SQ28: =SUM(SQ26:SQ27) -> 16 | SV28: =SUM(SV26:SV27) -> 15 | SW28: =SUM(SW26:SW27) -> 1 | SX28: =SUM(SX26:SX27) -> 16 | TC28: =SUM(TC26:TC27) -> 6 | TD28: =SUM(TD26:TD27) -> 10 | TE28: =SUM(TE26:TE27) -> 16 | TJ28: =SUM(TJ26:TJ27) -> 5 | TK28: =SUM(TK26:TK27) -> 11 | TL28: =SUM(TL26:TL27) -> 16 | TQ28: =SUM(TQ26:TQ27) -> 15 | TR28: =SUM(TR26:TR27) -> 1 | TS28: =SUM(TS26:TS27) -> 16 | TX28: =SUM(TX26:TX27) -> 5 | TY28: =SUM(TY26:TY27) -> 11 | TZ28: =SUM(TZ26:TZ27) -> 16 | UE28: =SUM(UE26:UE27) -> 15 | UF28: =SUM(UF26:UF27) -> 1 | UG28: =SUM(UG26:UG27) -> 16 | UL28: =SUM(UL26:UL27) -> 12 | UM28: =SUM(UM26:UM27) -> 4 | UN28: =SUM(UN26:UN27) -> 16 | US28: =SUM(US26:US27) -> 15 | UT28: =SUM(UT26:UT27) -> 1 | UU28: =SUM(UU26:UU27) -> 16 | UZ28: =SUM(UZ26:UZ27) -> 3 | VA28: =SUM(VA26:VA27) -> 13 | VB28: =SUM(VB26:VB27) -> 16 | VG28: =SUM(VG26:VG27) -> 2 | VH28: =SUM(VH26:VH27) -> 14 | VI28: =SUM(VI26:VI27) -> 16 | VN28: =SUM(VN26:VN27) -> 15 | VO28: =SUM(VO26:VO27) -> 1 | VP28: =SUM(VP26:VP27) -> 16 | VU28: =SUM(VU26:VU27) -> 15 | VV28: =SUM(VV26:VV27) -> 1 | VW28: =SUM(VW26:VW27) -> 16
E29: =E28/SUM(E28:F28) -> 94% | F29: =F28/SUM(E28:F28) -> 6% | L29: =L28/SUM(L28:M28) -> 94% | M29: =M28/SUM(L28:M28) -> 6% | S29: =S28/SUM(S28:T28) -> 94% | T29: =T28/SUM(S28:T28) -> 6% | Z29: =Z28/SUM(Z28:AA28) -> 94% | AA29: =AA28/SUM(Z28:AA28) -> 6% | AG29: =AG28/SUM(AG28:AH28) -> 81% | AH29: =AH28/SUM(AG28:AH28) -> 19% | AN29: =AN28/SUM(AN28:AO28) -> 94% | AO29: =AO28/SUM(AN28:AO28) -> 6% | AU29: =AU28/SUM(AU28:AV28) -> 69% | AV29: =AV28/SUM(AU28:AV28) -> 31% | BB29: =BB28/SUM(BB28:BC28) -> 94% | BC29: =BC28/SUM(BB28:BC28) -> 6% | BI29: =BI28/SUM(BI28:BJ28) -> 50% | BJ29: =BJ28/SUM(BI28:BJ28) -> 50% | BP29: =BP28/SUM(BP28:BQ28) -> 81% | BQ29: =BQ28/SUM(BP28:BQ28) -> 19% | BW29: =BW28/SUM(BW28:BX28) -> 94% | BX29: =BX28/SUM(BW28:BX28) -> 6% | CD29: =CD28/SUM(CD28:CE28) -> 94% | CE29: =CE28/SUM(CD28:CE28) -> 6% | CK29: =CK28/SUM(CK28:CL28) -> 50% | CL29: =CL28/SUM(CK28:CL28) -> 50% | CR29: =CR28/SUM(CR28:CS28) -> 94% | CS29: =CS28/SUM(CR28:CS28) -> 6% | CY29: =CY28/SUM(CY28:CZ28) -> 94% | CZ29: =CZ28/SUM(CY28:CZ28) -> 6% | DF29: =DF28/SUM(DF28:DG28) -> 94% | DG29: =DG28/SUM(DF28:DG28) -> 6% | DM29: =DM28/SUM(DM28:DN28) -> 63% | DN29: =DN28/SUM(DM28:DN28) -> 38% | DT29: =DT28/SUM(DT28:DU28) -> 94% | DU29: =DU28/SUM(DT28:DU28) -> 6% | EA29: =EA28/SUM(EA28:EB28) -> 19% | EB29: =EB28/SUM(EA28:EB28) -> 81% | EH29: =EH28/SUM(EH28:EI28) -> 63% | EI29: =EI28/SUM(EH28:EI28) -> 38% | EO29: =EO28/SUM(EO28:EP28) -> 94% | EP29: =EP28/SUM(EO28:EP28) -> 6% | EV29: =EV28/SUM(EV28:EW28) -> 94% | EW29: =EW28/SUM(EV28:EW28) -> 6% | FC29: =FC28/SUM(FC28:FD28) -> 94% | FD29: =FD28/SUM(FC28:FD28) -> 6% | FJ29: =FJ28/SUM(FJ28:FK28) -> 94% | FK29: =FK28/SUM(FJ28:FK28) -> 6% | FQ29: =FQ28/SUM(FQ28:FR28) -> 100% | FR29: =FR28/SUM(FQ28:FR28) -> 0% | FX29: =FX28/SUM(FX28:FY28) -> 56% | FY29: =FY28/SUM(FX28:FY28) -> 44% | GE29: =GE28/SUM(GE28:GF28) -> 94% | GF29: =GF28/SUM(GE28:GF28) -> 6% | GL29: =GL28/SUM(GL28:GM28) -> 94% | GM29: =GM28/SUM(GL28:GM28) -> 6% | GS29: =GS28/SUM(GS28:GT28) -> 94% | GT29: =GT28/SUM(GS28:GT28) -> 6% | GZ29: =GZ28/SUM(GZ28:HA28) -> 94% | HA29: =HA28/SUM(GZ28:HA28) -> 6% | HG29: =HG28/SUM(HG28:HH28) -> 94% | HH29: =HH28/SUM(HG28:HH28) -> 6% | HN29: =HN28/SUM(HN28:HO28) -> 94% | HO29: =HO28/SUM(HN28:HO28) -> 6% | HU29: =HU28/SUM(HU28:HV28) -> 50% | HV29: =HV28/SUM(HU28:HV28) -> 50% | IB29: =IB28/SUM(IB28:IC28) -> 94% | IC29: =IC28/SUM(IB28:IC28) -> 6% | II29: =II28/SUM(II28:IJ28) -> 94% | IJ29: =IJ28/SUM(II28:IJ28) -> 6% | IP29: =IP28/SUM(IP28:IQ28) -> 94% | IQ29: =IQ28/SUM(IP28:IQ28) -> 6% | IW29: =IW28/SUM(IW28:IX28) -> 88% | IX29: =IX28/SUM(IW28:IX28) -> 13% | JD29: =JD28/SUM(JD28:JE28) -> 75% | JE29: =JE28/SUM(JD28:JE28) -> 25% | JK29: =JK28/SUM(JK28:JL28) -> 69% | JL29: =JL28/SUM(JK28:JL28) -> 31% | JR29: =JR28/SUM(JR28:JS28) -> 94% | JS29: =JS28/SUM(JR28:JS28) -> 6% | JY29: =JY28/SUM(JY28:JZ28) -> 94% | JZ29: =JZ28/SUM(JY28:JZ28) -> 6% | KF29: =KF28/SUM(KF28:KG28) -> 31% | KG29: =KG28/SUM(KF28:KG28) -> 69% | KM29: =KM28/SUM(KM28:KN28) -> 94% | KN29: =KN28/SUM(KM28:KN28) -> 6% | KT29: =KT28/SUM(KT28:KU28) -> 50% | KU29: =KU28/SUM(KT28:KU28) -> 50% | LA29: =LA28/SUM(LA28:LB28) -> 56% | LB29: =LB28/SUM(LA28:LB28) -> 44% | LH29: =LH28/SUM(LH28:LI28) -> 94% | LI29: =LI28/SUM(LH28:LI28) -> 6% | LO29: =LO28/SUM(LO28:LP28) -> 69% | LP29: =LP28/SUM(LO28:LP28) -> 31% | LV29: =LV28/SUM(LV28:LW28) -> 94% | LW29: =LW28/SUM(LV28:LW28) -> 6% | MC29: =MC28/SUM(MC28:MD28) -> 19% | MD29: =MD28/SUM(MC28:MD28) -> 81% | MJ29: =MJ28/SUM(MJ28:MK28) -> 94% | MK29: =MK28/SUM(MJ28:MK28) -> 6% | MQ29: =MQ28/SUM(MQ28:MR28) -> 25% | MR29: =MR28/SUM(MQ28:MR28) -> 75% | MX29: =MX28/SUM(MX28:MY28) -> 69% | MY29: =MY28/SUM(MX28:MY28) -> 31% | NE29: =NE28/SUM(NE28:NF28) -> 94% | NF29: =NF28/SUM(NE28:NF28) -> 6% | NL29: =NL28/SUM(NL28:NM28) -> 94% | NM29: =NM28/SUM(NL28:NM28) -> 6% | NS29: =NS28/SUM(NS28:NT28) -> 81% | NT29: =NT28/SUM(NS28:NT28) -> 19% | NZ29: =NZ28/SUM(NZ28:OA28) -> 50% | OA29: =OA28/SUM(NZ28:OA28) -> 50% | OG29: =OG28/SUM(OG28:OH28) -> 50% | OH29: =OH28/SUM(OG28:OH28) -> 50% | ON29: =ON28/SUM(ON28:OO28) -> 56% | OO29: =OO28/SUM(ON28:OO28) -> 44% | OU29: =OU28/SUM(OU28:OV28) -> 38% | OV29: =OV28/SUM(OU28:OV28) -> 63% | PB29: =PB28/SUM(PB28:PC28) -> 50% | PC29: =PC28/SUM(PB28:PC28) -> 50% | PI29: =PI28/SUM(PI28:PJ28) -> 44% | PJ29: =PJ28/SUM(PI28:PJ28) -> 56% | PP29: =PP28/SUM(PP28:PQ28) -> 25% | PQ29: =PQ28/SUM(PP28:PQ28) -> 75% | PW29: =PW28/SUM(PW28:PX28) -> 13% | PX29: =PX28/SUM(PW28:PX28) -> 88% | QD29: =QD28/SUM(QD28:QE28) -> 63% | QE29: =QE28/SUM(QD28:QE28) -> 38% | QK29: =QK28/SUM(QK28:QL28) -> 63% | QL29: =QL28/SUM(QK28:QL28) -> 38% | QR29: =QR28/SUM(QR28:QS28) -> 13% | QS29: =QS28/SUM(QR28:QS28) -> 88% | QY29: =QY28/SUM(QY28:QZ28) -> 6% | QZ29: =QZ28/SUM(QY28:QZ28) -> 94% | RF29: =RF28/SUM(RF28:RG28) -> 94% | RG29: =RG28/SUM(RF28:RG28) -> 6% | RM29: =RM28/SUM(RM28:RN28) -> 94% | RN29: =RN28/SUM(RM28:RN28) -> 6% | RT29: =RT28/SUM(RT28:RU28) -> 94% | RU29: =RU28/SUM(RT28:RU28) -> 6% | SA29: =SA28/SUM(SA28:SB28) -> 56% | SB29: =SB28/SUM(SA28:SB28) -> 44% | SH29: =SH28/SUM(SH28:SI28) -> 94% | SI29: =SI28/SUM(SH28:SI28) -> 6% | SO29: =SO28/SUM(SO28:SP28) -> 94% | SP29: =SP28/SUM(SO28:SP28) -> 6% | SV29: =SV28/SUM(SV28:SW28) -> 94% | SW29: =SW28/SUM(SV28:SW28) -> 6% | TC29: =TC28/SUM(TC28:TD28) -> 38% | TD29: =TD28/SUM(TC28:TD28) -> 63% | TJ29: =TJ28/SUM(TJ28:TK28) -> 31% | TK29: =TK28/SUM(TJ28:TK28) -> 69% | TQ29: =TQ28/SUM(TQ28:TR28) -> 94% | TR29: =TR28/SUM(TQ28:TR28) -> 6% | TX29: =TX28/SUM(TX28:TY28) -> 31% | TY29: =TY28/SUM(TX28:TY28) -> 69% | UE29: =UE28/SUM(UE28:UF28) -> 94% | UF29: =UF28/SUM(UE28:UF28) -> 6% | UL29: =UL28/SUM(UL28:UM28) -> 75% | UM29: =UM28/SUM(UL28:UM28) -> 25% | US29: =US28/SUM(US28:UT28) -> 94% | UT29: =UT28/SUM(US28:UT28) -> 6% | UZ29: =UZ28/SUM(UZ28:VA28) -> 19% | VA29: =VA28/SUM(UZ28:VA28) -> 81% | VG29: =VG28/SUM(VG28:VH28) -> 13% | VH29: =VH28/SUM(VG28:VH28) -> 88% | VN29: =VN28/SUM(VN28:VO28) -> 94% | VO29: =VO28/SUM(VN28:VO28) -> 6% | VU29: =VU28/SUM(VU28:VV28) -> 94% | VV29: =VV28/SUM(VU28:VV28) -> 6%
D31: Pr(a) | E31: =(E26+F27)/G28 -> 1.00 | K31: Pr(a) | L31: =(L26+M27)/N28 -> 1.00 | R31: Pr(a) | S31: =(S26+T27)/U28 -> 1.00 | Y31: Pr(a) | Z31: =(Z26+AA27)/AB28 -> 1.00 | AF31: Pr(a) | AG31: =(AG26+AH27)/AI28 -> 0.81 | AM31: Pr(a) | AN31: =(AN26+AO27)/AP28 -> 1.00 | AT31: Pr(a) | AU31: =(AU26+AV27)/AW28 -> 0.81 | BA31: Pr(a) | BB31: =(BB26+BC27)/BD28 -> 1.00 | BH31: Pr(a) | BI31: =(BI26+BJ27)/BK28 -> 0.75 | BO31: Pr(a) | BP31: =(BP26+BQ27)/BR28 -> 0.81 | BV31: Pr(a) | BW31: =(BW26+BX27)/BY28 -> 1.00 | CC31: Pr(a) | CD31: =(CD26+CE27)/CF28 -> 1.00 | CJ31: Pr(a) | CK31: =(CK26+CL27)/CM28 -> 0.81 | CQ31: Pr(a) | CR31: =(CR26+CS27)/CT28 -> 1.00 | CX31: Pr(a) | CY31: =(CY26+CZ27)/DA28 -> 1.00 | DE31: Pr(a) | DF31: =(DF26+DG27)/DH28 -> 1.00 | DL31: Pr(a) | DM31: =(DM26+DN27)/DO28 -> 0.94 | DS31: Pr(a) | DT31: =(DT26+DU27)/DV28 -> 1.00 | DZ31: Pr(a) | EA31: =(EA26+EB27)/EC28 -> 0.69 | EG31: Pr(a) | EH31: =(EH26+EI27)/EJ28 -> 0.88 | EN31: Pr(a) | EO31: =(EO26+EP27)/EQ28 -> 0.94 | EU31: Pr(a) | EV31: =(EV26+EW27)/EX28 -> 0.56 | FB31: Pr(a) | FC31: =(FC26+FD27)/FE28 -> 1.00 | FI31: Pr(a) | FJ31: =(FJ26+FK27)/FL28 -> 1.00 | FP31: Pr(a) | FQ31: =(FQ26+FR27)/FS28 -> 1.00 | FW31: Pr(a) | FX31: =(FX26+FY27)/FZ28 -> 0.69 | GD31: Pr(a) | GE31: =(GE26+GF27)/GG28 -> 0.94 | GK31: Pr(a) | GL31: =(GL26+GM27)/GN28 -> 0.94 | GR31: Pr(a) | GS31: =(GS26+GT27)/GU28 -> 0.94 | GY31: Pr(a) | GZ31: =(GZ26+HA27)/HB28 -> 1.00 | HF31: Pr(a) | HG31: =(HG26+HH27)/HI28 -> 1.00 | HM31: Pr(a) | HN31: =(HN26+HO27)/HP28 -> 0.94 | HT31: Pr(a) | HU31: =(HU26+HV27)/HW28 -> 0.63 | IA31: Pr(a) | IB31: =(IB26+IC27)/ID28 -> 0.94 | IH31: Pr(a) | II31: =(II26+IJ27)/IK28 -> 0.94 | IO31: Pr(a) | IP31: =(IP26+IQ27)/IR28 -> 0.94 | IV31: Pr(a) | IW31: =(IW26+IX27)/IY28 -> 0.88 | JC31: Pr(a) | JD31: =(JD26+JE27)/JF28 -> 0.88 | JJ31: Pr(a) | JK31: =(JK26+JL27)/JM28 -> 0.88 | JQ31: Pr(a) | JR31: =(JR26+JS27)/JT28 -> 0.88 | JX31: Pr(a) | JY31: =(JY26+JZ27)/KA28 -> 0.88 | KE31: Pr(a) | KF31: =(KF26+KG27)/KH28 -> 0.88 | KL31: Pr(a) | KM31: =(KM26+KN27)/KO28 -> 1.00 | KS31: Pr(a) | KT31: =(KT26+KU27)/KV28 -> 1.00 | KZ31: Pr(a) | LA31: =(LA26+LB27)/LC28 -> 0.88 | LG31: Pr(a) | LH31: =(LH26+LI27)/LJ28 -> 1.00 | LN31: Pr(a) | LO31: =(LO26+LP27)/LQ28 -> 1.00 | LU31: Pr(a) | LV31: =(LV26+LW27)/LX28 -> 1.00 | MB31: Pr(a) | MC31: =(MC26+MD27)/ME28 -> 0.81 | MI31: Pr(a) | MJ31: =(MJ26+MK27)/ML28 -> 1.00 | MP31: Pr(a) | MQ31: =(MQ26+MR27)/MS28 -> 0.44 | MW31: Pr(a) | MX31: =(MX26+MY27)/MZ28 -> 0.81 | ND31: Pr(a) | NE31: =(NE26+NF27)/NG28 -> 1.00 | NK31: Pr(a) | NL31: =(NL26+NM27)/NN28 -> 0.94 | NR31: Pr(a) | NS31: =(NS26+NT27)/NU28 -> 0.88 | NY31: Pr(a) | NZ31: =(NZ26+OA27)/OB28 -> 0.69 | OF31: Pr(a) | OG31: =(OG26+OH27)/OI28 -> 0.75 | OM31: Pr(a) | ON31: =(ON26+OO27)/OP28 -> 0.75 | OT31: Pr(a) | OU31: =(OU26+OV27)/OW28 -> 0.81 | PA31: Pr(a) | PB31: =(PB26+PC27)/PD28 -> 0.75 | PH31: Pr(a) | PI31: =(PI26+PJ27)/PK28 -> 0.75 | PO31: Pr(a) | PP31: =(PP26+PQ27)/PR28 -> 0.75 | PV31: Pr(a) | PW31: =(PW26+PX27)/PY28 -> 0.44 | QC31: Pr(a) | QD31: =(QD26+QE27)/QF28 -> 0.94 | QJ31: Pr(a) | QK31: =(QK26+QL27)/QM28 -> 0.94 | QQ31: Pr(a) | QR31: =(QR26+QS27)/QT28 -> 0.69 | QX31: Pr(a) | QY31: =(QY26+QZ27)/RA28 -> 0.63 | RE31: Pr(a) | RF31: =(RF26+RG27)/RH28 -> 1.00 | RL31: Pr(a) | RM31: =(RM26+RN27)/RO28 -> 1.00 | RS31: Pr(a) | RT31: =(RT26+RU27)/RV28 -> 1.00 | RZ31: Pr(a) | SA31: =(SA26+SB27)/SC28 -> 0.88 | SG31: Pr(a) | SH31: =(SH26+SI27)/SJ28 -> 1.00 | SN31: Pr(a) | SO31: =(SO26+SP27)/SQ28 -> 1.00 | SU31: Pr(a) | SV31: =(SV26+SW27)/SX28 -> 1.00 | TB31: Pr(a) | TC31: =(TC26+TD27)/TE28 -> 0.88 | TI31: Pr(a) | TJ31: =(TJ26+TK27)/TL28 -> 0.63 | TP31: Pr(a) | TQ31: =(TQ26+TR27)/TS28 -> 1.00 | TW31: Pr(a) | TX31: =(TX26+TY27)/TZ28 -> 0.69 | UD31: Pr(a) | UE31: =(UE26+UF27)/UG28 -> 1.00 | UK31: Pr(a) | UL31: =(UL26+UM27)/UN28 -> 0.81 | UR31: Pr(a) | US31: =(US26+UT27)/UU28 -> 0.94 | UY31: Pr(a) | UZ31: =(UZ26+VA27)/VB28 -> 0.63 | VF31: Pr(a) | VG31: =(VG26+VH27)/VI28 -> 0.69 | VM31: Pr(a) | VN31: =(VN26+VO27)/VP28 -> 1.00 | VT31: Pr(a) | VU31: =(VU26+VV27)/VW28 -> 0.94
D32: Pr(e) | E32: =E29*H26+F29*H27 -> 0.88 | K32: Pr(e) | L32: =L29*O26+M29*O27 -> 0.88 | R32: Pr(e) | S32: =S29*V26+T29*V27 -> 0.88 | Y32: Pr(e) | Z32: =Z29*AC26+AA29*AC27 -> 0.88 | AF32: Pr(e) | AG32: =AG29*AJ26+AH29*AJ27 -> 0.66 | AM32: Pr(e) | AN32: =AN29*AQ26+AO29*AQ27 -> 0.88 | AT32: Pr(e) | AU32: =AU29*AX26+AV29*AX27 -> 0.55 | BA32: Pr(e) | BB32: =BB29*BE26+BC29*BE27 -> 0.88 | BH32: Pr(e) | BI32: =BI29*BL26+BJ29*BL27 -> 0.50 | BO32: Pr(e) | BP32: =BP29*BS26+BQ29*BS27 -> 0.66 | BV32: Pr(e) | BW32: =BW29*BZ26+BX29*BZ27 -> 0.88 | CC32: Pr(e) | CD32: =CD29*CG26+CE29*CG27 -> 0.88 | CJ32: Pr(e) | CK32: =CK29*CN26+CL29*CN27 -> 0.50 | CQ32: Pr(e) | CR32: =CR29*CU26+CS29*CU27 -> 0.88 | CX32: Pr(e) | CY32: =CY29*DB26+CZ29*DB27 -> 0.88 | DE32: Pr(e) | DF32: =DF29*DI26+DG29*DI27 -> 0.88 | DL32: Pr(e) | DM32: =DM29*DP26+DN29*DP27 -> 0.55 | DS32: Pr(e) | DT32: =DT29*DW26+DU29*DW27 -> 0.88 | DZ32: Pr(e) | EA32: =EA29*ED26+EB29*ED27 -> 0.50 | EG32: Pr(e) | EH32: =EH29*EK26+EI29*EK27 -> 0.53 | EN32: Pr(e) | EO32: =EO29*ER26+EP29*ER27 -> 0.94 | EU32: Pr(e) | EV32: =EV29*EY26+EW29*EY27 -> 0.50 | FB32: Pr(e) | FC32: =FC29*FF26+FD29*FF27 -> 0.88 | FI32: Pr(e) | FJ32: =FJ29*FM26+FK29*FM27 -> 0.88 | FP32: Pr(e) | FQ32: =FQ29*FT26+FR29*FT27 -> 1.00 | FW32: Pr(e) | FX32: =FX29*GA26+FY29*GA27 -> 0.53 | GD32: Pr(e) | GE32: =GE29*GH26+GF29*GH27 -> 0.94 | GK32: Pr(e) | GL32: =GL29*GO26+GM29*GO27 -> 0.94 | GR32: Pr(e) | GS32: =GS29*GV26+GT29*GV27 -> 0.94 | GY32: Pr(e) | GZ32: =GZ29*HC26+HA29*HC27 -> 0.88 | HF32: Pr(e) | HG32: =HG29*HJ26+HH29*HJ27 -> 0.88 | HM32: Pr(e) | HN32: =HN29*HQ26+HO29*HQ27 -> 0.94 | HT32: Pr(e) | HU32: =HU29*HX26+HV29*HX27 -> 0.50 | IA32: Pr(e) | IB32: =IB29*IE26+IC29*IE27 -> 0.94 | IH32: Pr(e) | II32: =II29*IL26+IJ29*IL27 -> 0.94 | IO32: Pr(e) | IP32: =IP29*IS26+IQ29*IS27 -> 0.94 | IV32: Pr(e) | IW32: =IW29*IZ26+IX29*IZ27 -> 0.88 | JC32: Pr(e) | JD32: =JD29*JG26+JE29*JG27 -> 0.56 | JJ32: Pr(e) | JK32: =JK29*JN26+JL29*JN27 -> 0.62 | JQ32: Pr(e) | JR32: =JR29*JU26+JS29*JU27 -> 0.77 | JX32: Pr(e) | JY32: =JY29*KB26+JZ29*KB27 -> 0.77 | KE32: Pr(e) | KF32: =KF29*KI26+KG29*KI27 -> 0.52 | KL32: Pr(e) | KM32: =KM29*KP26+KN29*KP27 -> 0.88 | KS32: Pr(e) | KT32: =KT29*KW26+KU29*KW27 -> 0.50 | KZ32: Pr(e) | LA32: =LA29*LD26+LB29*LD27 -> 0.51 | LG32: Pr(e) | LH32: =LH29*LK26+LI29*LK27 -> 0.88 | LN32: Pr(e) | LO32: =LO29*LR26+LP29*LR27 -> 0.57 | LU32: Pr(e) | LV32: =LV29*LY26+LW29*LY27 -> 0.88 | MB32: Pr(e) | MC32: =MC29*MF26+MD29*MF27 -> 0.66 | MI32: Pr(e) | MJ32: =MJ29*MM26+MK29*MM27 -> 0.88 | MP32: Pr(e) | MQ32: =MQ29*MT26+MR29*MT27 -> 0.34 | MW32: Pr(e) | MX32: =MX29*NA26+MY29*NA27 -> 0.59 | ND32: Pr(e) | NE32: =NE29*NH26+NF29*NH27 -> 0.88 | NK32: Pr(e) | NL32: =NL29*NO26+NM29*NO27 -> 0.94 | NR32: Pr(e) | NS32: =NS29*NV26+NT29*NV27 -> 0.77 | NY32: Pr(e) | NZ32: =NZ29*OC26+OA29*OC27 -> 0.50 | OF32: Pr(e) | OG32: =OG29*OJ26+OH29*OJ27 -> 0.50 | OM32: Pr(e) | ON32: =ON29*OQ26+OO29*OQ27 -> 0.51 | OT32: Pr(e) | OU32: =OU29*OX26+OV29*OX27 -> 0.52 | PA32: Pr(e) | PB32: =PB29*PE26+PC29*PE27 -> 0.50 | PH32: Pr(e) | PI32: =PI29*PL26+PJ29*PL27 -> 0.49 | PO32: Pr(e) | PP32: =PP29*PS26+PQ29*PS27 -> 0.50 | PV32: Pr(e) | PW32: =PW29*PZ26+PX29*PZ27 -> 0.55 | QC32: Pr(e) | QD32: =QD29*QG26+QE29*QG27 -> 0.55 | QJ32: Pr(e) | QK32: =QK29*QN26+QL29*QN27 -> 0.52 | QQ32: Pr(e) | QR32: =QR29*QU26+QS29*QU27 -> 0.55 | QX32: Pr(e) | QY32: =QY29*RB26+QZ29*RB27 -> 0.55 | RE32: Pr(e) | RF32: =RF29*RI26+RG29*RI27 -> 0.88 | RL32: Pr(e) | RM32: =RM29*RP26+RN29*RP27 -> 0.88 | RS32: Pr(e) | RT32: =RT29*RW26+RU29*RW27 -> 0.88 | RZ32: Pr(e) | SA32: =SA29*SD26+SB29*SD27 -> 0.52 | SG32: Pr(e) | SH32: =SH29*SK26+SI29*SK27 -> 0.88 | SN32: Pr(e) | SO32: =SO29*SR26+SP29*SR27 -> 0.88 | SU32: Pr(e) | SV32: =SV29*SY26+SW29*SY27 -> 0.88 | TB32: Pr(e) | TC32: =TC29*TF26+TD29*TF27 -> 0.50 | TI32: Pr(e) | TJ32: =TJ29*TM26+TK29*TM27 -> 0.43 | TP32: Pr(e) | TQ32: =TQ29*TT26+TR29*TT27 -> 0.88 | TW32: Pr(e) | TX32: =TX29*UA26+TY29*UA27 -> 0.55 | UD32: Pr(e) | UE32: =UE29*UH26+UF29*UH27 -> 0.88 | UK32: Pr(e) | UL32: =UL29*UO26+UM29*UO27 -> 0.72 | UR32: Pr(e) | US32: =US29*UV26+UT29*UV27 -> 0.94 | UY32: Pr(e) | UZ32: =UZ29*VC26+VA29*VC27 -> 0.54 | VF32: Pr(e) | VG32: =VG29*VJ26+VH29*VJ27 -> 0.64 | VM32: Pr(e) | VN32: =VN29*VQ26+VO29*VQ27 -> 0.88 | VT32: Pr(e) | VU32: =VU29*VX26+VV29*VX27 -> 0.94
D33: k | E33: =(E31-E32)/(1-E32) -> 1.00 | K33: k | L33: =(L31-L32)/(1-L32) -> 1.00 | R33: k | S33: =(S31-S32)/(1-S32) -> 1.00 | Y33: k | Z33: =(Z31-Z32)/(1-Z32) -> 1.00 | AF33: k | AG33: =(AG31-AG32)/(1-AG32) -> 0.45 | AM33: k | AN33: =(AN31-AN32)/(1-AN32) -> 1.00 | AT33: k | AU33: =(AU31-AU32)/(1-AU32) -> 0.59 | BA33: k | BB33: =(BB31-BB32)/(1-BB32) -> 1.00 | BH33: k | BI33: =(BI31-BI32)/(1-BI32) -> 0.50 | BO33: k | BP33: =(BP31-BP32)/(1-BP32) -> 0.45 | BV33: k | BW33: =(BW31-BW32)/(1-BW32) -> 1.00 | CC33: k | CD33: =(CD31-CD32)/(1-CD32) -> 1.00 | CJ33: k | CK33: =(CK31-CK32)/(1-CK32) -> 0.63 | CQ33: k | CR33: =(CR31-CR32)/(1-CR32) -> 1.00 | CX33: k | CY33: =(CY31-CY32)/(1-CY32) -> 1.00 | DE33: k | DF33: =(DF31-DF32)/(1-DF32) -> 1.00 | DL33: k | DM33: =(DM31-DM32)/(1-DM32) -> 0.86 | DS33: k | DT33: =(DT31-DT32)/(1-DT32) -> 1.00 | DZ33: k | EA33: =(EA31-EA32)/(1-EA32) -> 0.38 | EG33: k | EH33: =(EH31-EH32)/(1-EH32) -> 0.73 | EN33: k | EO33: =(EO31-EO32)/(1-EO32) -> 0.00 | EU33: k | EV33: =(EV31-EV32)/(1-EV32) -> 0.13 | FB33: k | FC33: =(FC31-FC32)/(1-FC32) -> 1.00 | FI33: k | FJ33: =(FJ31-FJ32)/(1-FJ32) -> 1.00 | FP33: k | FQ33: ERROR | FW33: k | FX33: =(FX31-FX32)/(1-FX32) -> 0.33 | GD33: k | GE33: =(GE31-GE32)/(1-GE32) -> 0.00 | GK33: k | GL33: =(GL31-GL32)/(1-GL32) -> 0.00 | GR33: k | GS33: =(GS31-GS32)/(1-GS32) -> 0.00 | GY33: k | GZ33: =(GZ31-GZ32)/(1-GZ32) -> 1.00 | HF33: k | HG33: =(HG31-HG32)/(1-HG32) -> 1.00 | HM33: k | HN33: =(HN31-HN32)/(1-HN32) -> 0.00 | HT33: k | HU33: =(HU31-HU32)/(1-HU32) -> 0.25 | IA33: k | IB33: =(IB31-IB32)/(1-IB32) -> 0.00 | IH33: k | II33: =(II31-II32)/(1-II32) -> 0.00 | IO33: k | IP33: =(IP31-IP32)/(1-IP32) -> 0.00 | IV33: k | IW33: =(IW31-IW32)/(1-IW32) -> 0.00 | JC33: k | JD33: =(JD31-JD32)/(1-JD32) -> 0.71 | JJ33: k | JK33: =(JK31-JK32)/(1-JK32) -> 0.67 | JQ33: k | JR33: =(JR31-JR32)/(1-JR32) -> 0.45 | JX33: k | JY33: =(JY31-JY32)/(1-JY32) -> 0.45 | KE33: k | KF33: =(KF31-KF32)/(1-KF32) -> 0.74 | KL33: k | KM33: =(KM31-KM32)/(1-KM32) -> 1.00 | KS33: k | KT33: =(KT31-KT32)/(1-KT32) -> 1.00 | KZ33: k | LA33: =(LA31-LA32)/(1-LA32) -> 0.75 | LG33: k | LH33: =(LH31-LH32)/(1-LH32) -> 1.00 | LN33: k | LO33: =(LO31-LO32)/(1-LO32) -> 1.00 | LU33: k | LV33: =(LV31-LV32)/(1-LV32) -> 1.00 | MB33: k | MC33: =(MC31-MC32)/(1-MC32) -> 0.45 | MI33: k | MJ33: =(MJ31-MJ32)/(1-MJ32) -> 1.00 | MP33: k | MQ33: =(MQ31-MQ32)/(1-MQ32) -> 0.14 | MW33: k | MX33: =(MX31-MX32)/(1-MX32) -> 0.54 | ND33: k | NE33: =(NE31-NE32)/(1-NE32) -> 1.00 | NK33: k | NL33: =(NL31-NL32)/(1-NL32) -> 0.00 | NR33: k | NS33: =(NS31-NS32)/(1-NS32) -> 0.45 | NY33: k | NZ33: =(NZ31-NZ32)/(1-NZ32) -> 0.38 | OF33: k | OG33: =(OG31-OG32)/(1-OG32) -> 0.50 | OM33: k | ON33: =(ON31-ON32)/(1-ON32) -> 0.49 | OT33: k | OU33: =(OU31-OU32)/(1-OU32) -> 0.61 | PA33: k | PB33: =(PB31-PB32)/(1-PB32) -> 0.50 | PH33: k | PI33: =(PI31-PI32)/(1-PI32) -> 0.51 | PO33: k | PP33: =(PP31-PP32)/(1-PP32) -> 0.50 | PV33: k | PW33: =(PW31-PW32)/(1-PW32) -> -0.24 | QC33: k | QD33: =(QD31-QD32)/(1-QD32) -> 0.86 | QJ33: k | QK33: =(QK31-QK32)/(1-QK32) -> 0.87 | QQ33: k | QR33: =(QR31-QR32)/(1-QR32) -> 0.31 | QX33: k | QY33: =(QY31-QY32)/(1-QY32) -> 0.16 | RE33: k | RF33: =(RF31-RF32)/(1-RF32) -> 1.00 | RL33: k | RM33: =(RM31-RM32)/(1-RM32) -> 1.00 | RS33: k | RT33: =(RT31-RT32)/(1-RT32) -> 1.00 | RZ33: k | SA33: =(SA31-SA32)/(1-SA32) -> 0.74 | SG33: k | SH33: =(SH31-SH32)/(1-SH32) -> 1.00 | SN33: k | SO33: =(SO31-SO32)/(1-SO32) -> 1.00 | SU33: k | SV33: =(SV31-SV32)/(1-SV32) -> 1.00 | TB33: k | TC33: =(TC31-TC32)/(1-TC32) -> 0.75 | TI33: k | TJ33: =(TJ31-TJ32)/(1-TJ32) -> 0.34 | TP33: k | TQ33: =(TQ31-TQ32)/(1-TQ32) -> 1.00 | TW33: k | TX33: =(TX31-TX32)/(1-TX32) -> 0.31 | UD33: k | UE33: =(UE31-UE32)/(1-UE32) -> 1.00 | UK33: k | UL33: =(UL31-UL32)/(1-UL32) -> 0.33 | UR33: k | US33: =(US31-US32)/(1-US32) -> 0.00 | UY33: k | UZ33: =(UZ31-UZ32)/(1-UZ32) -> 0.19 | VF33: k | VG33: =(VG31-VG32)/(1-VG32) -> 0.13 | VM33: k | VN33: =(VN31-VN32)/(1-VN32) -> 1.00 | VT33: k | VU33: =(VU31-VU32)/(1-VU32) -> 0.00
A34: Average k | B34: =AVERAGE(33:33) -> 0.61
A35: St deviation k | B35: =STDEV(33:33) -> 0.38

Sheet Column1
A1: Race/Ethnicity Tool | D1: Onaona | Q1: Tanya | AO1: Kim | BM1: Archie
D2: Ariel | AB2: Mira | BA2: Rishi | BZ2: Onaona
D3: Multicenter Study of the Treatment of Appendicitis in America: Acute, Perforated, and Gangrenous (MUSTANG), an EAST Multicenter Study. | E3: EAST multicenter trial of simulation-based team training for pediatric trauma: Resuscitation task completion is highly variable during simulated traumatic brain injury resuscitation. | F3: Colorectal resection in emergency general surgery: An EAST multicenter trial. | G3: Contemporary management of traumatic cervical and thoracic esophageal perforation: The results of an Eastern Association for the Surgery of Trauma multi-institutional study. | H3: Safe phlebotomy reduction in stable pediatric liver and spleen injuries. | I3: Blunt small bowel perforation (SBP): An Eastern Association for the Surgery of Trauma multicenter update 15 years later. | J3: Outcomes in patients with gunshot wounds to the brain. | K3: Predictors of retained hemothorax in trauma: Results of an Eastern Association for the Surgery of Trauma multi-institutional trial. | L3: Screening for Harassment, Abuse, and Discrimination among Surgery Residents: An EAST Multicenter Trial. | M3: Prospective validation of the Emergency Surgery Score in emergencygeneral surgery: An Eastern Association for the Surgery of Trauma multicenter study. | N3: Timing and volume of crystalloid and blood products in pediatric trauma: An Eastern Association for the Surgery of Trauma multicenter prospectiveobservational study. | O3: Loop ileostomy versus total colectomy as surgical treatment for Clostridiumdifficile-associated disease: An Eastern Association for the Surgery of Trauma multicenter trial. | P3: Infection after penetrating brain injury-An Eastern Association for the Surgery of Trauma multicenter study oral presentation at the 32nd annual meeting of the Eastern Association for the Surgery of Trauma, January 15-19, 2019, in Austin, Texas. | Q3: The why and how our trauma patients die: A prospective Multicenter Western Trauma Association study. | R3: Clearing the cervical spine in patients with distracting injuries: An AAST multi-institutional trial. Khan AD, Liebscher SC, Reiser HC, Schroeppel TJ, Anstadt MJ, Bosarge PL, Carroll SL, Quick JA, Barnes SL, Sobrino J, Murry J, Morin N, Gomez M, Consani H, Gonzalez RP.J Trauma Acute Care Surg. 2019 Jan;86(1):28-35. doi: 10.1097/TA.0000000000002063.PMID: 30188422 | S3: Ultrasonographic inferior vena cava diameter response to trauma resuscitation after 1 hour predicts 24-hour fluid requirement. Doucet JJ, Ferrada P, Murthi S, Nirula R, Edwards S, Cantrell E, Han J, Haase D, Singleton A, Birkas Y, Casola G, Coimbra R; AAST Multi-Institutional Trials Committee.J Trauma Acute Care Surg. 2020 Jan;88(1):70-79. doi: 10.1097/TA.0000000000002525.PMID: 31688824 | T3: Prehospital tourniquet use in penetrating extremity trauma: Decreased blood transfusions and limb complications. Smith AA, Ochoa JE, Wong S, Beatty S, Elder J, Guidry C, McGrew P, McGinness C, Duchesne J, Schroll R.J Trauma Acute Care Surg. 2019 Jan;86(1):43-51. doi: 10.1097/TA.0000000000002095.PMID: 30358768 | U3: Trauma ICU Prevalence Project: the diversity of surgical critical care. Michetti CP, Fakhry SM, Brasel K, Martin ND, Teicher EJ, Newcomb A; TRIPP study group.Trauma Surg Acute Care Open. 2019 Feb 18;4(1):e000288. doi: 10.1136/tsaco-2018-000288. eCollection 2019. | V3: NSTI Organisms and Regions: A Multicenter Study From the American Association for the Surgery of Trauma. | W3: Association between home insulation and hospital admission rates: retrospective cohort study using linked data from a national intervention programme | X3: Update to living systematic review on drug treatments for covid-19 | Y3: Does medicine run in the family—evidence from three generations of physicians in Sweden: retrospective observational study | Z3: Association of high profile football matches in Europe with traffic accidents in Asia: archival study | AA3: Effectiveness of hospital clowns for symptom management in paediatrics: systematic review of randomised and non-randomised controlled trials | AB3: Estimating my equilibrium energy intake during lockdown: very introspective study | AC3: Comparative evaluation of clinical manifestations and risk of death in patients admitted to hospital with covid-19 and seasonal influenza: cohort study | AD3: Global, regional, and national estimates of target population sizes for covid-19 vaccination: descriptive study | AE3: Reserving coronavirus disease 2019 vaccines for global access: cross sectional analysis | AF3: Nonsensus in the treatment of proximal humerus fractures: uncontrolled, blinded, comparative behavioural analysis between Homo chirurgicus accidentus and Macaca sylvanus | AG3: Effect of therapeutic suggestions during general anaesthesia on postoperative pain and opioid use: multicentre randomised controlled trial | AH3: The shared risk of diabetes between dog and cat owners and their pets: register based cohort study | AI3: Toxicological analysis of George’s marvellous medicine: literature review | AJ3: Patient mortality after surgery on the surgeon’s birthday: observational study | AK3: The Babinski sign in Renaissance paintings—a reappraisal of the toe phenomenon in representations of the Christ Child: observational analysis | AL3: The time to act is now: pseudo-systematic review | AM3: Association between conflicts of interest and favourable recommendations in clinical guidelines, advisory committee reports, opinion pieces, and narrative reviews: systematic review | AN3: Association between low density lipoprotein and all cause and cause specific mortality in Denmark: prospective cohort study | AO3: Red meat intake and risk of coronary heart disease among US men: prospective cohort study | AP3: Cancer risk in individuals with major birth defects: large Nordic population based case-control study among children, adolescents, and adults | AQ3: Clinical spectrum of coronavirus disease 2019 in Iceland: population based cohort study | AR3: Active conventional treatment and three different biological treatments in early rheumatoid arthritis: phase IV investigator initiated, randomised, observer blinded clinical trial | AS3: Oral rimegepant for preventive treatment of migraine: a phase 2/3, randomised, double-blind, placebo-controlled trial | AT3: Genome-edited, donor-derived allogeneic anti-CD19 chimeric antigen receptor T cells in paediatric and adult B-cell acute lymphoblastic leukaemia: results of two phase 1 studies | AU3: Long-acting cabotegravir and rilpivirine dosed every 2 months in adults with HIV-1 infection (ATLAS-2M), 48-week results: a randomised, multicentre, open-label, phase 3b, non-inferiority study | AV3: Safety and efficacy of the ChAdOx1 nCoV-19 vaccine (AZD1222) against SARS-CoV-2: an interim analysis of four randomised controlled trials in Brazil, South Africa, and the UK | AW3: Global estimates of the need for rehabilitation based on the Global Burden of Disease study 2019: a systematic analysis for the Global Burden of Disease Study 2019 | AX3: Kirpalani H., Bell E.F., Hintz S.R., et al.|N Engl J Med 2020; 383:2639-2651In this open, randomized, multicenter trial involving extremely-low-birth-weight preterm infants, the use of a higher hemoglobin threshold for red-cell transfusion did not improve survival without neurodevelopmental impairment at 22 to 26 months of age, corrected for prematurity. | AY3: Hutchinson P.J., Edlmann E., Bulters D., et al.|N Engl J Med 2020; 383:2616-2627…placebo in patients with symptomatic chronic subdural hematoma. Ethical approval in the United Kingdom was obtained from the North-West Haydock Research and Ethics Committee in 2015. An internal pilot randomized trial, which enrolled 100 patients at seven trial sites, confirmed the operational… | AZ3: Polack F.P., Thomas S.J., Kitchin N., et al.|N Engl J Med 2020; 383:2603-2615Coronavirus disease 2019 (Covid-19) has affected tens of millions of people globally since it was declared a pandemic by the World Health Organization on March 11, 2020. Older adults, persons with certain coexisting conditions, and front-line workers are at highest risk for Covid-19 and its… | BA3: Beck D.B., Ferrada M.A., Sikora K.A., et al.|N Engl J Med 2020; 383:2628-2638…study populations at University College London and Leeds Teaching Hospitals NHS Trust in the United Kingdom. All participants were enrolled in research studies that had been approved by the respective institutional review boards and provided written informed consent. Clinical diagnoses were defined… | BB3: The WHO ACTION Trials Collaborators|N Engl J Med 2020; 383:2514-2525…an expert panel that was subsequently convened by the WHO identified the conduct of efficacy trials in hospitals in low-resource countries as a research priority in order to resolve this controversy and guide clinicians and policymakers on the use of antenatal glucocorticoids. We conducted the WHO… | BC3: Pennell P.B., French J.A., May R.C., et al.|N Engl J Med 2020; 383:2547-2556In a prospective study involving women with epilepsy, the incidence of seizures was similar regardless of whether women were pregnant or not pregnant during similar time periods. Pregnant women had more changes in the dose of anticonvulsant drugs during pregnancy than did nonpregnant women. | BD3: Martínez-Fernández R., Máñez-Miró J.U., Rodríguez-Rojas R., et al.|N Engl J Med 2020; 383:2501-2513Parkinson’s disease is characterized by bradykinesia, rigidity, and resting tremor. Several medical treatments are available, but refractory motor manifestations such as tremor and motor complications impair quality of life for many patients. Deep-brain stimulation of the subthalamic nucleus has… | BE3: Nordanstig J., James S., Andersson M., et al.|N Engl J Med 2020; 383:2538-2546…of Gothenburg, Sweden. Trial management and statistical analyses are performed at the Uppsala Clinical Research Center at Uppsala University. The trial is funded by grants from the Swedish Research Council, the Swedish Heart–Lung Foundation, and Region Västra Götaland. In addition, all the companies… | BF3: Wei A.H., Döhner H., Pocock C., et al.|N Engl J Med 2020; 383:2526-2537Older patients with acute myeloid leukemia were treated with intensive chemotherapy and then randomly assigned to receive placebo or oral azacitidine (CC-486) daily for 14 days per 28-day cycle. CC-486 was associated with significantly longer relapse-free and overall survival, with some gastrointestinal side effects but maintenance of quality of life. | BG3: Lumley S.F., O’Donnell D., Stoesser N.E., et al.|10.1056/NEJMoa2034545…were followed until November 30, 2020. Deidentified data were obtained from the Infections in Oxfordshire Research Database, which has generic research ethics committee, Health ResearchAuthority, and Confidentiality Advisory Group approvals. Laboratory Assays. Serologic investigations were… | BH3: ACTIV-3/TICO LY-CoV555 Study Group|10.1056/NEJMoa2033130…single intravenous infusion over a 1-hour period. The infusion was prepared by trial pharmacists. All other personnel, including investigators and research staff, clinical staff, and patients, were unaware of the trial-group assignments. Other medications were permitted except therapies that may… | BI3: Anderson E.J., Rouphael N.G., Widge A.T., et al.|N Engl J Med 2020; 383:2427-2438…The trial was conducted at Kaiser Permanente Washington Health Research Institute in Seattle, the Emory University School of Medicine in Atlanta, and the National Institute of Allergy and Infectious Diseases (NIAID) Vaccine Research Center in Bethesda, Maryland. Enrolled adults were healthy and… | BJ3: Kasper M.R., Geibe J.R., Sears C.L., et al.|N Engl J Med 2020; 383:2417-2426The U.S.S. Theodore Roosevelt was conducting operations in the western Pacific Ocean when an outbreak of infection with severe acute respiratory syndrome coronavirus 2 (SARS-CoV-2) occurred on board. On identification of the outbreak, the ship was diverted to U.S. Naval Base Guam. The base hospital,… | BK3: Letizia A.G., Ramos I., Obla A., et al.|N Engl J Med 2020; 383:2407-2416U.S. Marine Corps recruits quarantined at home for 2 weeks; after this period, 0.9% were found to be infected with severe acute respiratory syndrome coronavirus 2 (SARS-CoV-2). During a second, supervised 2-week quarantine on a college campus, 1.9% had become newly infected, and most were asymptomatic. | BL3: Walsh E.E., Frenck R.W., Falsey A.R., et al.|N Engl J Med 2020; 383:2439-2450Since the first cases of coronavirus disease 2019 (Covid-19) in Wuhan, China, in December 2019, pandemic illness has spread to millions of persons worldwide. An increased risk of severe disease and death has been noted among the elderly and among persons with preexisting medical conditions. No… | BM3: Weinreich D.M., Sivapalasingam S., Norton T., et al.|10.1056/NEJMoa2035002Severe acute respiratory syndrome coronavirus 2 (SARS-CoV-2), a novel coronavirus first identified in December 2019, is the causative agent of coronavirus disease 2019 (Covid-19). After becoming infected, most persons have few or no symptoms despite having high viral loads, and their condition can… | BN3: Kalil A.C., Patterson T.F., Mehta A.K., et al.|10.1056/NEJMoa2031994In May 2020, the first stage of the Adaptive Covid-19 Treatment Trial (ACTT-1), a randomized, double-blind, placebo-controlled trial, showed that remdesivir is an effective treatment for hospitalized adult patients with coronavirus disease 2019 (Covid-19) pneumonia. Despite the benefits of… | BO3: Rosenson R.S., Burgess L.J., Ebenbichler C.F., et al.|N Engl J Med 2020; 383:2307-2319…designed the trial protocol and selected the participating sites. Clinical trial monitoring and site supervision were performed by a contract research organization with oversight by the sponsor. The sponsor was also involved in the collection, analysis, and interpretation of the data and checked… | BP3: Hussain M., Mateo J., Fizazi K., et al.|N Engl J Med 2020; 383:2345-2357Metastatic castration-resistant prostate cancer remains lethal. Men with deleterious alterations in genes involved in homologous recombination repair, such as BRCA1 and BRCA2, have more aggressive disease and higher mortality than those with proficient homologous recombination repair. The goal of… | BQ3: Keech C., Albert G., Cho I., et al.|N Engl J Med 2020; 383:2320-2332…with funding support from the Coalition for Epidemic Preparedness Innovations. The trial protocol was approved by the Alfred Hospital Human Research Ethics Committee (Melbourne) and was performed in accordance with the International Council for Harmonisation Good Clinical Practice guidelines.… | BR3: Stone J.H., Frigault M.J., Serling-Boyd N.J., et al.|N Engl J Med 2020; 383:2333-2344Infections with severe acute respiratory syndrome coronavirus 2 (SARS-CoV-2), the virus that causes coronavirus disease 2019 (Covid-19), now number more than 7 million in the United States. At the peak of the pandemic to date, more than 1000 Americans died from Covid-19 each day, and more than… | BS3: Frangoul H., Altshuler D., Cappellini M.D., et al.|10.1056/NEJMoa2031054Transfusion-dependent β-thalassemia (TDT) and sickle cell disease (SCD) are the most common monogenic diseases worldwide, with an annual diagnosis in approximately 60,000 patients with TDT and 300,000 patients with SCD. Both diseases are caused by mutations in the hemoglobin β subunit gene (HBB).… | BT3: Esrick E.B., Lehmann L.E., Biffi A., et al.|10.1056/NEJMoa2029392Sickle cell disease is a common inherited disease affecting approximately 100,000 persons in the United States; worldwide, about 400,000 infants are born with sickle cell disease each year. Sickle hemoglobin (HbS) is a variant of normal adult hemoglobin (HbA) that is produced when the β-globin gene… | BU3: Kwambai T.K., Dhabangi A., Idro R., et al.|N Engl J Med 2020; 383:2242-2254…Medical Research Institute, Makerere University School of Medicine, the Western Norway Regional Committee for Medical and Health Research Ethics, and the Liverpool School of Tropical Medicine. This article is published with the permission of the director of the Kenya Medical ResearchInstitute.… | BV3: Bakris G.L., Agarwal R., Anker S.D., et al.|N Engl J Med 2020; 383:2219-2229Type 2 diabetes is the leading cause of chronic kidney disease (CKD) worldwide. International guidelines for the management of CKD in patients with type 2 diabetes recommend control of hypertension and hyperglycemia, as well as the use of a renin–angiotensin system (RAS) blocker (an… | BW3: André T., Shiu K.-K., Kim T.W., et al.|N Engl J Med 2020; 383:2207-2218Colorectal cancer is clinically defined by its tissue of origin in the colon or rectum, but it is a heterogeneous disease classified by its genetics. Despite well-known genetic differences in the disease, chemotherapy treatment of colorectal cancer is largely uniform. Patients with newly diagnosed… | BX3: Martínez V.P., Di Paola N., Alonso D.O., et al.|N Engl J Med 2020; 383:2230-2241In late 2018, Andes virus was identified as the cause of an outbreak of hantavirus pulmonary syndrome in Argentina. This outbreak was associated with 34 confirmed infections and 11 deaths. A detailed investigation identified person-to-person transmission that was driven by three symptomatic persons. | BY3: WHO Solidarity Trial Consortium|10.1056/NEJMoa2023184In February 2020, a World Health Organization (WHO) research forum on coronavirus disease 2019 (Covid-19) recommended evaluation of treatments in large, randomized trials, and other WHO expert groups identified four repurposed antiviral drugs that might have at least a moderate effect on mortality:… | BZ3: Association of First Primary Cancer With Risk of Subsequent Primary Cancer Among Survivors of Adult-Onset Cancers in the United States | CA3: Effect of Digoxin vs Bisoprolol for Heart Rate Control in Atrial Fibrillation on Patient-Reported Quality of Life: The RATE-AF Randomized Clinical Trial | CB3: Effect of a Lower vs Higher Positive End-Expiratory Pressure Strategy on Ventilator-Free Days in ICU Patients Without ARDS: A Randomized Clinical Trial | CC3: Effect of Intravitreous Aflibercept vs Vitrectomy With Panretinal Photocoagulation on Visual Acuity in Patients With Vitreous Hemorrhage From Proliferative Diabetic Retinopathy: A Randomized Clinical Trial | CD3: Association Between Adherence to Fractional Flow Reserve Treatment Thresholds and Major Adverse Cardiac Events in Patients With Coronary Artery Disease | CE3: Association Between Depressive Symptoms and Incident Cardiovascular Diseases | CF3: Effect of Co-trimoxazole (Trimethoprim-Sulfamethoxazole) vs Placebo on Death, Lung Transplant, or Hospital Admission in Patients With Moderate and Severe Idiopathic Pulmonary Fibrosis: The EME-TIPAC Randomized Clinical Trial | CG3: Effect of High-Dose Omega-3 Fatty Acids vs Corn Oil on Major Adverse Cardiovascular Events in Patients at High Cardiovascular Risk: The STRENGTH Randomized Clinical Trial | CH3: Effect of Hydroxychloroquine on Clinical Status at 14 Days in Hospitalized Patients With COVID-19: A Randomized Clinical Trial | CI3: Association of Use of a Meningococcus Group B Vaccine With Group B Invasive Meningococcal Disease Among Children in Portugal | CJ3: Effect of Cannabidiol and Δ 9 -Tetrahydrocannabinol on Driving Performance: A Randomized Clinical Trial
D4: =21/21 -> 1 | E4: =21/21 -> 1 | F4: =21/21 -> 1 | G4: =21/21 -> 1 | H4: =(18/21) -> 0.8571428571 | I4: =21/21 -> 1 | J4: =20/21 -> 0.9523809524 | K4: =21/21 -> 1 | L4: =18/21 -> 0.8571428571 | M4: =18/21 -> 0.8571428571 | N4: =21/21 -> 1 | O4: =21/21 -> 1 | P4: =20/21 -> 0.9523809524 | Q4: 1 | R4: 1 | S4: 1 | T4: 1 | U4: 1 | V4: =17/21 -> 0.8095238095 | W4: =20/21 -> 0.9523809524 | X4: 1 | Y4: =(21-7)/21 -> 0.6666666667 | Z4: 1 | AA4: 1 | AB4: 1 | AC4: =(21-3)/21 -> 0.8571428571 | AD4: 1 | AE4: 1 | AF4: 1 | AG4: 1 | AH4: 1 | AI4: 1 | AJ4: =(21-7)/21 -> 0.6666666667 | AK4: 1 | AL4: 1 | AM4: 1 | AN4: =20/21 -> 0.9523809524 | AO4: =19/21 -> 0.9047619048 | AP4: =18/21 -> 0.8571428571 | AQ4: =18/21 -> 0.8571428571 | AR4: =18/21 -> 0.8571428571 | AS4: =19/21 -> 0.9047619048 | AT4: =21/21 -> 1 | AU4: =21/21 -> 1 | AV4: =19/21 -> 0.9047619048 | AW4: =21/21 -> 1 | AX4: =21/21 -> 1 | AY4: =21/21 -> 1 | AZ4: =18/21 -> 0.8571428571 | BA4: =21/21 -> 1 | BB4: =13/21 -> 0.619047619 | BC4: =20/21 -> 0.9523809524 | BD4: =21/21 -> 1 | BE4: =20/21 -> 0.9523809524 | BF4: =19/21 -> 0.9047619048 | BG4: =18/21 -> 0.8571428571 | BH4: =19/21 -> 0.9047619048 | BI4: =18/21 -> 0.8571428571 | BJ4: =19/21 -> 0.9047619048 | BK4: =18/21 -> 0.8571428571 | BL4: =19/21 -> 0.9047619048 | BM4: =17/21 -> 0.8095238095 | BN4: =12/21 -> 0.5714285714 | BO4: =20/21 -> 0.9523809524 | BP4: =19/21 -> 0.9047619048 | BQ4: =16/21 -> 0.7619047619 | BR4: =15/21 -> 0.7142857143 | BS4: =21/21 -> 1 | BT4: =21/21 -> 1 | BU4: =21/21 -> 1 | BV4: =19/21 -> 0.9047619048 | BW4: =21/21 -> 1 | BX4: =21/21 -> 1 | BY4: =21/21 -> 1 | BZ4: =20/21 -> 0.9523809524 | CA4: =16/21 -> 0.7619047619 | CB4: =21/21 -> 1 | CC4: =17/21 -> 0.8095238095 | CD4: =21/21 -> 1 | CE4: =15/21 -> 0.7142857143 | CF4: =21/21 -> 1 | CG4: =16/21 -> 0.7619047619 | CH4: =(21-4)/21 -> 0.8095238095 | CI4: =21/21 -> 1 | CJ4: =21/21 -> 1 | CR4: =AVERAGE(D4:CQ4) -> 0.9254901961
D5: 1 | E5: 1 | F5: 1 | G5: 1 | H5: =(16-3)/16 -> 0.8125 | I5: 1 | J5: =(16-1)/16 -> 0.9375 | K5: 1 | L5: =(16-3)/16 -> 0.8125 | M5: =(16-3)/16 -> 0.8125 | N5: 1 | O5: 1 | P5: =(16-1)/16 -> 0.9375 | Q5: 1 | R5: 1 | S5: 1 | T5: 1 | U5: 1 | V5: =(16-4)/16 -> 0.75 | W5: =(16-1)/16 -> 0.9375 | X5: 1 | Y5: =9/16 -> 0.5625 | Z5: 1 | AA5: 1 | AB5: 1 | AC5: =(16-3)/16 -> 0.8125 | AD5: 1 | AE5: 1 | AF5: 1 | AG5: 1 | AH5: 1 | AI5: 1 | AJ5: =9/16 -> 0.5625 | AK5: 1 | AL5: 1 | AM5: 1 | AN5: =(16-1)/16 -> 0.9375 | AO5: =(16-2)/16 -> 0.875 | AP5: =(16-3)/16 -> 0.8125 | AQ5: =(16-3)/16 -> 0.8125 | AR5: =(16-3)/16 -> 0.8125 | AS5: =(16-2)/16 -> 0.875 | AT5: 1 | AU5: 1 | AV5: =(16-2)/16 -> 0.875 | AW5: 1 | AX5: 1 | AY5: 1 | AZ5: =(16-3)/16 -> 0.8125 | BA5: 1 | BB5: =(16-8)/16 -> 0.5 | BC5: =15/16 -> 0.9375 | BD5: 1 | BE5: =15/16 -> 0.9375 | BF5: =14/16 -> 0.875 | BG5: =13/16 -> 0.8125 | BH5: =14/16 -> 0.875 | BI5: =13/16 -> 0.8125 | BJ5: =14/16 -> 0.875 | BK5: =13/16 -> 0.8125 | BL5: =14/16 -> 0.875 | BM5: =12/16 -> 0.75 | BN5: =7/16 -> 0.4375 | BO5: =15/16 -> 0.9375 | BP5: =14/16 -> 0.875 | BQ5: =9/16 -> 0.5625 | BR5: =10/16 -> 0.625 | BS5: 1 | BT5: 1 | BU5: 1 | BV5: =14/16 -> 0.875 | BW5: 1 | BX5: 1 | BY5: 1 | BZ5: =15/16 -> 0.9375 | CA5: =11/16 -> 0.6875 | CB5: 1 | CC5: =12/16 -> 0.75 | CD5: 1 | CE5: =9/16 -> 0.5625 | CF5: 1 | CG5: =11/16 -> 0.6875 | CH5: =12/16 -> 0.75 | CI5: 1 | CJ5: 1 | CR5: =AVERAGE(D5:CQ5) -> 0.9
A6: Authorship inclusiveness | B6: Author representation of different races or ethnicities | C6: 1 | D6: 1 | E6: 1 | F6: 1 | G6: 1 | H6: 1 | I6: 1 | J6: 1 | K6: 1 | L6: 1 | M6: 1 | N6: 1 | O6: 1 | P6: 1 | Q6: 1 | R6: 1 | S6: 1 | T6: 1 | U6: 1 | V6: 1 | W6: 1 | X6: 1 | Y6: 1 | Z6: 1 | AA6: 1 | AB6: 1 | AC6: 1 | AD6: 1 | AE6: 1 | AF6: 1 | AG6: 1 | AH6: 1 | AI6: 1 | AJ6: 1 | AK6: 1 | AL6: 1 | AM6: 1 | AN6: 1 | AO6: 1 | AP6: 1 | AQ6: 1 | AR6: 1 | AS6: 1 | AT6: 1 | AU6: 1 | AV6: 1 | AW6: 1 | AX6: 1 | AY6: 1 | AZ6: 1 | BA6: 1 | BB6: 1 | BC6: 1 | BD6: 1 | BE6: 0.5 | BF6: 1 | BG6: 1 | BH6: 1 | BI6: 1 | BJ6: 1 | BK6: 1 | BL6: 1 | BM6: 1 | BN6: 1 | BO6: 1 | BP6: 1 | BQ6: 1 | BR6: 1 | BS6: 1 | BT6: 1 | BU6: 1 | BV6: 1 | BW6: 1 | BX6: 1 | BY6: 1 | BZ6: 1 | CA6: 1 | CB6: 1 | CC6: 1 | CD6: 1 | CE6: 1 | CF6: 1 | CG6: 1 | CH6: 1 | CI6: 1 | CJ6: 1 | CR6: =AVERAGE(D6:CQ6) -> 0.9941176471 | CS6: 0.9941176471
A7: Participant inclusiveness | B7: Participant inclusion of different races or why not relevant | C7: 1 | D7: 1 | E7: 1 | F7: 1 | G7: 1 | H7: 0.5 | I7: 1 | J7: 1 | K7: 1 | L7: 1 | M7: 0.5 | N7: 1 | O7: 1 | P7: 1 | Q7: 1 | R7: 1 | S7: 1 | T7: 1 | U7: 0.5 | V7: 1 | W7: 1 | X7: 1 | Y7: 1 | Z7: 0.5 | AA7: 1 | AB7: 1 | AC7: 1 | AD7: 1 | AE7: 1 | AF7: 1 | AG7: 1 | AH7: 1 | AI7: 1 | AJ7: 1 | AK7: 1 | AL7: 1 | AM7: 1 | AN7: 1 | AO7: 0.5 | AP7: 1 | AQ7: 1 | AR7: 1 | AS7: 1 | AT7: 1 | AU7: 1 | AV7: 1 | AW7: 1 | AX7: 1 | AY7: 1 | AZ7: 1 | BA7: 1 | BB7: 0.5 | BC7: 1 | BD7: 1 | BE7: 1 | BF7: 0.5 | BG7: 1 | BH7: 1 | BI7: 1 | BJ7: 1 | BK7: 1 | BL7: 1 | BM7: 1 | BN7: 1 | BO7: 1 | BP7: 1 | BQ7: 1 | BR7: 1 | BS7: 1 | BT7: 1 | BU7: 1 | BV7: 1 | BW7: 1 | BX7: 1 | BY7: 1 | BZ7: 1 | CA7: 1 | CB7: 1 | CC7: 1 | CD7: 1 | CE7: 1 | CF7: 1 | CG7: 1 | CH7: 1 | CI7: 1 | CJ7: 1 | CR7: =AVERAGE(D7:CQ7) -> 0.9588235294 | CS7: 0.9588235294
B8: Participant inclusion of different ethnicities or why not relevant | C8: 1 | D8: 1 | E8: 1 | F8: 1 | G8: 1 | H8: 1 | I8: 1 | J8: 1 | K8: 1 | L8: 0.5 | M8: 1 | N8: 1 | O8: 1 | P8: 1 | Q8: 1 | R8: 1 | S8: 1 | T8: 1 | U8: 1 | V8: 0.5 | W8: 1 | X8: 1 | Y8: 0.5 | Z8: 1 | AA8: 1 | AB8: 1 | AC8: 1 | AD8: 1 | AE8: 1 | AF8: 1 | AG8: 1 | AH8: 1 | AI8: 1 | AJ8: 1 | AK8: 1 | AL8: 1 | AM8: 1 | AN8: 1 | AO8: 1 | AP8: 1 | AQ8: 0.5 | AR8: 0.5 | AS8: 1 | AT8: 1 | AU8: 1 | AV8: 0.5 | AW8: 1 | AX8: 1 | AY8: 1 | AZ8: 1 | BA8: 1 | BB8: 0.5 | BC8: 1 | BD8: 1 | BE8: 1 | BF8: 0.5 | BG8: 1 | BH8: 1 | BI8: 1 | BJ8: 1 | BK8: 1 | BL8: 1 | BM8: 1 | BN8: 1 | BO8: 1 | BP8: 1 | BQ8: 1 | BR8: 1 | BS8: 1 | BT8: 1 | BU8: 1 | BV8: 1 | BW8: 1 | BX8: 1 | BY8: 1 | BZ8: 1 | CA8: 0.5 | CB8: 1 | CC8: 1 | CD8: 1 | CE8: 1 | CF8: 1 | CG8: 0.5 | CH8: 1 | CI8: 1 | CJ8: 1 | CR8: 0.9411764706 | CS8: 0.9411764706
A9: Nomenclature | B9: Race: American Indian or Alaska Native | C9: 1 | D9: 1 | E9: 1 | F9: 1 | G9: 1 | H9: 1 | I9: 1 | J9: 1 | K9: 1 | L9: 1 | M9: 1 | N9: 1 | O9: 1 | P9: 1 | Q9: 1 | R9: 1 | S9: 1 | T9: 1 | U9: 1 | V9: 1 | W9: 1 | X9: 1 | Y9: 1 | Z9: 1 | AA9: 1 | AB9: 1 | AC9: 1 | AD9: 1 | AE9: 1 | AF9: 1 | AG9: 1 | AH9: 1 | AI9: 1 | AJ9: 0.5 | AK9: 1 | AL9: 1 | AM9: 1 | AN9: 1 | AO9: 1 | AP9: 1 | AQ9: 1 | AR9: 1 | AS9: 1 | AT9: 1 | AU9: 1 | AV9: 1 | AW9: 1 | AX9: 1 | AY9: 1 | AZ9: 1 | BA9: 1 | BB9: 1 | BC9: 1 | BD9: 1 | BE9: 1 | BF9: 1 | BG9: 1 | BH9: 1 | BI9: 1 | BJ9: 1 | BK9: 1 | BL9: 1 | BM9: 1 | BN9: 0.5 | BO9: 1 | BP9: 1 | BQ9: 1 | BR9: 1 | BS9: 1 | BT9: 1 | BU9: 1 | BV9: 1 | BW9: 1 | BX9: 1 | BY9: 1 | BZ9: 1 | CA9: 1 | CB9: 1 | CC9: 1 | CD9: 1 | CE9: 1 | CF9: 1 | CG9: 1 | CH9: 1 | CI9: 1 | CJ9: 1 | CR9: 0.9882352941 | CS9: 0.9882352941
B10: Race: Asian | C10: 1 | D10: 1 | E10: 1 | F10: 1 | G10: 1 | H10: 1 | I10: 1 | J10: 1 | K10: 1 | L10: 1 | M10: 1 | N10: 1 | O10: 1 | P10: 1 | Q10: 1 | R10: 1 | S10: 1 | T10: 1 | U10: 1 | V10: 1 | W10: 1 | X10: 1 | Y10: 0.5 | Z10: 1 | AA10: 1 | AB10: 1 | AC10: 1 | AD10: 1 | AE10: 1 | AF10: 1 | AG10: 1 | AH10: 1 | AI10: 1 | AJ10: 1 | AK10: 1 | AL10: 1 | AM10: 1 | AN10: 1 | AO10: 1 | AP10: 1 | AQ10: 1 | AR10: 1 | AS10: 1 | AT10: 1 | AU10: 1 | AV10: 1 | AW10: 1 | AX10: 1 | AY10: 1 | AZ10: 1 | BA10: 1 | BB10: 1 | BC10: 1 | BD10: 1 | BE10: 1 | BF10: 1 | BG10: 1 | BH10: 1 | BI10: 1 | BJ10: 1 | BK10: 1 | BL10: 1 | BM10: 1 | BN10: 1 | BO10: 1 | BP10: 1 | BQ10: 1 | BR10: 1 | BS10: 1 | BT10: 1 | BU10: 1 | BV10: 1 | BW10: 1 | BX10: 1 | BY10: 1 | BZ10: 1 | CA10: 1 | CB10: 1 | CC10: 1 | CD10: 1 | CE10: 1 | CF10: 1 | CG10: 1 | CH10: 1 | CI10: 1 | CJ10: 1 | CR10: 0.9941176471 | CS10: 0.9941176471
B11: Race: Black or African American | C11: 1 | D11: 1 | E11: 1 | F11: 1 | G11: 1 | H11: 1 | I11: 1 | J11: 1 | K11: 1 | L11: 1 | M11: 1 | N11: 1 | O11: 1 | P11: 1 | Q11: 1 | R11: 1 | S11: 1 | T11: 1 | U11: 1 | V11: 1 | W11: 1 | X11: 1 | Y11: 0.5 | Z11: 1 | AA11: 1 | AB11: 1 | AC11: 1 | AD11: 1 | AE11: 1 | AF11: 1 | AG11: 1 | AH11: 1 | AI11: 1 | AJ11: 1 | AK11: 1 | AL11: 1 | AM11: 1 | AN11: 1 | AO11: 1 | AP11: 1 | AQ11: 1 | AR11: 1 | AS11: 1 | AT11: 1 | AU11: 1 | AV11: 1 | AW11: 1 | AX11: 1 | AY11: 1 | AZ11: 1 | BA11: 1 | BB11: 0.5 | BC11: 1 | BD11: 1 | BE11: 1 | BF11: 1 | BG11: 1 | BH11: 1 | BI11: 0.5 | BJ11: 1 | BK11: 1 | BL11: 1 | BM11: 1 | BN11: 1 | BO11: 1 | BP11: 1 | BQ11: 1 | BR11: 1 | BS11: 1 | BT11: 1 | BU11: 1 | BV11: 1 | BW11: 1 | BX11: 1 | BY11: 1 | BZ11: 1 | CA11: 1 | CB11: 1 | CC11: 1 | CD11: 1 | CE11: 1 | CF11: 1 | CG11: 1 | CH11: 1 | CI11: 1 | CJ11: 1 | CR11: 0.9823529412 | CS11: 0.9823529412
B12: Race: Native Hawaiian or Other Pacific Islander | C12: 1 | D12: 1 | E12: 1 | F12: 1 | G12: 1 | H12: 1 | I12: 1 | J12: 0..5 | K12: 1 | L12: 0.5 | M12: 1 | N12: 1 | O12: 1 | P12: 0.5 | Q12: 1 | R12: 1 | S12: 1 | T12: 1 | U12: 1 | V12: 1 | W12: 0.5 | X12: 1 | Y12: 1 | Z12: 1 | AA12: 1 | AB12: 1 | AC12: 1 | AD12: 1 | AE12: 1 | AF12: 1 | AG12: 1 | AH12: 1 | AI12: 1 | AJ12: 1 | AK12: 1 | AL12: 1 | AM12: 1 | AN12: 1 | AO12: 1 | AP12: 1 | AQ12: 1 | AR12: 1 | AS12: 1 | AT12: 1 | AU12: 1 | AV12: 1 | AW12: 1 | AX12: 1 | AY12: 1 | AZ12: 1 | BA12: 1 | BB12: 0.5 | BC12: 1 | BD12: 1 | BE12: 1 | BF12: 1 | BG12: 1 | BH12: 1 | BI12: 1 | BJ12: 1 | BK12: 0.5 | BL12: 1 | BM12: 1 | BN12: 0.5 | BO12: 1 | BP12: 1 | BQ12: 1 | BR12: 1 | BS12: 1 | BT12: 1 | BU12: 1 | BV12: 1 | BW12: 1 | BX12: 1 | BY12: 1 | BZ12: 1 | CA12: 1 | CB12: 1 | CC12: 1 | CD12: 1 | CE12: 1 | CF12: 1 | CG12: 1 | CH12: 1 | CI12: 1 | CJ12: 1 | CR12: 0.9642857143 | CS12: 0.9642857143
B13: Race: Cauasian | C13: 0 | D13: 1 | E13: 1 | F13: 1 | G13: 1 | H13: 1 | I13: 1 | J13: 1 | K13: 1 | L13: 1 | M13: 1 | N13: 1 | O13: 1 | P13: 1 | Q13: 1 | R13: 1 | S13: 1 | T13: 1 | U13: 1 | V13: 0.5 | W13: 1 | X13: 1 | Y13: 1 | Z13: 1 | AA13: 1 | AB13: 1 | AC13: 0.5 | AD13: 1 | AE13: 1 | AF13: 1 | AG13: 1 | AH13: 1 | AI13: 1 | AJ13: 1 | AK13: 1 | AL13: 1 | AM13: 1 | AN13: 0.5 | AO13: 1 | AP13: 1 | AQ13: 1 | AR13: 1 | AS13: 1 | AT13: 1 | AU13: 1 | AV13: 1 | AW13: 1 | AX13: 1 | AY13: 1 | AZ13: 1 | BA13: 1 | BB13: 0 | BC13: 1 | BD13: 1 | BE13: 1 | BF13: 1 | BG13: 1 | BH13: 1 | BI13: 1 | BJ13: 1 | BK13: 1 | BL13: 1 | BM13: 1 | BN13: 1 | BO13: 1 | BP13: 1 | BQ13: 1 | BR13: 1 | BS13: 1 | BT13: 1 | BU13: 1 | BV13: 1 | BW13: 1 | BX13: 1 | BY13: 1 | BZ13: 1 | CA13: 1 | CB13: 1 | CC13: 1 | CD13: 1 | CE13: 1 | CF13: 1 | CG13: 1 | CH13: 1 | CI13: 1 | CJ13: 1 | CR13: 0.9705882353 | CS13: 0.9705882353
B15: Ethnicity: Hispanic/Latinx * | C15: 1 | D15: 1 | E15: 1 | F15: 1 | G15: 1 | H15: 1 | I15: 1 | J15: 1 | K15: 1 | L15: 1 | M15: 1 | N15: 1 | O15: 1 | P15: 1 | Q15: 1 | R15: 1 | S15: 1 | T15: 1 | U15: 1 | V15: 1 | W15: 1 | X15: 1 | Y15: 1 | Z15: 1 | AA15: 1 | AB15: 1 | AC15: 1 | AD15: 1 | AE15: 1 | AF15: 1 | AG15: 1 | AH15: 1 | AI15: 1 | AJ15: 0.5 | AK15: 1 | AL15: 1 | AM15: 1 | AN15: 1 | AO15: 1 | AP15: 0.5 | AQ15: 1 | AR15: 1 | AS15: 0.5 | AT15: 1 | AU15: 1 | AV15: 1 | AW15: 1 | AX15: 1 | AY15: 1 | AZ15: 1 | BA15: 1 | BB15: 1 | BC15: 1 | BD15: 1 | BE15: 1 | BF15: 1 | BG15: 1 | BH15: 1 | BI15: 1 | BJ15: 1 | BK15: 1 | BL15: 1 | BM15: 1 | BN15: 1 | BO15: 1 | BP15: 1 | BQ15: 1 | BR15: 1 | BS15: 1 | BT15: 1 | BU15: 1 | BV15: 1 | BW15: 1 | BX15: 1 | BY15: 1 | BZ15: 1 | CA15: 1 | CB15: 1 | CC15: 1 | CD15: 1 | CE15: 1 | CF15: 1 | CG15: 1 | CH15: 1 | CI15: 1 | CJ15: 1 | CR15: 0.9823529412 | CS15: 0.9823529412
B16: Ethinicity: Additional Classification** | C16: 2 | D16: 1 | E16: 1 | F16: 1 | G16: 1 | H16: 1 | I16: 1 | J16: 1 | K16: 1 | L16: 1 | M16: 1 | N16: 1 | O16: 1 | P16: 1 | Q16: 1 | R16: 1 | S16: 1 | T16: 1 | U16: 1 | V16: 1 | W16: 1 | X16: 1 | Y16: 0.5 | Z16: 1 | AA16: 1 | AB16: 1 | AC16: 1 | AD16: 1 | AE16: 1 | AF16: 1 | AG16: 1 | AH16: 1 | AI16: 1 | AJ16: 1 | AK16: 1 | AL16: 1 | AM16: 1 | AN16: 1 | AO16: 1 | AP16: 1 | AQ16: 0.5 | AR16: 0.5 | AS16: 0.5 | AT16: 1 | AU16: 1 | AV16: 1 | AW16: 1 | AX16: 1 | AY16: 1 | AZ16: 0.5 | BA16: 1 | BB16: 0.5 | BC16: 1 | BD16: 1 | BE16: 1 | BF16: 1 | BG16: 0.5 | BH16: 1 | BI16: 1 | BJ16: 1 | BK16: 1 | BL16: 1 | BM16: 1 | BN16: 0.5 | BO16: 1 | BP16: 1 | BQ16: 0.5 | BR16: 0.5 | BS16: 1 | BT16: 1 | BU16: 1 | BV16: 1 | BW16: 1 | BX16: 1 | BY16: 1 | BZ16: 1 | CA16: 0.5 | CB16: 1 | CC16: 1 | CD16: 1 | CE16: 1 | CF16: 1 | CG16: 0.5 | CH16: 1 | CI16: 1 | CJ16: 1 | CR16: 0.9294117647 | CS16: 0.9294117647
A17: Descriptive Reporting | B17: By race | C17: 1 | D17: 1 | E17: 1 | F17: 1 | G17: 1 | H17: 0.5 | I17: 1 | J17: 1 | K17: 1 | L17: 1 | M17: 1 | N17: 1 | O17: 1 | P17: 1 | Q17: 1 | R17: 1 | S17: 1 | T17: 1 | U17: 1 | V17: 1 | W17: 1 | X17: 1 | Y17: 1 | Z17: 1 | AA17: 1 | AB17: 1 | AC17: 0.5 | AD17: 1 | AE17: 1 | AF17: 1 | AG17: 1 | AH17: 1 | AI17: 1 | AJ17: 0.5 | AK17: 1 | AL17: 1 | AM17: 1 | AN17: 1 | AO17: 1 | AP17: 1 | AQ17: 1 | AR17: 1 | AS17: 1 | AT17: 1 | AU17: 1 | AV17: 1 | AW17: 1 | AX17: 1 | AY17: 1 | AZ17: 1 | BA17: 1 | BB17: 0.5 | BC17: 0.5 | BD17: 1 | BE17: 1 | BF17: 1 | BG17: 0.5 | BH17: 0.5 | BI17: 0.5 | BJ17: 0.5 | BK17: 0.5 | BL17: 0.5 | BM17: 0.5 | BN17: 0.5 | BO17: 1 | BP17: 1 | BQ17: 0.5 | BR17: 0.5 | BS17: 1 | BT17: 1 | BU17: 1 | BV17: 0.5 | BW17: 1 | BX17: 1 | BY17: 1 | BZ17: 1 | CA17: 1 | CB17: 1 | CC17: 0.5 | CD17: 1 | CE17: 0.5 | CF17: 1 | CG17: 1 | CH17: 1 | CI17: 1 | CJ17: 1 | CR17: 0.8941176471 | CS17: 0.8941176471
B18: By ethnicity | C18: 2 | D18: 1 | E18: 1 | F18: 1 | G18: 1 | H18: 1 | I18: 1 | J18: 1 | K18: 1 | L18: 1 | M18: 1 | N18: 1 | O18: 1 | P18: 1 | Q18: 1 | R18: 1 | S18: 1 | T18: 1 | U18: 1 | V18: 0.5 | W18: 1 | X18: 1 | Y18: 0.5 | Z18: 1 | AA18: 1 | AB18: 1 | AC18: 1 | AD18: 1 | AE18: 1 | AF18: 1 | AG18: 1 | AH18: 1 | AI18: 1 | AJ18: 1 | AK18: 1 | AL18: 1 | AM18: 1 | AN18: 1 | AO18: 1 | AP18: 0.5 | AQ18: 1 | AR18: 1 | AS18: 1 | AT18: 1 | AU18: 1 | AV18: 1 | AW18: 1 | AX18: 1 | AY18: 1 | AZ18: 1 | BA18: 1 | BB18: 0.5 | BC18: 1 | BD18: 1 | BE18: 1 | BF18: 1 | BG18: 1 | BH18: 0.5 | BI18: 0.5 | BJ18: 0.5 | BK18: 0.5 | BL18: 0.5 | BM18: 0.5 | BN18: 0.5 | BO18: 1 | BP18: 1 | BQ18: 0.5 | BR18: 0.5 | BS18: 1 | BT18: 1 | BU18: 1 | BV18: 1 | BW18: 1 | BX18: 1 | BY18: 1 | BZ18: 1 | CA18: 0.5 | CB18: 1 | CC18: 0.5 | CD18: 1 | CE18: 1 | CF18: 1 | CG18: 0.5 | CH18: 0.5 | CI18: 1 | CJ18: 1 | CR18: 0.9 | CS18: 0.9
A19: Outcome Reporting | B19: Univariate Outcome by Race | C19: 2 | D19: 1 | E19: 1 | F19: 1 | G19: 1 | H19: 1 | I19: 1 | J19: 0.5 | K19: 1 | L19: 1 | M19: 0.5 | N19: 1 | O19: 1 | P19: 0.5 | Q19: 1 | R19: 1 | S19: 1 | T19: 1 | U19: 1 | V19: 1 | W19: 1 | X19: 1 | Y19: 0.5 | Z19: 1 | AA19: 1 | AB19: 1 | AC19: 0.5 | AD19: 1 | AE19: 1 | AF19: 1 | AG19: 1 | AH19: 1 | AI19: 1 | AJ19: 0.5 | AK19: 1 | AL19: 1 | AM19: 1 | AN19: 1 | AO19: 1 | AP19: 1 | AQ19: 1 | AR19: 1 | AS19: 1 | AT19: 1 | AU19: 1 | AV19: 1 | AW19: 1 | AX19: 1 | AY19: 1 | AZ19: 0.5 | BA19: 1 | BB19: 0.5 | BC19: 1 | BD19: 1 | BE19: 1 | BF19: 1 | BG19: 0.5 | BH19: 1 | BI19: 1 | BJ19: 1 | BK19: 1 | BL19: 1 | BM19: 0.5 | BN19: 0.5 | BO19: 0.5 | BP19: 0.5 | BQ19: 0.5 | BR19: 0.5 | BS19: 1 | BT19: 1 | BU19: 1 | BV19: 0.5 | BW19: 1 | BX19: 1 | BY19: 1 | BZ19: 1 | CA19: 0.5 | CB19: 1 | CC19: 0.5 | CD19: 1 | CE19: 1 | CF19: 1 | CG19: 0.5 | CH19: 0.5 | CI19: 1 | CJ19: 1 | CR19: 0.8823529412 | CS19: 0.8823529412
B20: Multivariate Outcome by Race | C20: 2 | D20: 1 | E20: 1 | F20: 1 | G20: 1 | H20: 1 | I20: 1 | J20: 1 | K20: 1 | L20: 0.5 | M20: 1 | N20: 1 | O20: 1 | P20: 1 | Q20: 1 | R20: 1 | S20: 1 | T20: 1 | U20: 1 | V20: 1 | W20: 1 | X20: 1 | Y20: 1 | Z20: 1 | AA20: 1 | AB20: 1 | AC20: 0.5 | AD20: 1 | AE20: 1 | AF20: 1 | AG20: 1 | AH20: 1 | AI20: 1 | AJ20: 0.5 | AK20: 1 | AL20: 1 | AM20: 1 | AN20: 1 | AO20: 0.5 | AP20: 1 | AQ20: 1 | AR20: 1 | AS20: 1 | AT20: 1 | AU20: 1 | AV20: 0.5 | AW20: 1 | AX20: 1 | AY20: 1 | AZ20: 1 | BA20: 1 | BB20: 0.5 | BC20: 1 | BD20: 1 | BE20: 1 | BF20: 1 | BG20: 1 | BH20: 1 | BI20: 1 | BJ20: 1 | BK20: 1 | BL20: 1 | BM20: 1 | BN20: 0.5 | BO20: 1 | BP20: 0.5 | BQ20: 1 | BR20: 1 | BS20: 1 | BT20: 1 | BU20: 1 | BV20: 1 | BW20: 1 | BX20: 1 | BY20: 1 | BZ20: 0.5 | CA20: 1 | CB20: 1 | CC20: 1 | CD20: 1 | CE20: 0.5 | CF20: 1 | CG20: 1 | CH20: 0.5 | CI20: 1 | CJ20: 1 | CR20: 0.9352941176 | CS20: 0.9352941176
B21: Univariate Outcome by Ethnicity | C21: 2 | D21: 1 | E21: 1 | F21: 1 | G21: 1 | H21: 1 | I21: 1 | J21: 1 | K21: 1 | L21: 1 | M21: 1 | N21: 1 | O21: 1 | P21: 1 | Q21: 1 | R21: 1 | S21: 1 | T21: 1 | U21: 1 | V21: 0.5 | W21: 1 | X21: 1 | Y21: 0.5 | Z21: 1 | AA21: 1 | AB21: 1 | AC21: 1 | AD21: 1 | AE21: 1 | AF21: 1 | AG21: 1 | AH21: 1 | AI21: 1 | AJ21: 1 | AK21: 1 | AL21: 1 | AM21: 1 | AN21: 1 | AO21: 1 | AP21: 0.5 | AQ21: 1 | AR21: 1 | AS21: 1 | AT21: 1 | AU21: 1 | AV21: 1 | AW21: 1 | AX21: 1 | AY21: 1 | AZ21: 1 | BA21: 1 | BB21: 1 | BC21: 1 | BD21: 1 | BE21: 1 | BF21: 1 | BG21: 1 | BH21: 1 | BI21: 1 | BJ21: 1 | BK21: 1 | BL21: 1 | BM21: 0.5 | BN21: 0.5 | BO21: 1 | BP21: 1 | BQ21: 0.5 | BR21: 0.5 | BS21: 1 | BT21: 1 | BU21: 1 | BV21: 1 | BW21: 1 | BX21: 1 | BY21: 1 | BZ21: 1 | CA21: 0.5 | CB21: 1 | CC21: 0.5 | CD21: 1 | CE21: 1 | CF21: 1 | CG21: 0.5 | CH21: 0.5 | CI21: 1 | CJ21: 1 | CR21: 0.9352941176 | CS21: 0.9352941176
B22: Multivariate Outcome by Ethnicity | C22: 2 | D22: 1 | E22: 1 | F22: 1 | G22: 1 | H22: 1 | I22: 1 | J22: 1 | K22: 1 | L22: 1 | M22: 1 | N22: 1 | O22: 1 | P22: 1 | Q22: 1 | R22: 1 | S22: 1 | T22: 1 | U22: 1 | V22: 0.5 | W22: 1 | X22: 1 | Y22: 1 | Z22: 1 | AA22: 1 | AB22: 1 | AC22: 1 | AD22: 1 | AE22: 1 | AF22: 1 | AG22: 1 | AH22: 1 | AI22: 1 | AJ22: 1 | AK22: 1 | AL22: 1 | AM22: 1 | AN22: 1 | AO22: 1 | AP22: 1 | AQ22: 1 | AR22: 1 | AS22: 1 | AT22: 1 | AU22: 1 | AV22: 1 | AW22: 1 | AX22: 1 | AY22: 1 | AZ22: 0.5 | BA22: 1 | BB22: 1 | BC22: 1 | BD22: 1 | BE22: 1 | BF22: 1 | BG22: 1 | BH22: 1 | BI22: 1 | BJ22: 1 | BK22: 1 | BL22: 1 | BM22: 1 | BN22: 0.5 | BO22: 1 | BP22: 1 | BQ22: 1 | BR22: 0.5 | BS22: 1 | BT22: 1 | BU22: 1 | BV22: 1 | BW22: 1 | BX22: 1 | BY22: 1 | BZ22: 1 | CA22: 1 | CB22: 1 | CC22: 1 | CD22: 1 | CE22: 1 | CF22: 1 | CG22: 1 | CH22: 1 | CI22: 1 | CJ22: 1 | CR22: 0.9764705882 | CS22: 0.9764705882
C23: =SUM(C6:C22) -> 21 | CR23: =AVERAGE(CR6:CR16,CR18,CR20:CR22) -> 0.9608943577 | CS23: 0.9518119748
B27: Weighted
A28: Race/Ethnicity Tool
A33: Authorship inclusiveness | B33: Author representation of different races or ethnicities | C33: 1 | D33: 1 | E33: 1 | F33: 1 | G33: 1 | H33: 1 | I33: 1 | J33: 1 | K33: 1 | L33: 1 | M33: 1 | N33: 1 | O33: 1 | P33: 1 | Q33: unknown | R33: unknown | S33: unknown | T33: unknown | U33: unknown | V33: unknown | W33: unknown | X33: unknown | Y33: unknown | Z33: unknown | AA33: unknown | AB33: 0 | AC33: unknown | AD33: unknown | AE33: unknown | AF33: unknown | AG33: unknown | AH33: unknown | AI33: unknown | AJ33: unknown | AK33: unknown | AL33: unknown | AM33: unknown | AN33: unknown | AO33: 1 | AP33: 1 | AQ33: 1 | AR33: 1 | AS33: 1 | AT33: 1 | AU33: 1 | AV33: 1 | AW33: 1 | AX33: 1 | AY33: 1 | AZ33: 1 | BA33: 1 | BB33: 1 | BC33: 1 | BD33: 1 | BE33: 1 | BF33: 1 | BG33: 1 | BH33: 1 | BI33: 1 | BJ33: 1 | BK33: 1 | BL33: 1 | BM33: unknown | BN33: unknown | BO33: unknown | BP33: unknown | BQ33: unknown | BR33: unknown | BS33: unknown | BT33: unknown | BU33: unknown | BV33: unknown | BW33: unknown | BX33: unknown | BY33: unknown | BZ33: unknown | CA33: unknown | CB33: unknown | CC33: unknown | CD33: unknown | CE33: unknown | CF33: unknown | CG33: unknown | CH33: unknown | CI33: unknown | CJ33: unknown
A34: Participant inclusiveness | B34: Participant inclusion of different races or why not relevant | C34: 1 | H34: 1 | J34: 1 | L34: 1 | M34: 1 | P34: 1 | Q34: 0 | R34: 0 | S34: 0 | T34: 1 | U34: 0 | V34: 1 | W34: 0 | X34: 0 | Y34: 0 | Z34: 0 | AA34: 0 | AB34: 0 | AC34: 1 | AD34: 0 | AE34: 0 | AF34: 0 | AG34: 0 | AH34: 0 | AI34: 0 | AJ34: 1 | AK34: 0 | AL34: 0 | AM34: 0 | AN34: 0 | AS34: 1 | AU34: 1 | AV34: 1 | AX34: 1 | AZ34: 1 | BB34: 1 | BC34: 1 | BF34: 1 | BG34: 1 | BH34: 1 | BI34: 1 | BJ34: 1 | BK34: 1 | BL34: 1 | BM34: 1 | BN34: 1 | BO34: 1 | BP34: 1 | BQ34: 1 | BR34: 1 | BS34: 0 | BT34: 0 | BU34: 0 | BV34: 1 | BW34: 0 | BX34: 0 | BY34: 0 | BZ34: 1 | CA34: 1 | CB34: 0 | CC34: 1 | CD34: 0 | CE34: 1 | CF34: 0 | CG34: 1 | CH34: 1 | CI34: 0 | CJ34: 0
B35: Participant inclusion of different ethnicities or why not relevant | C35: 1 | H35: 0 | J35: 0 | L35: 0 | M35: 0 | P35: 0 | Q35: 0 | R35: 0 | S35: 0 | T35: 0 | U35: 0 | V35: 1 | W35: 1 | X35: 0 | Y35: 0 | Z35: 0 | AA35: 0 | AB35: 0 | AC35: 0 | AD35: 0 | AE35: 0 | AF35: 0 | AG35: 0 | AH35: 0 | AI35: 0 | AJ35: 1 | AK35: 0 | AL35: 0 | AM35: 0 | AN35: 0 | AP35: 1 | AS35: 1 | AU35: 1 | AV35: 1 | AZ35: 1 | BB35: 1 | BF35: 1 | BH35: 1 | BI35: 1 | BJ35: 1 | BK35: 1 | BL35: 1 | BM35: 1 | BN35: 1 | BO35: 0 | BP35: 0 | BQ35: 1 | BR35: 1 | BS35: 0 | BT35: 0 | BU35: 0 | BV35: 0 | BW35: 0 | BX35: 0 | BY35: 0 | BZ35: 0 | CA35: 1 | CB35: 0 | CC35: 1 | CD35: 0 | CE35: 0 | CF35: 0 | CG35: 1 | CH35: 1 | CI35: 0 | CJ35: 0
A36: Nomenclature | B36: Race: American Indian or Alaska Native | C36: 1 | H36: 0 | J36: 0 | L36: 0 | M36: 0 | P36: 0 | Q36: 0 | R36: 0 | S36: 0 | T36: 0 | U36: 0 | V36: 0 | W36: 0 | X36: 0 | Y36: 0 | Z36: 0 | AA36: 0 | AB36: 0 | AC36: 0 | AD36: 0 | AE36: 0 | AF36: 0 | AG36: 0 | AH36: 0 | AI36: 0 | AJ36: 0 | AK36: 0 | AL36: 0 | AM36: 0 | AN36: 0 | AS36: 1 | AZ36: 1 | BJ36: 1 | BM36: 1 | BN36: 1 | BO36: 0 | BP36: 0 | BQ36: 1 | BR36: 1 | BS36: 0 | BT36: 0 | BU36: 0 | BV36: 0 | BW36: 0 | BX36: 0 | BY36: 0 | BZ36: 1 | CA36: 0 | CB36: 0 | CC36: 1 | CD36: 0 | CE36: 0 | CF36: 0 | CG36: 1 | CH36: 1 | CI36: 0 | CJ36: 0
B37: Race: Asian | C37: 1 | H37: 0 | J37: 0 | L37: 1 | M37: 0 | P37: 1 | Q37: 0 | R37: 0 | S37: 0 | T37: 0 | U37: 0 | V37: 1 | W37: 0 | X37: 0 | Y37: 0 | Z37: 0 | AA37: 0 | AB37: 0 | AC37: 0 | AD37: 0 | AE37: 0 | AF37: 0 | AG37: 0 | AH37: 0 | AI37: 0 | AJ37: 0 | AK37: 0 | AL37: 0 | AM37: 0 | AN37: 0 | AO37: 1 | AS37: 1 | AV37: 1 | AZ37: 1 | BG37: 1 | BI37: 1 | BJ37: 1 | BL37: 1 | BM37: 1 | BN37: 1 | BO37: 1 | BP37: 1 | BQ37: 1 | BR37: 1 | BS37: 0 | BT37: 0 | BU37: 0 | BV37: 1 | BW37: 0 | BX37: 0 | BY37: 0 | BZ37: 1 | CA37: 1 | CB37: 0 | CC37: 1 | CD37: 0 | CE37: 0 | CF37: 0 | CG37: 1 | CH37: 1 | CI37: 0 | CJ37: 0
B38: Race: Black or African American | C38: 1 | H38: 0 | J38: 1 | L38: 1 | M38: 0 | P38: 1 | Q38: 0 | R38: 0 | S38: 0 | T38: 1 | U38: 0 | V38: 1 | W38: 0 | X38: 0 | Y38: 0 | Z38: 0 | AA38: 0 | AB38: 0 | AC38: 1 | AD38: 0 | AE38: 0 | AF38: 0 | AG38: 0 | AH38: 0 | AI38: 0 | AJ38: 1 | AK38: 0 | AL38: 0 | AM38: 0 | AN38: 0 | AO38: 1 | AS38: 1 | AU38: 1 | AV38: 1 | AX38: 1 | AZ38: 1 | BB38: 1 | BC38: 1 | BG38: 1 | BH38: 1 | BJ38: 1 | BK38: 1 | BL38: 1 | BM38: 1 | BN38: 1 | BO38: 1 | BP38: 1 | BQ38: 1 | BR38: 1 | BS38: 0 | BT38: 0 | BU38: 0 | BV38: 1 | BW38: 0 | BX38: 0 | BY38: 0 | BZ38: 1 | CA38: 1 | CB38: 0 | CC38: 1 | CD38: 0 | CE38: 0 | CF38: 0 | CG38: 1 | CH38: 1 | CI38: 0 | CJ38: 0
B39: Race: Native Hawaiian or Other Pacific Islander | C39: 1 | H39: 0 | J39: 1 | L39: 1 | M39: 0 | P39: 1 | Q39: 0 | R39: 0 | S39: 0 | T39: 0 | U39: 0 | V39: 0 | W39: 0 | X39: 0 | Y39: 0 | Z39: 0 | AA39: 0 | AB39: 0 | AC39: 0 | AD39: 0 | AE39: 0 | AF39: 0 | AG39: 0 | AH39: 0 | AI39: 0 | AJ39: 0 | AK39: 0 | AL39: 0 | AM39: 0 | AN39: 0 | AO39: 1 | AS39: 1 | AU39: 1 | AV39: 1 | AX39: 1 | AZ39: 1 | BB39: 1 | BC39: 1 | BG39: 1 | BH39: 1 | BJ39: 1 | BK39: 1 | BL39: 1 | BM39: 0 | BN39: 1 | BO39: 0 | BP39: 0 | BQ39: 1 | BR39: 1 | BS39: 0 | BT39: 0 | BU39: 0 | BV39: 0 | BW39: 0 | BX39: 0 | BY39: 0 | BZ39: 1 | CA39: 0 | CB39: 0 | CC39: 0 | CD39: 0 | CE39: 0 | CF39: 0 | CG39: 1 | CH39: 1 | CI39: 0 | CJ39: 0
B40: Race: Cauasian | C40: 0 | H40: 0 | J40: 0 | L40: 0 | M40: 0 | P40: 0 | Q40: 0 | R40: 0 | S40: 0 | T40: 1 | U40: 0 | V40: 1 | W40: 0 | X40: 0 | Y40: 0 | Z40: 0 | AA40: 0 | AB40: 0 | AC40: 1 | AD40: 0 | AE40: 0 | AF40: 0 | AG40: 0 | AH40: 0 | AI40: 0 | AJ40: 1 | AK40: 0 | AL40: 0 | AM40: 0 | AN40: 1 | AS40: 0 | AU40: 0 | AV40: 0 | AX40: 0 | AZ40: 0 | BB40: 0 | BC40: 0 | BG40: 0 | BH40: 0 | BI40: 0 | BJ40: 0 | BL40: 0 | BM40: 1 | BN40: 1 | BO40: 1 | BP40: 1 | BQ40: 1 | BR40: 1 | BS40: 0 | BT40: 0 | BU40: 0 | BV40: 1 | BW40: 0 | BX40: 0 | BY40: 0 | BZ40: 1 | CA40: 1 | CB40: 0 | CC40: 1 | CD40: 0 | CE40: 0 | CF40: 0 | CG40: 1 | CH40: 1 | CI40: 0 | CJ40: 0
B41: Ethnicity: Hispanic/Latinx * | C41: 1 | H41: 0 | J41: 0 | L41: 1 | M41: 0 | P41: 1 | Q41: 0 | R41: 0 | S41: 0 | T41: 0 | U41: 0 | V41: 1 | W41: 0 | X41: 0 | Y41: 0 | Z41: 0 | AA41: 0 | AB41: 0 | AC41: 0 | AD41: 0 | AE41: 0 | AF41: 0 | AG41: 0 | AH41: 0 | AI41: 0 | AJ41: 1 | AK41: 0 | AL41: 0 | AM41: 0 | AN41: 0 | AS41: 1 | AU41: 1 | AZ41: 1 | BH41: 1 | BI41: 1 | BJ41: 1 | BK41: 1 | BL41: 1 | BM41: 1 | BN41: 1 | BO41: 0 | BP41: 0 | BQ41: 1 | BR41: 1 | BS41: 0 | BT41: 0 | BU41: 0 | BV41: 0 | BW41: 0 | BX41: 0 | BY41: 0 | BZ41: 0 | CA41: 0 | CB41: 0 | CC41: 1 | CD41: 0 | CE41: 0 | CF41: 0 | CG41: 1 | CH41: 1 | CI41: 0 | CJ41: 0
B42: Ethinicity: Additional Classification** | C42: 2 | H42: 0 | J42: 0 | L42: 0 | M42: 0 | P42: 0 | Q42: 0 | R42: 0 | S42: 0 | T42: 0 | U42: 0 | V42: 0 | W42: 2 | X42: 0 | Y42: 0 | Z42: 0 | AA42: 0 | AB42: 0 | AC42: 0 | AD42: 0 | AE42: 0 | AF42: 0 | AG42: 0 | AH42: 0 | AI42: 0 | AJ42: 0 | AK42: 0 | AL42: 0 | AM42: 0 | AN42: 0 | AP42: 1 | AS42: 1 | AZ42: 2 | BB42: 2 | BG42: 2 | BM42: 0 | BN42: 1 - lumped into a category of "not Hispanic or Latino" | BO42: 0 | BP42: 0 | BQ42: 1 | BR42: 1 - lumped into a category of "not Hispanic or Latino" | BS42: 0 | BT42: 0 | BU42: 0 | BV42: 0 | BW42: 0 | BX42: 0 | BY42: 0 | BZ42: 0 | CA42: 2 | CB42: 0 | CC42: 1 - lumped under ">1 race" | CD42: 0 | CE42: 0 | CF42: 0 | CG42: 1 - grouped under "other" | CH42: 1 - grouped under "Multirace" | CI42: 0 | CJ42: 0
A43: Descriptive Reporting | B43: By race | C43: 1 | H43: 1 | J43: 1 | L43: 1 | M43: 1 | P43: 1 | Q43: 0 | R43: 0 | S43: 0 | T43: 1 | U43: 0 | V43: 1 | W43: 0 | X43: 0 | Y43: 0 | Z43: 0 | AA43: 0 | AB43: 0 | AC43: 1 | AD43: 0 | AE43: 0 | AF43: 0 | AG43: 0 | AH43: 0 | AI43: 0 | AJ43: 0 | AK43: 0 | AL43: 0 | AM43: 0 | AN43: 0 | AS43: 1 | AU43: 1 | AV43: 1 | AX43: 1 | AZ43: 1 | BB43: 1 | BC43: 1 | BG43: 1 | BH43: 1 | BI43: 1 | BJ43: 1 | BK43: 1 | BL43: 1 | BM43: 1 | BN43: 1 | BO43: 0 | BP43: 0 | BQ43: 1 | BR43: 1 | BS43: 0 | BT43: 0 | BU43: 0 | BV43: 1 | BW43: 0 | BX43: 0 | BY43: 0 | BZ43: 1 | CA43: 1 | CB43: 0 | CC43: 0 | CD43: 0 | CE43: 1 | CF43: 0 | CG43: 1 | CH43: 1 | CI43: 0 | CJ43: 0
B44: By ethnicity | C44: 2 | H44: 0 | J44: 0 | L44: 0 | M44: 0 | P44: 0 | Q44: 0 | R44: 0 | S44: 0 | T44: 0 | U44: 0 | V44: 1 - just Hispanic/Latinx | W44: 2 | X44: 0 | Y44: 0 | Z44: 0 | AA44: 0 | AB44: 0 | AC44: 0 | AD44: 0 | AE44: 0 | AF44: 0 | AG44: 0 | AH44: 0 | AI44: 0 | AJ44: 0 | AK44: 0 | AL44: 0 | AM44: 0 | AN44: 0 | AP44: 1 | AS44: 1 | AU44: 2 | AZ44: 2 | BB44: 2 | BH44: 2 | BI44: 2 | BJ44: 2 | BK44: 2 | BL44: 2 | BM44: 1 - only Latinx/Hispanic | BN44: 1 - only Latinx/Hispanic | BO44: 0 | BP44: 0 | BQ44: 1 - only Latinx | BR44: 1 - only Latinx/Hispanic | BS44: 0 | BT44: 0 | BU44: 0 | BV44: 0 | BW44: 0 | BX44: 0 | BY44: 0 | BZ44: 0 | CA44: 2 | CB44: 0 | CC44: 0 | CD44: 0 | CE44: 0 | CF44: 0 | CG44: 0 | CH44: 0 | CI44: 0 | CJ44: 0
A45: Outcome Reporting | B45: Univariate Outcome by Race | C45: 2 | H45: 0 | J45: 0 | L45: 2 | M45: 0 | P45: 0 | Q45: 0 | R45: 0 | S45: 0 | T45: 2 | U45: 0 | V45: 2 | W45: 0 | X45: 0 | Y45: 0 | Z45: 0 | AA45: 0 | AB45: 0 | AC45: 2 | AD45: 0 | AE45: 0 | AF45: 0 | AG45: 0 | AH45: 0 | AI45: 0 | AJ45: 2 | AK45: 0 | AL45: 0 | AM45: 0 | AN45: 0 | AZ45: 2 | BB45: 2 | BG45: 2 | BM45: 2 | BN45: 2 | BO45: 2 | BP45: 2 | BQ45: 2 | BR45: 2 | BS45: 0 | BT45: 0 | BU45: 0 | BV45: 2 | BW45: 0 | BX45: 0 | BY45: 0 | BZ45: 2 | CA45: 2 | CB45: 0 | CC45: 2 | CD45: 0 | CE45: 0 | CF45: 0 | CG45: 2 | CH45: 2 | CI45: 0 | CJ45: 0
B46: Multivariate Outcome by Race | C46: 2 | H46: 0 | J46: 0 | L46: 0 | M46: 0 | P46: 2 | Q46: 0 | R46: 0 | S46: 0 | T46: 0 | U46: 0 | V46: 2 | W46: 0 | X46: 0 | Y46: 0 | Z46: 0 | AA46: 0 | AB46: 0 | AC46: 2 | AD46: 0 | AE46: 0 | AF46: 0 | AG46: 0 | AH46: 0 | AI46: 0 | AJ46: 2 | AK46: 0 | AL46: 0 | AM46: 0 | AN46: 0 | AZ46: 2 | BB46: 2 | BM46: 0 | BN46: 0 | BO46: 0 | BP46: 0 | BQ46: 0 | BR46: 0 | BS46: 0 | BT46: 0 | BU46: 0 | BV46: 0 | BW46: 0 | BX46: 0 | BY46: 0 | BZ46: 2 | CA46: 0 | CB46: 0 | CC46: 0 | CD46: 0 | CE46: 2 | CF46: 0 | CG46: 0 | CH46: 2 | CI46: 0 | CJ46: 0
B47: Univariate Outcome by Ethnicity | C47: 2 | H47: 0 | J47: 0 | L47: 0 | M47: 0 | P47: 0 | Q47: 0 | R47: 0 | S47: 0 | T47: 0 | U47: 0 | V47: 1 - just Hispanic/Latinx | W47: 2 | X47: 0 | Y47: 0 | Z47: 0 | AA47: 0 | AB47: 0 | AC47: 0 | AD47: 0 | AE47: 0 | AF47: 0 | AG47: 0 | AH47: 0 | AI47: 0 | AJ47: 0 | AK47: 0 | AL47: 0 | AM47: 0 | AN47: 0 | AP47: 2 | BB47: 2 | BM47: 1 - only Latinx/Hispanic | BN47: 1 - only Latinx/Hispanic | BO47: 0 | BP47: 0 | BQ47: 1 - only Latinx | BR47: 1 - only Latinx/Hispanic | BS47: 0 | BT47: 0 | BU47: 0 | BV47: 0 | BW47: 0 | BX47: 0 | BY47: 0 | BZ47: 0 | CA47: 2 | CB47: 0 | CC47: 1- Hispanic or Latino | CD47: 0 | CE47: 0 | CF47: 0 | CG47: 1 - only Latinx/Hispanic | CH47: 1 - only Latinx/Hispanic | CI47: 0 | CJ47: 0
B48: Multivariate Outcome by Ethnicity | C48: 2 | H48: 0 | J48: 0 | L48: 0 | M48: 0 | P48: 0 | Q48: 0 | R48: 0 | S48: 0 | T48: 0 | U48: 0 | V48: 1 - just Hispanic/Latinx | W48: 2 | X48: 0 | Y48: 0 | Z48: 0 | AA48: 0 | AB48: 0 | AC48: 0 | AD48: 0 | AE48: 0 | AF48: 0 | AG48: 0 | AH48: 0 | AI48: 0 | AJ48: 0 | AK48: 0 | AL48: 0 | AM48: 0 | AN48: 0 | BB48: 2 | BM48: 0 | BN48: 0 | BO48: 0 | BP48: 0 | BQ48: 0 | BR48: 1 - only Latinx/Hispanic | BS48: 0 | BT48: 0 | BU48: 0 | BV48: 0 | BW48: 0 | BX48: 0 | BY48: 0 | BZ48: 0 | CA48: 0 | CB48: 0 | CC48: 0 | CD48: 0 | CE48: 0 | CF48: 0 | CG48: 0 | CH48: 0 | CI48: 0 | CJ48: 0
B52: NONWEIGHTED | L52: 1 | P52: 2 | V52: 3 | AJ52: 4 | AS52: 5 | AU52: 6 | AZ52: 7 | BB52: 8 | BG52: 9 | BH52: 10 | BI52: 11 | BJ52: 12 | BK52: 13 | BL52: 14 | BM52: 15 | BN52: 16 | BQ52: 17 | BR52: 18 | CA52: 19 | CC52: 20 | CG52: 21 | CH52: 22
A53: Race/Ethnicity Tool | D53: =SUM(D59, D60, D61, D62, D63) -> 0 | E53: =SUM(E59, E60, E61, E62, E63) -> 0 | F53: 0 | G53: 0 | H53: 0 | I53: 0 | J53: 2 | K53: 0 | L53: 3 | M53: 0 | N53: 0 | O53: 0 | P53: 3 | Q53: 0 | R53: 0 | S53: 0 | T53: 2 | U53: 0 | V53: 3 | W53: 0 | X53: 0 | Y53: 0 | Z53: 0 | AA53: 0 | AB53: 0 | AC53: 2 | AD53: 0 | AE53: 0 | AF53: 0 | AG53: 0 | AH53: 0 | AI53: 0 | AJ53: 2 | AK53: 0 | AL53: 0 | AM53: 0 | AN53: 1 | AO53: 3 | AP53: 0 | AQ53: 0 | AR53: 0 | AS53: 4 | AT53: 0 | AU53: 2 | AV53: 3 | AW53: 0 | AX53: 2 | AY53: 0 | AZ53: 4 | BA53: 0 | BB53: 2 | BC53: 2 | BD53: 0 | BE53: 0 | BF53: 0 | BG53: 3 | BH53: 2 | BI53: 1 | BJ53: 4 | BK53: 2 | BL53: 3 | BM53: 4 | BN53: 5 | BO53: 3 | BP53: 3 | BQ53: =SUM(BQ59, BQ60, BQ61, BQ62, BQ63) -> 5 | BR53: 5 | BS53: 0 | BT53: 0 | BU53: 0 | BV53: 3 | BW53: 0 | BX53: 0 | BY53: 0 | BZ53: 5 | CA53: 3 | CB53: 0 | CC53: 4 | CD53: 0 | CE53: 0 | CF53: 0 | CG53: 5 | CH53: 5 | CI53: 0 | CJ53: 0
D54: =SUM(D64, D65) -> 0 | E54: =SUM(E64, E65) -> 0 | F54: 0 | G54: 0 | H54: 0 | I54: 0 | J54: 0 | K54: 0 | L54: 1 | M54: 0 | N54: 0 | O54: 0 | P54: 1 | Q54: 0 | R54: 0 | S54: 0 | T54: 0 | U54: 0 | V54: 1 | W54: 1 | X54: 0 | Y54: 0 | Z54: 0 | AA54: 0 | AB54: 0 | AC54: 0 | AD54: 0 | AE54: 0 | AF54: 0 | AG54: 0 | AH54: 0 | AI54: 0 | AJ54: 1 | AK54: 0 | AL54: 0 | AM54: 0 | AN54: 0 | AO54: 0 | AP54: 1 | AQ54: 0 | AR54: 0 | AS54: 2 | AT54: 0 | AU54: 1 | AV54: 0 | AW54: 0 | AX54: 0 | AY54: 0 | AZ54: 2 | BA54: 0 | BB54: 1 | BC54: 0 | BD54: 0 | BE54: 0 | BF54: 0 | BG54: 1 | BH54: 1 | BI54: 1 | BJ54: 1 | BK54: 1 | BL54: 1 | BM54: 1 | BN54: 2 | BO54: 0 | BP54: 0 | BQ54: =SUM(BQ64, BQ65) -> 2 | BR54: 2 | BS54: 0 | BT54: 0 | BU54: 0 | BV54: 0 | BW54: 0 | BX54: 0 | BY54: 0 | BZ54: 0 | CA54: 1 | CB54: 0 | CC54: 2 | CD54: 0 | CE54: 0 | CF54: 0 | CG54: 2 | CH54: 2 | CI54: 0 | CJ54: 0
D55: =SUM(D53:D54) -> 0 | E55: =SUM(E53:E54) -> 0 | F55: 0 | G55: 0 | H55: 0 | I55: 0 | J55: 2 | K55: 0 | L55: 4 | M55: 0 | N55: 0 | O55: 0 | P55: 4 | Q55: 0 | R55: 0 | S55: 0 | T55: 2 | U55: 0 | V55: 4 | W55: 1 | X55: 0 | Y55: 0 | Z55: 0 | AA55: 0 | AB55: 0 | AC55: 2 | AD55: 0 | AE55: 0 | AF55: 0 | AG55: 0 | AH55: 0 | AI55: 0 | AJ55: 3 | AK55: 0 | AL55: 0 | AM55: 0 | AN55: 1 | AO55: 3 | AP55: 1 | AQ55: 0 | AR55: 0 | AS55: 6 | AT55: 0 | AU55: 3 | AV55: 3 | AW55: 0 | AX55: 2 | AY55: 0 | AZ55: 6 | BA55: 0 | BB55: 3 | BC55: 2 | BD55: 0 | BE55: 0 | BF55: 0 | BG55: 4 | BH55: 3 | BI55: 2 | BJ55: 5 | BK55: 3 | BL55: 4 | BM55: 5 | BN55: 7 | BO55: 3 | BP55: 3 | BQ55: =SUM(BQ53:BQ54) -> 7 | BR55: 7 | BS55: 0 | BT55: 0 | BU55: 0 | BV55: 3 | BW55: 0 | BX55: 0 | BY55: 0 | BZ55: 5 | CA55: 4 | CB55: 0 | CC55: 6 | CD55: 0 | CE55: 0 | CF55: 0 | CG55: 7 | CH55: 7 | CI55: 0 | CJ55: 0
A56: Authorship inclusiveness | B56: Author representation of different races or ethnicities | C56: =IF(C33=0,0,1) -> 1 | D56: =IF(D33=0,0,1) -> 1 | E56: =IF(E33=0,0,1) -> 1 | F56: 1 | G56: 1 | H56: 1 | I56: 1 | J56: 1 | K56: 1 | L56: 1 | M56: 1 | N56: 1 | O56: 1 | P56: 1 | Q56: 1 | R56: 1 | S56: 1 | T56: 1 | U56: 1 | V56: 1 | W56: 1 | X56: 1 | Y56: 1 | Z56: 1 | AA56: 1 | AB56: 0 | AC56: 1 | AD56: 1 | AE56: 1 | AF56: 1 | AG56: 1 | AH56: 1 | AI56: 1 | AJ56: 1 | AK56: 1 | AL56: 1 | AM56: 1 | AN56: 1 | AO56: 1 | AP56: 1 | AQ56: 1 | AR56: 1 | AS56: 1 | AT56: 1 | AU56: 1 | AV56: 1 | AW56: 1 | AX56: 1 | AY56: 1 | AZ56: 1 | BA56: 1 | BB56: 1 | BC56: 1 | BD56: 1 | BE56: 1 | BF56: 1 | BG56: 1 | BH56: 1 | BI56: 1 | BJ56: 1 | BK56: 1 | BL56: 1 | BM56: 1 | BN56: 1 | BO56: 1 | BP56: 1 | BQ56: =IF(BQ33=0,0,1) -> 1 | BR56: 1 | BS56: 1 | BT56: 1 | BU56: 1 | BV56: 1 | BW56: 1 | BX56: 1 | BY56: 1 | BZ56: 1 | CA56: 1 | CB56: 1 | CC56: 1 | CD56: 1 | CE56: 1 | CF56: 1 | CG56: 1 | CH56: 1 | CI56: 1 | CJ56: 1
A57: Participant inclusiveness | B57: Participant inclusion of different races or why not relevant | C57: 1 | D57: =IF(D34=0,0,1) -> 0 | E57: 0 | F57: 0 | G57: 0 | H57: 1 | I57: 0 | J57: 1 | K57: 0 | L57: 1 | M57: 1 | N57: 0 | O57: 0 | P57: 1 | Q57: 0 | R57: 0 | S57: 0 | T57: =IF(T34=0,0,1) -> 1 | U57: 0 | V57: 1 | W57: 0 | X57: 0 | Y57: 0 | Z57: 0 | AA57: 0 | AB57: 0 | AC57: 1 | AD57: 0 | AE57: 0 | AF57: 0 | AG57: 0 | AH57: 0 | AI57: 0 | AJ57: 1 | AK57: 0 | AL57: 0 | AM57: 0 | AN57: 0 | AO57: 0 | AP57: 0 | AQ57: 0 | AR57: 0 | AS57: 1 | AT57: 0 | AU57: 1 | AV57: 1 | AW57: 0 | AX57: 1 | AY57: 0 | AZ57: 1 | BA57: 0 | BB57: 1 | BC57: 1 | BD57: 0 | BE57: 0 | BF57: 1 | BG57: 1 | BH57: 1 | BI57: 1 | BJ57: 1 | BK57: 1 | BL57: 1 | BM57: 1 | BN57: 1 | BO57: 1 | BP57: 1 | BQ57: 1 | BR57: 1 | BS57: 0 | BT57: 0 | BU57: 0 | BV57: 1 | BW57: 0 | BX57: 0 | BY57: 0 | BZ57: 1 | CA57: 1 | CB57: 0 | CC57: 1 | CD57: 0 | CE57: 1 | CF57: =IF(CF34=0,0,1) -> 0 | CG57: 1 | CH57: 1 | CI57: 0 | CJ57: 0
B58: Participant inclusion of different ethnicities or why not relevant | C58: 1 | D58: 0 | E58: 0 | F58: 0 | G58: 0 | H58: 0 | I58: 0 | J58: 0 | K58: 0 | L58: 0 | M58: 0 | N58: 0 | O58: 0 | P58: 0 | Q58: 0 | R58: 0 | S58: 0 | T58: =IF(T35=0,0,1) -> 0 | U58: 0 | V58: 1 | W58: 1 | X58: 0 | Y58: 0 | Z58: 0 | AA58: 0 | AB58: 0 | AC58: 0 | AD58: 0 | AE58: 0 | AF58: 0 | AG58: 0 | AH58: 0 | AI58: 0 | AJ58: 1 | AK58: 0 | AL58: 0 | AM58: 0 | AN58: 0 | AO58: 0 | AP58: 1 | AQ58: 0 | AR58: 0 | AS58: 1 | AT58: 0 | AU58: 1 | AV58: 1 | AW58: 0 | AX58: 0 | AY58: 0 | AZ58: 1 | BA58: 0 | BB58: 1 | BC58: 0 | BD58: 0 | BE58: 0 | BF58: 1 | BG58: 0 | BH58: 1 | BI58: 1 | BJ58: 1 | BK58: 1 | BL58: 1 | BM58: 1 | BN58: 1 | BO58: 0 | BP58: 0 | BQ58: 1 | BR58: 1 | BS58: 0 | BT58: 0 | BU58: 0 | BV58: 0 | BW58: 0 | BX58: 0 | BY58: 0 | BZ58: 0 | CA58: 1 | CB58: 0 | CC58: 1 | CD58: 0 | CE58: 0 | CF58: =IF(CF35=0,0,1) -> 0 | CG58: 1 | CH58: 1 | CI58: 0 | CJ58: 0
A59: Nomenclature | B59: Race: American Indian or Alaska Native | C59: 1 | D59: 0 | E59: 0 | F59: 0 | G59: 0 | H59: 0 | I59: 0 | J59: 0 | K59: 0 | L59: 0 | M59: 0 | N59: 0 | O59: 0 | P59: 0 | Q59: 0 | R59: 0 | S59: 0 | T59: =IF(T36=0,0,1) -> 0 | U59: 0 | V59: 0 | W59: 0 | X59: 0 | Y59: 0 | Z59: 0 | AA59: 0 | AB59: 0 | AC59: 0 | AD59: 0 | AE59: 0 | AF59: 0 | AG59: 0 | AH59: 0 | AI59: 0 | AJ59: 0 | AK59: 0 | AL59: 0 | AM59: 0 | AN59: 0 | AO59: 0 | AP59: 0 | AQ59: 0 | AR59: 0 | AS59: 1 | AT59: 0 | AU59: 0 | AV59: 0 | AW59: 0 | AX59: 0 | AY59: 0 | AZ59: 1 | BA59: 0 | BB59: 0 | BC59: 0 | BD59: 0 | BE59: 0 | BF59: 0 | BG59: 0 | BH59: 0 | BI59: 0 | BJ59: 1 | BK59: 0 | BL59: 0 | BM59: 1 | BN59: 1 | BO59: 0 | BP59: 0 | BQ59: 1 | BR59: 1 | BS59: 0 | BT59: 0 | BU59: 0 | BV59: 0 | BW59: 0 | BX59: 0 | BY59: 0 | BZ59: 1 | CA59: 0 | CB59: 0 | CC59: 1 | CD59: 0 | CE59: 0 | CF59: =IF(CF36=0,0,1) -> 0 | CG59: 1 | CH59: 1 | CI59: 0 | CJ59: 0
B60: Race: Asian | C60: 1 | D60: 0 | E60: 0 | F60: 0 | G60: 0 | H60: 0 | I60: 0 | J60: 0 | K60: 0 | L60: 1 | M60: 0 | N60: 0 | O60: 0 | P60: 1 | Q60: 0 | R60: 0 | S60: 0 | T60: =IF(T37=0,0,1) -> 0 | U60: 0 | V60: 1 | W60: 0 | X60: 0 | Y60: 0 | Z60: 0 | AA60: 0 | AB60: 0 | AC60: 0 | AD60: 0 | AE60: 0 | AF60: 0 | AG60: 0 | AH60: 0 | AI60: 0 | AJ60: 0 | AK60: 0 | AL60: 0 | AM60: 0 | AN60: 0 | AO60: 1 | AP60: 0 | AQ60: 0 | AR60: 0 | AS60: 1 | AT60: 0 | AU60: 0 | AV60: 1 | AW60: 0 | AX60: 0 | AY60: 0 | AZ60: 1 | BA60: 0 | BB60: 0 | BC60: 0 | BD60: 0 | BE60: 0 | BF60: 0 | BG60: 1 | BH60: 0 | BI60: 1 | BJ60: 1 | BK60: 0 | BL60: 1 | BM60: 1 | BN60: 1 | BO60: 1 | BP60: 1 | BQ60: 1 | BR60: 1 | BS60: 0 | BT60: 0 | BU60: 0 | BV60: 1 | BW60: 0 | BX60: 0 | BY60: 0 | BZ60: 1 | CA60: 1 | CB60: 0 | CC60: 1 | CD60: 0 | CE60: 0 | CF60: =IF(CF37=0,0,1) -> 0 | CG60: 1 | CH60: 1 | CI60: 0 | CJ60: 0
B61: Race: Black or African American | C61: 1 | D61: 0 | E61: 0 | F61: 0 | G61: 0 | H61: 0 | I61: 0 | J61: 1 | K61: 0 | L61: 1 | M61: 0 | N61: 0 | O61: 0 | P61: 1 | Q61: 0 | R61: 0 | S61: 0 | T61: =IF(T38=0,0,1) -> 1 | U61: 0 | V61: 1 | W61: 0 | X61: 0 | Y61: 0 | Z61: 0 | AA61: 0 | AB61: 0 | AC61: 1 | AD61: 0 | AE61: 0 | AF61: 0 | AG61: 0 | AH61: 0 | AI61: 0 | AJ61: 1 | AK61: 0 | AL61: 0 | AM61: 0 | AN61: 0 | AO61: 1 | AP61: 0 | AQ61: 0 | AR61: 0 | AS61: 1 | AT61: 0 | AU61: 1 | AV61: 1 | AW61: 0 | AX61: 1 | AY61: 0 | AZ61: 1 | BA61: 0 | BB61: 1 | BC61: 1 | BD61: 0 | BE61: 0 | BF61: 0 | BG61: 1 | BH61: 1 | BI61: 0 | BJ61: 1 | BK61: 1 | BL61: 1 | BM61: 1 | BN61: 1 | BO61: 1 | BP61: 1 | BQ61: 1 | BR61: 1 | BS61: 0 | BT61: 0 | BU61: 0 | BV61: 1 | BW61: 0 | BX61: 0 | BY61: 0 | BZ61: 1 | CA61: 1 | CB61: 0 | CC61: 1 | CD61: 0 | CE61: 0 | CF61: =IF(CF38=0,0,1) -> 0 | CG61: 1 | CH61: 1 | CI61: 0 | CJ61: 0
B62: Race: Native Hawaiian or Other Pacific Islander | C62: 1 | D62: 0 | E62: 0 | F62: 0 | G62: 0 | H62: 0 | I62: 0 | J62: 1 | K62: 0 | L62: 1 | M62: 0 | N62: 0 | O62: 0 | P62: 1 | Q62: 0 | R62: 0 | S62: 0 | T62: =IF(T39=0,0,1) -> 0 | U62: 0 | V62: 0 | W62: 0 | X62: 0 | Y62: 0 | Z62: 0 | AA62: 0 | AB62: 0 | AC62: 0 | AD62: 0 | AE62: 0 | AF62: 0 | AG62: 0 | AH62: 0 | AI62: 0 | AJ62: 0 | AK62: 0 | AL62: 0 | AM62: 0 | AN62: 0 | AO62: 1 | AP62: 0 | AQ62: 0 | AR62: 0 | AS62: 1 | AT62: 0 | AU62: 1 | AV62: 1 | AW62: 0 | AX62: 1 | AY62: 0 | AZ62: 1 | BA62: 0 | BB62: 1 | BC62: 1 | BD62: 0 | BE62: 0 | BF62: 0 | BG62: 1 | BH62: 1 | BI62: 0 | BJ62: 1 | BK62: 1 | BL62: 1 | BM62: 0 | BN62: 1 | BO62: 0 | BP62: 0 | BQ62: 1 | BR62: 1 | BS62: 0 | BT62: 0 | BU62: 0 | BV62: 0 | BW62: 0 | BX62: 0 | BY62: 0 | BZ62: 1 | CA62: 0 | CB62: 0 | CC62: 0 | CD62: 0 | CE62: 0 | CF62: =IF(CF39=0,0,1) -> 0 | CG62: 1 | CH62: 1 | CI62: 0 | CJ62: 0
B63: Race: Cauasian | C63: 1 | D63: 0 | E63: 0 | F63: 0 | G63: 0 | H63: 0 | I63: 0 | J63: 0 | K63: 0 | L63: 0 | M63: 0 | N63: 0 | O63: 0 | P63: 0 | Q63: 0 | R63: 0 | S63: 0 | T63: =IF(T40=0,0,1) -> 1 | U63: 0 | V63: 1 | W63: 0 | X63: 0 | Y63: 0 | Z63: 0 | AA63: 0 | AB63: 0 | AC63: 1 | AD63: 0 | AE63: 0 | AF63: 0 | AG63: 0 | AH63: 0 | AI63: 0 | AJ63: 1 | AK63: 0 | AL63: 0 | AM63: 0 | AN63: 1 | AO63: 0 | AP63: 0 | AQ63: 0 | AR63: 0 | AS63: 0 | AT63: 0 | AU63: 0 | AV63: 0 | AW63: 0 | AX63: 0 | AY63: 0 | AZ63: 0 | BA63: 0 | BB63: 0 | BC63: 0 | BD63: 0 | BE63: 0 | BF63: 0 | BG63: 0 | BH63: 0 | BI63: 0 | BJ63: 0 | BK63: 0 | BL63: 0 | BM63: 1 | BN63: 1 | BO63: 1 | BP63: 1 | BQ63: 1 | BR63: 1 | BS63: 0 | BT63: 0 | BU63: 0 | BV63: 1 | BW63: 0 | BX63: 0 | BY63: 0 | BZ63: 1 | CA63: 1 | CB63: 0 | CC63: 1 | CD63: 0 | CE63: 0 | CF63: =IF(CF40=0,0,1) -> 0 | CG63: 1 | CH63: 1 | CI63: 0 | CJ63: 0
B64: Ethnicity: Hispanic/Latinx * | C64: 1 | D64: 0 | E64: 0 | F64: 0 | G64: 0 | H64: 0 | I64: 0 | J64: 0 | K64: 0 | L64: 1 | M64: 0 | N64: 0 | O64: 0 | P64: 1 | Q64: 0 | R64: 0 | S64: 0 | T64: =IF(T41=0,0,1) -> 0 | U64: 0 | V64: 1 | W64: 0 | X64: 0 | Y64: 0 | Z64: 0 | AA64: 0 | AB64: 0 | AC64: 0 | AD64: 0 | AE64: 0 | AF64: 0 | AG64: 0 | AH64: 0 | AI64: 0 | AJ64: 1 | AK64: 0 | AL64: 0 | AM64: 0 | AN64: 0 | AO64: 0 | AP64: 0 | AQ64: 0 | AR64: 0 | AS64: 1 | AT64: 0 | AU64: 1 | AV64: 0 | AW64: 0 | AX64: 0 | AY64: 0 | AZ64: 1 | BA64: 0 | BB64: 0 | BC64: 0 | BD64: 0 | BE64: 0 | BF64: 0 | BG64: 0 | BH64: 1 | BI64: 1 | BJ64: 1 | BK64: 1 | BL64: 1 | BM64: 1 | BN64: 1 | BO64: 0 | BP64: 0 | BQ64: 1 | BR64: 1 | BS64: 0 | BT64: 0 | BU64: 0 | BV64: 0 | BW64: 0 | BX64: 0 | BY64: 0 | BZ64: 0 | CA64: 0 | CB64: 0 | CC64: 1 | CD64: 0 | CE64: 0 | CF64: =IF(CF41=0,0,1) -> 0 | CG64: 1 | CH64: 1 | CI64: 0 | CJ64: 0
B65: Ethinicity: Additional Classification** | C65: 1 | D65: 0 | E65: 0 | F65: 0 | G65: 0 | H65: 0 | I65: 0 | J65: 0 | K65: 0 | L65: 0 | M65: 0 | N65: 0 | O65: 0 | P65: 0 | Q65: 0 | R65: 0 | S65: 0 | T65: =IF(T42=0,0,1) -> 0 | U65: 0 | V65: 0 | W65: 1 | X65: 0 | Y65: 0 | Z65: 0 | AA65: 0 | AB65: 0 | AC65: 0 | AD65: 0 | AE65: 0 | AF65: 0 | AG65: 0 | AH65: 0 | AI65: 0 | AJ65: 0 | AK65: 0 | AL65: 0 | AM65: 0 | AN65: 0 | AO65: 0 | AP65: 1 | AQ65: 0 | AR65: 0 | AS65: 1 | AT65: 0 | AU65: 0 | AV65: 0 | AW65: 0 | AX65: 0 | AY65: 0 | AZ65: 1 | BA65: 0 | BB65: 1 | BC65: 0 | BD65: 0 | BE65: 0 | BF65: 0 | BG65: 1 | BH65: 0 | BI65: 0 | BJ65: 0 | BK65: 0 | BL65: 0 | BM65: 0 | BN65: 1 | BO65: 0 | BP65: 0 | BQ65: 1 | BR65: 1 | BS65: 0 | BT65: 0 | BU65: 0 | BV65: 0 | BW65: 0 | BX65: 0 | BY65: 0 | BZ65: 0 | CA65: 1 | CB65: 0 | CC65: 1 | CD65: 0 | CE65: 0 | CF65: =IF(CF42=0,0,1) -> 0 | CG65: 1 | CH65: 1 | CI65: 0 | CJ65: 0
A66: Descriptive Reporting | B66: By race | C66: 1 | D66: 0 | E66: 0 | F66: 0 | G66: 0 | H66: 1 | I66: 0 | J66: 1 | K66: 0 | L66: 1 | M66: 1 | N66: 0 | O66: 0 | P66: 1 | Q66: 0 | R66: 0 | S66: 0 | T66: =IF(T43=0,0,1) -> 1 | U66: 0 | V66: 1 | W66: 0 | X66: 0 | Y66: 0 | Z66: 0 | AA66: 0 | AB66: 0 | AC66: 1 | AD66: 0 | AE66: 0 | AF66: 0 | AG66: 0 | AH66: 0 | AI66: 0 | AJ66: 0 | AK66: 0 | AL66: 0 | AM66: 0 | AN66: 0 | AO66: 0 | AP66: 0 | AQ66: 0 | AR66: 0 | AS66: 1 | AT66: 0 | AU66: 1 | AV66: 1 | AW66: 0 | AX66: 1 | AY66: 0 | AZ66: 1 | BA66: 0 | BB66: 1 | BC66: 1 | BD66: 0 | BE66: 0 | BF66: 0 | BG66: 1 | BH66: 1 | BI66: 1 | BJ66: 1 | BK66: 1 | BL66: 1 | BM66: 1 | BN66: 1 | BO66: 0 | BP66: 0 | BQ66: 1 | BR66: 1 | BS66: 0 | BT66: 0 | BU66: 0 | BV66: 1 | BW66: 0 | BX66: 0 | BY66: 0 | BZ66: 1 | CA66: 1 | CB66: 0 | CC66: 0 | CD66: 0 | CE66: 1 | CF66: =IF(CF43=0,0,1) -> 0 | CG66: 1 | CH66: 1 | CI66: 0 | CJ66: 0
B67: By ethnicity | C67: 1 | D67: 0 | E67: 0 | F67: 0 | G67: 0 | H67: 0 | I67: 0 | J67: 0 | K67: 0 | L67: 0 | M67: 0 | N67: 0 | O67: 0 | P67: 0 | Q67: 0 | R67: 0 | S67: 0 | T67: =IF(T44=0,0,1) -> 0 | U67: 0 | V67: 1 | W67: 1 | X67: 0 | Y67: 0 | Z67: 0 | AA67: 0 | AB67: 0 | AC67: 0 | AD67: 0 | AE67: 0 | AF67: 0 | AG67: 0 | AH67: 0 | AI67: 0 | AJ67: 0 | AK67: 0 | AL67: 0 | AM67: 0 | AN67: 0 | AO67: 0 | AP67: 1 | AQ67: 0 | AR67: 0 | AS67: 1 | AT67: 0 | AU67: 1 | AV67: 0 | AW67: 0 | AX67: 0 | AY67: 0 | AZ67: 1 | BA67: 0 | BB67: 1 | BC67: 0 | BD67: 0 | BE67: 0 | BF67: 0 | BG67: 0 | BH67: 1 | BI67: 1 | BJ67: 1 | BK67: 1 | BL67: 1 | BM67: 1 | BN67: 1 | BO67: 0 | BP67: 0 | BQ67: 1 | BR67: 1 | BS67: 0 | BT67: 0 | BU67: 0 | BV67: 0 | BW67: 0 | BX67: 0 | BY67: 0 | BZ67: 0 | CA67: 1 | CB67: 0 | CC67: 0 | CD67: 0 | CE67: 0 | CF67: =IF(CF44=0,0,1) -> 0 | CG67: 0 | CH67: 0 | CI67: 0 | CJ67: 0
A68: Outcome Reporting | B68: Univariate Outcome by Race | C68: 1 | D68: 0 | E68: 0 | F68: 0 | G68: 0 | H68: 0 | I68: 0 | J68: 0 | K68: 0 | L68: 1 | M68: 0 | N68: 0 | O68: 0 | P68: 0 | Q68: 0 | R68: 0 | S68: 0 | T68: =IF(T45=0,0,1) -> 1 | U68: 0 | V68: 1 | W68: 0 | X68: 0 | Y68: 0 | Z68: 0 | AA68: 0 | AB68: 0 | AC68: 1 | AD68: 0 | AE68: 0 | AF68: 0 | AG68: 0 | AH68: 0 | AI68: 0 | AJ68: 1 | AK68: 0 | AL68: 0 | AM68: 0 | AN68: 0 | AO68: 0 | AP68: 0 | AQ68: 0 | AR68: 0 | AS68: 0 | AT68: 0 | AU68: 0 | AV68: 0 | AW68: 0 | AX68: 0 | AY68: 0 | AZ68: 1 | BA68: 0 | BB68: 1 | BC68: 0 | BD68: 0 | BE68: 0 | BF68: 0 | BG68: 1 | BH68: 0 | BI68: 0 | BJ68: 0 | BK68: 0 | BL68: 0 | BM68: 1 | BN68: 1 | BO68: 1 | BP68: 1 | BQ68: 1 | BR68: 1 | BS68: 0 | BT68: 0 | BU68: 0 | BV68: 1 | BW68: 0 | BX68: 0 | BY68: 0 | BZ68: 1 | CA68: 1 | CB68: 0 | CC68: 1 | CD68: 0 | CE68: 0 | CF68: =IF(CF45=0,0,1) -> 0 | CG68: 1 | CH68: 1 | CI68: 0 | CJ68: 0
B69: Multivariate Outcome by Race | C69: 1 | D69: 0 | E69: 0 | F69: 0 | G69: 0 | H69: 0 | I69: 0 | J69: 0 | K69: 0 | L69: 0 | M69: 0 | N69: 0 | O69: 0 | P69: 1 | Q69: 0 | R69: 0 | S69: 0 | T69: =IF(T46=0,0,1) -> 0 | U69: 0 | V69: 1 | W69: 0 | X69: 0 | Y69: 0 | Z69: 0 | AA69: 0 | AB69: 0 | AC69: 1 | AD69: 0 | AE69: 0 | AF69: 0 | AG69: 0 | AH69: 0 | AI69: 0 | AJ69: 1 | AK69: 0 | AL69: 0 | AM69: 0 | AN69: 0 | AO69: 0 | AP69: 0 | AQ69: 0 | AR69: 0 | AS69: 0 | AT69: 0 | AU69: 0 | AV69: 0 | AW69: 0 | AX69: 0 | AY69: 0 | AZ69: 1 | BA69: 0 | BB69: 1 | BC69: 0 | BD69: 0 | BE69: 0 | BF69: 0 | BG69: 0 | BH69: 0 | BI69: 0 | BJ69: 0 | BK69: 0 | BL69: 0 | BM69: 0 | BN69: 0 | BO69: 0 | BP69: 0 | BQ69: 0 | BR69: 0 | BS69: 0 | BT69: 0 | BU69: 0 | BV69: 0 | BW69: 0 | BX69: 0 | BY69: 0 | BZ69: 1 | CA69: 0 | CB69: 0 | CC69: 0 | CD69: 0 | CE69: 1 | CF69: =IF(CF46=0,0,1) -> 0 | CG69: 0 | CH69: 1 | CI69: 0 | CJ69: 0
B70: Univariate Outcome by Ethnicity | C70: 1 | D70: 0 | E70: 0 | F70: 0 | G70: 0 | H70: 0 | I70: 0 | J70: 0 | K70: 0 | L70: 0 | M70: 0 | N70: 0 | O70: 0 | P70: 0 | Q70: 0 | R70: 0 | S70: 0 | T70: =IF(T47=0,0,1) -> 0 | U70: 0 | V70: 1 | W70: 1 | X70: 0 | Y70: 0 | Z70: 0 | AA70: 0 | AB70: 0 | AC70: 0 | AD70: 0 | AE70: 0 | AF70: 0 | AG70: 0 | AH70: 0 | AI70: 0 | AJ70: 0 | AK70: 0 | AL70: 0 | AM70: 0 | AN70: 0 | AO70: 0 | AP70: 1 | AQ70: 0 | AR70: 0 | AS70: 0 | AT70: 0 | AU70: 0 | AV70: 0 | AW70: 0 | AX70: 0 | AY70: 0 | AZ70: 0 | BA70: 0 | BB70: 1 | BC70: 0 | BD70: 0 | BE70: 0 | BF70: 0 | BG70: 0 | BH70: 0 | BI70: 0 | BJ70: 0 | BK70: 0 | BL70: 0 | BM70: 1 | BN70: 1 | BO70: 0 | BP70: 0 | BQ70: 1 | BR70: 1 | BS70: 0 | BT70: 0 | BU70: 0 | BV70: 0 | BW70: 0 | BX70: 0 | BY70: 0 | BZ70: 0 | CA70: 1 | CB70: 0 | CC70: 1 | CD70: 0 | CE70: 0 | CF70: =IF(CF47=0,0,1) -> 0 | CG70: 1 | CH70: 1 | CI70: 0 | CJ70: 0
B71: Multivariate Outcome by Ethnicity | C71: 1 | D71: 0 | E71: 0 | F71: 0 | G71: 0 | H71: 0 | I71: 0 | J71: 0 | K71: 0 | L71: 0 | M71: 0 | N71: 0 | O71: 0 | P71: 0 | Q71: 0 | R71: 0 | S71: 0 | T71: =IF(T48=0,0,1) -> 0 | U71: 0 | V71: 1 | W71: 1 | X71: 0 | Y71: 0 | Z71: 0 | AA71: 0 | AB71: 0 | AC71: 0 | AD71: 0 | AE71: 0 | AF71: 0 | AG71: 0 | AH71: 0 | AI71: 0 | AJ71: 0 | AK71: 0 | AL71: 0 | AM71: 0 | AN71: 0 | AO71: 0 | AP71: 0 | AQ71: 0 | AR71: 0 | AS71: 0 | AT71: 0 | AU71: 0 | AV71: 0 | AW71: 0 | AX71: 0 | AY71: 0 | AZ71: 0 | BA71: 0 | BB71: 1 | BC71: 0 | BD71: 0 | BE71: 0 | BF71: 0 | BG71: 0 | BH71: 0 | BI71: 0 | BJ71: 0 | BK71: 0 | BL71: 0 | BM71: 0 | BN71: 0 | BO71: 0 | BP71: 0 | BQ71: 0 | BR71: 1 | BS71: 0 | BT71: 0 | BU71: 0 | BV71: 0 | BW71: 0 | BX71: 0 | BY71: 0 | BZ71: 0 | CA71: 0 | CB71: 0 | CC71: 0 | CD71: 0 | CE71: 0 | CF71: =IF(CF48=0,0,1) -> 0 | CG71: 0 | CH71: 0 | CI71: 0 | CJ71: 0
C72: =SUM(C56:C71) -> 16 | D72: 0 | E72: =SUM(E56:E71) -> 1 | F72: 1 | G72: 1 | H72: 3 | I72: 1 | J72: 5 | K72: 1 | L72: 8 | M72: 3 | N72: 1 | O72: 1 | P72: 8 | Q72: 1 | R72: 1 | S72: 1 | T72: 6 | U72: 1 | V72: 13 | W72: 6 | X72: 1 | Y72: 1 | Z72: 1 | AA72: 1 | AB72: 0 | AC72: 7 | AD72: 1 | AE72: 1 | AF72: 1 | AG72: 1 | AH72: 1 | AI72: 1 | AJ72: 8 | AK72: 1 | AL72: 1 | AM72: 1 | AN72: 2 | AO72: 4 | AP72: 5 | AQ72: 1 | AR72: 1 | AS72: 11 | AT72: 1 | AU72: 8 | AV72: 7 | AW72: 1 | AX72: 5 | AY72: 1 | AZ72: 13 | BA72: 1 | BB72: 12 | BC72: 5 | BD72: 1 | BE72: 1 | BF72: 3 | BG72: 8 | BH72: 8 | BI72: 7 | BJ72: 10 | BK72: 8 | BL72: 9 | BM72: 12 | BN72: 14 | BO72: 6 | BP72: 6 | BQ72: =SUM(BQ56:BQ71) -> 14 | BR72: 15 | BS72: 1 | BT72: 1 | BU72: 1 | BV72: 7 | BW72: 1 | BX72: 1 | BY72: 1 | BZ72: 10 | CA72: 11 | CB72: 1 | CC72: 11 | CD72: 1 | CE72: 4 | CF72: 1 | CG72: 13 | CH72: 14 | CI72: 1 | CJ72: 1
C73: average | D73: =AVERAGE(Column2!D43:CJ43, D72:CJ72) -> 3.964705882
C74: median | D74: =MEDIAN(D72:CJ72,Column2!D43:CJ43) -> 1
C75: Minimum | D75: =MIN(D72:CJ72,Column2!D43:CJ43) -> 0
C76: Maximum | D76: =MAX(D72:CJ72,Column2!D43:CJ43) -> 15
C77: Std Dev | D77: =_xlfn.STDEV.P(D72:CJ72,Column2!D43:CJ43) -> 3.946545947
C78: Q1 | D78: =QUARTILE(D72:CJ72,Column2!D43:CJ43) -> 1
C79: Q3 | D79: =_xlfn.QUARTILE.EXC(D72:CJ72,Column2!D43:CJ43) -> 1
D80: =_xlfn.QUARTILE.EXC(D72:CJ72,Column2!D43:CJ43) -> 1
A83: Race/Ethnicity Tool
D85: yes | E85: No
A86: Authorship inclusiveness | B86: Author representation of different races or ethnicities | C86: =IF(C63=0,0,1) -> 1 | D86: =COUNTIF(D6:CJ6,1) -> 84 | E86: =85-D86 -> 1 | F86: =SUM(D86:E86) -> 85
A87: Participant inclusiveness | B87: Participant inclusion of different races or why not relevant | C87: 1 | D87: =COUNTIF(D7:CJ7,1) -> 78 | E87: =85-D87 -> 7 | F87: 85
B88: Participant inclusion of different ethnicities or why not relevant | C88: 1 | D88: 75 | E88: 10 | F88: 85
A89: Nomenclature | B89: Race: American Indian or Alaska Native | C89: 1 | D89: 83 | E89: 2 | F89: 85
B90: Race: Asian | C90: 1 | D90: 84 | E90: 1 | F90: 85
B91: Race: Black or African American | C91: 1 | D91: 82 | E91: 3 | F91: 85
B92: Race: Native Hawaiian or Other Pacific Islander | C92: 1 | D92: 78 | E92: 7 | F92: 85
B93: Race: Cauasian | C93: 1 | D93: 81 | E93: 4 | F93: 85
B94: Ethnicity: Hispanic/Latinx * | C94: 1 | D94: 0 | E94: 85 | F94: 85
B95: Ethinicity: Additional Classification** | C95: 1 | D95: 82 | E95: 3 | F95: 85
A96: Descriptive Reporting | B96: By race | C96: 1 | D96: 73 | E96: 12 | F96: 85
B97: By ethnicity | C97: 1 | D97: 67 | E97: 18 | F97: 85
A98: Outcome Reporting | B98: Univariate Outcome by Race | C98: 1 | D98: 68 | E98: 17 | F98: 85
B99: Multivariate Outcome by Race | C99: 1 | D99: 65 | E99: 20 | F99: 85
B100: Univariate Outcome by Ethnicity | C100: 1 | D100: 74 | E100: 11 | F100: 85
B101: Multivariate Outcome by Ethnicity | C101: 1 | D101: 74 | E101: 11 | F101: =SUM(D101:E101) -> 85
C102: =SUM(C86:C101) -> 16 | D102: =SUM(D86:D101) -> 1148 | E102: =SUM(E86:E101) -> 212 | F102: =SUM(D102:E102) -> 1360
F103: =1148/1360 -> 0.8441176471

Sheet Column2
A1: Race/Ethnicity Tool
D3: Multicenter Study of the Treatment of Appendicitis in America: Acute, Perforated, and Gangrenous (MUSTANG), an EAST Multicenter Study. | E3: EAST multicenter trial of simulation-based team training for pediatric trauma: Resuscitation task completion is highly variable during simulated traumatic brain injury resuscitation. | F3: Colorectal resection in emergency general surgery: An EAST multicenter trial. | G3: Contemporary management of traumatic cervical and thoracic esophageal perforation: The results of an Eastern Association for the Surgery of Trauma multi-institutional study. | H3: Safe phlebotomy reduction in stable pediatric liver and spleen injuries. | I3: Blunt small bowel perforation (SBP): An Eastern Association for the Surgery of Trauma multicenter update 15 years later. | J3: Outcomes in patients with gunshot wounds to the brain. | K3: Predictors of retained hemothorax in trauma: Results of an Eastern Association for the Surgery of Trauma multi-institutional trial. | L3: Screening for Harassment, Abuse, and Discrimination among Surgery Residents: An EAST Multicenter Trial. | M3: Prospective validation of the Emergency Surgery Score in emergencygeneral surgery: An Eastern Association for the Surgery of Trauma multicenter study. | N3: Timing and volume of crystalloid and blood products in pediatric trauma: An Eastern Association for the Surgery of Trauma multicenter prospectiveobservational study. | O3: Loop ileostomy versus total colectomy as surgical treatment for Clostridiumdifficile-associated disease: An Eastern Association for the Surgery of Trauma multicenter trial. | P3: Infection after penetrating brain injury-An Eastern Association for the Surgery of Trauma multicenter study oral presentation at the 32nd annual meeting of the Eastern Association for the Surgery of Trauma, January 15-19, 2019, in Austin, Texas. | Q3: The why and how our trauma patients die: A prospective Multicenter Western Trauma Association study. | R3: Clearing the cervical spine in patients with distracting injuries: An AAST multi-institutional trial. Khan AD, Liebscher SC, Reiser HC, Schroeppel TJ, Anstadt MJ, Bosarge PL, Carroll SL, Quick JA, Barnes SL, Sobrino J, Murry J, Morin N, Gomez M, Consani H, Gonzalez RP.J Trauma Acute Care Surg. 2019 Jan;86(1):28-35. doi: 10.1097/TA.0000000000002063.PMID: 30188422 | S3: Ultrasonographic inferior vena cava diameter response to trauma resuscitation after 1 hour predicts 24-hour fluid requirement. Doucet JJ, Ferrada P, Murthi S, Nirula R, Edwards S, Cantrell E, Han J, Haase D, Singleton A, Birkas Y, Casola G, Coimbra R; AAST Multi-Institutional Trials Committee.J Trauma Acute Care Surg. 2020 Jan;88(1):70-79. doi: 10.1097/TA.0000000000002525.PMID: 31688824 | T3: Prehospital tourniquet use in penetrating extremity trauma: Decreased blood transfusions and limb complications. Smith AA, Ochoa JE, Wong S, Beatty S, Elder J, Guidry C, McGrew P, McGinness C, Duchesne J, Schroll R.J Trauma Acute Care Surg. 2019 Jan;86(1):43-51. doi: 10.1097/TA.0000000000002095.PMID: 30358768 | U3: Trauma ICU Prevalence Project: the diversity of surgical critical care. Michetti CP, Fakhry SM, Brasel K, Martin ND, Teicher EJ, Newcomb A; TRIPP study group.Trauma Surg Acute Care Open. 2019 Feb 18;4(1):e000288. doi: 10.1136/tsaco-2018-000288. eCollection 2019. | V3: NSTI Organisms and Regions: A Multicenter Study From the American Association for the Surgery of Trauma. | W3: Association between home insulation and hospital admission rates: retrospective cohort study using linked data from a national intervention programme | X3: Update to living systematic review on drug treatments for covid-19 | Y3: Does medicine run in the family—evidence from three generations of physicians in Sweden: retrospective observational study | Z3: Association of high profile football matches in Europe with traffic accidents in Asia: archival study | AA3: Effectiveness of hospital clowns for symptom management in paediatrics: systematic review of randomised and non-randomised controlled trials
A4: Authorship inclusiveness | B4: Author representation of different races or ethnicities | C4: 1 | D4: 1 | E4: 1 | F4: 1 | G4: 1 | H4: 1 | I4: 1 | J4: 1 | K4: 1 | L4: 1 | M4: 1 | N4: 1 | O4: 1 | P4: 1 | Q4: 1 | R4: 1 | S4: 1 | T4: 1 | U4: 1 | V4: 1 | W4: 0 | Y4: 1 | Z4: 1 | AA4: 1 | AB4: N/A | AC4: 1 | AD4: N/A | AE4: N/A | AF4: N/A | AG4: 0 (all german authors) | AH4: 1 ( all from sweden but different ethnicities based on pics :) | AI4: N/A | AJ4: 1 | AK4: N/A | AL4: N/A | AM4: N/A | AN4: 0 | AO4: 1 | AP4: 1 | AQ4: 0 all from iceland | AR4: 1 | AS4: 1 | AT4: 1 | AU4: 1 | AV4: 1 | AW4: 1 | AX4: 1 | AY4: 1 | AZ4: 1 | BA4: 1 | BB4: 1 | BC4: 1 | BD4: 1 | BE4: 0 | BF4: 1 | BG4: 1 | BH4: 1 | BI4: 1 | BJ4: 1 | BK4: 1 | BL4: 1 | BM4: 1 | BN4: 1 | BO4: 1 | BP4: 1 | BQ4: 1 | BR4: 1 | BS4: 1 | BT4: 1 | BU4: 1 | BV4: 1 | BW4: 1 | BX4: 1 | BY4: 1 | BZ4: 1 | CA4: 1 | CB4: 1 | CC4: 1 | CD4: 1 | CE4: 1 | CF4: 0 | CG4: 1 | CH4: 1 | CI4: 1 | CJ4: 0
A5: Participant inclusiveness | B5: Participant inclusion of different races or why not relevant | C5: 1 | D5: 0 | E5: 0 | F5: 0 | G5: 0 | H5: 0 | I5: 0 | J5: 1 | K5: 0 | L5: 1 | M5: 0 | N5: 0 | O5: 0 | P5: 1 | Q5: 0 | R5: 0 | S5: 0 | T5: 1 | U5: 0 | V5: 1 | W5: 0 | Y5: 0 | Z5: 0 | AA5: 0 | AB5: N/A | AC5: 1 | AD5: N/A | AE5: N/A | AF5: N/A | AG5: 0 | AH5: 0 | AI5: N/A | AJ5: 1 | AK5: N/A | AL5: N/A | AM5: N/A | AN5: 0 | AO5: 1 | AP5: 0 | AQ5: 0 | AR5: 0 | AS5: 1 | AT5: 0 | AU5: 1 | AV5: 1 | AW5: 0 | AX5: 1 | AY5: 0 | AZ5: 1 | BA5: 0 | BB5: 0 | BC5: 1 | BD5: 0 | BE5: 0 | BF5: 0 | BG5: 1 | BH5: 1 | BI5: 1 | BJ5: 1 | BK5: 1 | BL5: 1 | BM5: 1 | BN5: 1 | BO5: 1 | BP5: 1 | BQ5: 1 | BR5: 1 | BS5: 0 | BT5: 0 | BU5: 0 | BV5: 1 | BW5: 0 | BX5: 0 | BY5: 0 | BZ5: 1 | CA5: 1 | CC5: 1 | CG5: 1 | CH5: 1
B6: Participant inclusion of different ethnicities or why not relevant | C6: 1 | D6: 0 | E6: 0 | F6: 0 | G6: 0 | H6: 0 | I6: 0 | J6: 0 | K6: 0 | L6: 1 | M6: 0 | N6: 0 | O6: 0 | P6: 0 | Q6: 0 | R6: 0 | S6: 0 | T6: 0 | U6: 0 | V6: 0 | W6: 1 | Y6: 1 | Z6: 0 | AA6: 0 | AB6: N/A | AC6: 0 | AD6: N/A | AE6: N/A | AF6: N/A | AG6: 0 | AH6: 0 | AI6: N/A | AJ6: 1 | AK6: N/A | AL6: N/A | AM6: N/A | AN6: 0 | AO6: 0 | AP6: 1 | AQ6: 1 | AR6: 1 | AS6: 1 | AT6: 0 | AU6: 1 | AV6: 0 | AW6: 0 | AX6: 0 | AY6: 0 | AZ6: 1 | BA6: 0 | BB6: 0 | BC6: 0 | BD6: 0 | BE6: 0 | BF6: 0 | BG6: 0 | BH6: 1 | BI6: 1 | BJ6: 1 | BK6: 1 | BL6: 1 | BM6: 1 | BN6: 1 | BO6: 0 | BP6: 0 | BQ6: 1 | BR6: 1 | BS6: 0 | BT6: 0 | BU6: 0 | BV6: 0 | BW6: 0 | BX6: 0 | BY6: 0 | BZ6: 0 | CA6: 0 | CC6: 1 | CG6: 1 | CH6: 1
A7: Nomenclature | B7: Race: American Indian or Alaska Native | C7: 1 | D7: 0 | E7: 0 | F7: 0 | G7: 0 | H7: 0 | I7: 0 | J7: 0 | K7: 0 | L7: 0 | M7: 0 | N7: 0 | O7: 0 | P7: 0 | Q7: 0 | R7: 0 | S7: 0 | T7: 0 | U7: 0 | V7: 0 | W7: 0 | Y7: 0 | Z7: 0 | AA7: 0 | AB7: N/A | AC7: 0 | AD7: N/A | AE7: N/A | AF7: N/A | AG7: 0 | AH7: 0 | AI7: N/A | AJ7: 1 | AK7: N/A | AL7: N/A | AM7: N/A | AN7: 0 | AO7: 0 | AP7: 0 | AQ7: 0 | AR7: 0 | AS7: 1 | AT7: 0 | AU7: 0 | AV7: 0 | AW7: 0 | AX7: 0 | AY7: 0 | AZ7: 1 | BA7: 0 | BB7: 0 | BC7: 0 | BD7: 0 | BE7: 0 | BF7: 0 | BG7: 0 | BH7: 0 | BI7: 0 | BJ7: 1 | BK7: 0 | BL7: 0 | BM7: 1 | BN7: 0 | BO7: 0 | BP7: 0 | BQ7: 1 | BR7: 1 | BS7: 0 | BT7: 0 | BU7: 0 | BV7: 0 | BW7: 0 | BX7: 0 | BY7: 0 | BZ7: 1 | CA7: 0 | CC7: 1 | CG7: 0 | CH7: 1
B8: Race: Asian | C8: 1 | D8: 0 | E8: 0 | F8: 0 | G8: 0 | H8: 0 | I8: 0 | J8: 0 | K8: 0 | L8: 1 | M8: 0 | N8: 0 | O8: 0 | P8: 1 | Q8: 0 | R8: 0 | S8: 0 | T8: 0 | U8: 0 | V8: 1 | W8: 0 | Y8: 1 | Z8: 0 | AA8: 0 | AB8: N/A | AC8: 0 | AD8: N/A | AE8: N/A | AF8: N/A | AG8: 0 | AH8: 0 | AI8: N/A | AJ8: 0 | AK8: N/A | AL8: N/A | AM8: N/A | AN8: 0 | AO8: 1 | AP8: 0 | AQ8: 0 | AR8: 0 | AS8: 1 | AT8: 0 | AU8: 0 | AV8: 1 | AW8: 0 | AX8: 0 | AY8: 0 | AZ8: 1 | BA8: 0 | BB8: 0 | BC8: 0 | BD8: 0 | BE8: 0 | BF8: 0 | BG8: 1 | BH8: 0 | BI8: 1 | BJ8: 1 | BK8: 0 | BL8: 1 | BM8: 1 | BN8: 1 | BO8: 1 | BP8: 1 | BQ8: 1 | BR8: 1 | BS8: 0 | BT8: 0 | BU8: 0 | BV8: 1 | BW8: 0 | BX8: 0 | BY8: 0 | BZ8: 1 | CA8: 1 | CC8: 1 | CG8: 1 | CH8: 1
B9: Race: Black or African American | C9: 1 | D9: 0 | E9: 0 | F9: 0 | G9: 0 | H9: 0 | I9: 0 | J9: 1 | K9: 0 | L9: 1 | M9: 0 | N9: 0 | O9: 0 | P9: 1 | Q9: 0 | R9: 0 | S9: 0 | T9: 1 | U9: 0 | V9: 1 | W9: 0 | Y9: 1 | Z9: 0 | AA9: 0 | AB9: N/A | AC9: 1 | AD9: N/A | AE9: N/A | AF9: N/A | AG9: 0 | AH9: 0 | AI9: N/A | AJ9: 1 | AK9: N/A | AL9: N/A | AM9: N/A | AN9: 0 | AO9: 1 | AP9: 0 | AQ9: 0 | AR9: 0 | AS9: 1 | AT9: 0 | AU9: 1 | AV9: 1 | AW9: 0 | AX9: 1 | AY9: 0 | AZ9: 1 | BA9: 0 | BB9: 0 | BC9: 1 | BD9: 0 | BE9: 0 | BF9: 0 | BG9: 1 | BH9: 1 | BI9: 1 | BJ9: 1 | BK9: 1 | BL9: 1 | BM9: 1 | BN9: 1 | BO9: 1 | BP9: 1 | BQ9: 1 | BR9: 1 | BS9: 0 | BT9: 0 | BU9: 0 | BV9: 1 | BW9: 0 | BX9: 0 | BY9: 0 | BZ9: 1 | CA9: 1 | CC9: 1 | CG9: 1 | CH9: 1
B10: Race: Native Hawaiian or Other Pacific Islander | C10: 1 | D10: 0 | E10: 0 | F10: 0 | G10: 0 | H10: 0 | I10: 0 | J10: 0 | K10: 0 | L10: 0 | M10: 0 | N10: 0 | O10: 0 | P10: 0 | Q10: 0 | R10: 0 | S10: 0 | T10: 0 | U10: 0 | V10: 0 | W10: 1 | Y10: 0 | Z10: 0 | AA10: 0 | AB10: N/A | AC10: 1 | AD10: N/A | AE10: N/A | AF10: N/A | AG10: 0 | AH10: 0 | AI10: N/A | AJ10: 1 | AK10: N/A | AL10: N/A | AM10: N/A | AN10: 0 | AO10: 1 | AP10: 0 | AQ10: 0 | AR10: 0 | AS10: 1 | AT10: 0 | AU10: 1 | AV10: 1 | AW10: 0 | AX10: 1 | AY10: 0 | AZ10: 1 | BA10: 0 | BB10: 0 | BC10: 0 | BD10: 0 | BE10: 0 | BF10: 0 | BG10: 0 | BH10: 0 | BI10: 0 | BJ10: 1 | BK10: 0 | BL10: 0 | BM10: 0 | BN10: 0 | BO10: 0 | BP10: 0 | BQ10: 1 | BR10: 1 | BS10: 0 | BT10: 0 | BU10: 0 | BV10: 0 | BW10: 0 | BX10: 0 | BY10: 0 | BZ10: 1 | CA10: 0 | CC10: 0 | CG10: 1 | CH10: 1
B11: Race: Caucasian | C11: 0 | D11: 0 | E11: 0 | F11: 0 | G11: 0 | H11: *0 | I11: 0 | J11: O* | K11: 0 | L11: 0* | M11: 0* | N11: 0 | O11: 0 | P11: 0* | Q11: 0 | R11: 0 | S11: 0 | T11: 0 | U11: 0 | V11: 0 | W11: 0 | Y11: 0 | Z11: 0 | AA11: 0 | AB11: N/A | AC11: 0 | AD11: N/A | AE11: N/A | AF11: N/A | AG11: 0 | AH11: 0 | AI11: N/A | AJ11: 0 | AK11: N/A | AL11: N/A | AM11: N/A | AN11: 0 | AO11: 0 | AP11: 0 | AQ11: 0 | AR11: 0 | AS11: 0 | AT11: 0 | AU11: 0 | AV11: 0 | AW11: 0 | AX11: 0 | AY11: 0 | AZ11: 0 | BA11: 0 | BB11: 0 | BC11: 1 | BD11: 0 | BE11: 0 | BF11: 0 | BG11: 1 | BH11: 1 | BI11: 1 | BJ11: 1 | BK11: 1 | BL11: 1 | BM11: 1 | BN11: 1 | BO11: 1 | BP11: 1 | BQ11: 1 | BR11: 1 | BS11: 0 | BT11: 0 | BU11: 0 | BV11: 1 | BW11: 0 | BX11: 0 | BY11: 0 | BZ11: 0 | CA11: 0 | CC11: 0 | CG11: 0 | CH11: 0
B12: Ethnicity: Hispanic/Latinx * | C12: 1 | D12: 0 | E12: 0 | F12: 0 | G12: 0 | H12: 0 | I12: 0 | J12: 0 | K12: 0 | L12: 1 | M12: 0 | N12: 0 | O12: 0 | P12: 1 | Q12: 0 | R12: 0 | S12: 0 | T12: 0 | U12: 0 | V12: 1 | W12: 0 | Y12: 0 | Z12: 0 | AA12: 0 | AB12: N/A | AC12: 0 | AD12: N/A | AE12: N/A | AF12: N/A | AG12: 0 | AH12: 0 | AI12: N/A | AJ12: 1 | AK12: N/A | AL12: N/A | AM12: N/A | AN12: 0 | AO12: 0 | AP12: 0 | AQ12: 0 | AR12: 0 | AS12: 0 | AT12: 0 | AU12: 1 | AV12: 0 | AW12: 0 | AX12: 0 | AY12: 0 | AZ12: 1 | BA12: 0 | BB12: 0 | BC12: 0 | BD12: 0 | BE12: 0 | BF12: 0 | BG12: 0 | BH12: 1 | BI12: 1 | BJ12: 1 | BK12: 1 | BL12: 1 | BM12: 1 | BN12: 1 | BO12: 0 | BP12: 0 | BQ12: 1 | BR12: 1 | BS12: 0 | BT12: 0 | BU12: 0 | BV12: 0 | BW12: 0 | BX12: 0 | BY12: 0 | BZ12: 0 | CA12: 0 | CC12: 1 | CG12: 1 | CH12: 1
B13: Ethinicity: Additional Classification** | C13: 2 | D13: 0 | E13: 0 | F13: 0 | G13: 0 | H13: 0 | I13: 0 | J13: 0 | K13: 0 | L13: 0 | M13: 0 | N13: 0 | O13: 0 | P13: 0 | Q13: 0 | R13: 0 | S13: 0 | T13: 0 | U13: 0 | V13: 0 | W13: 1 | Y13: 1 | Z13: 0 | AA13: 0 | AB13: N/A | AC13: 0 | AD13: N/A | AE13: N/A | AF13: N/A | AG13: 0 | AH13: 0 | AI13: N/A | AJ13: 0 | AK13: N/A | AL13: N/A | AM13: N/A | AN13: 0 | AO13: 0 | AP13: 2 | AQ13: 2 | AR13: 2 | AS13: 0 | AT13: 0 | AU13: 0 | AV13: 0 | AW13: 0 | AX13: 0 | AY13: 0 | AZ13: 0 | BA13: 0 | BB13: 0 | BC13: 0 | BD13: 0 | BE13: 0 | BF13: 0 | BG13: 0 | BH13: 0 | BI13: 0 | BJ13: 0 | BK13: 0 | BL13: 0 | BM13: 0 | BN13: 0 | BO13: 0 | BP13: 0 | BQ13: 0 | BR13: 0 | BS13: 0 | BT13: 0 | BU13: 0 | BV13: 0 | BW13: 0 | BX13: 0 | BY13: 0 | BZ13: 0 | CA13: 0 | CC13: 2 | CG13: 0 | CH13: 2
A14: Descriptive Reporting | B14: By race | C14: 1 | D14: 0 | E14: 0 | F14: 0 | G14: 0 | H14: 1 | I14: 0 | J14: 1 | K14: 0 | L14: 1 | M14: 1 | N14: 0 | O14: 0 | P14: 1 | Q14: 0 | R14: 0 | S14: 0 | T14: 1 | U14: 0 | V14: 1 | W14: 0 | Y14: 0 | Z14: 0 | AA14: 0 | AB14: N/A | AC14: 0 | AD14: N/A | AE14: N/A | AF14: N/A | AG14: 0 | AH14: 0 | AI14: N/A | AJ14: 1 | AK14: N/A | AL14: N/A | AM14: N/A | AN14: 0 | AO14: 0 | AP14: 0 | AQ14: 0 | AR14: 0 | AS14: 1 | AT14: 0 | AU14: 1 | AV14: 1 | AW14: 0 | AX14: 1 | AY14: 0 | AZ14: 1 | BA14: 0 | BB14: 0 | BC14: 0 | BD14: 0 | BE14: 0 | BF14: 0 | BG14: 0 | BH14: 0 | BI14: 0 | BJ14: 0 | BK14: 0 | BL14: 0 | BM14: 0 | BN14: 0 | BO14: 0 | BP14: 0 | BQ14: 0 | BR14: 0 | BS14: 0 | BT14: 0 | BU14: 0 | BV14: 0 | BW14: 0 | BX14: 0 | BY14: 0 | BZ14: 1 | CA14: 1 | CC14: 1 | CG14: 1 | CH14: 1
B15: By ethnicity | C15: 2 | D15: 0 | E15: 0 | F15: 0 | G15: 0 | H15: 0 | I15: 0 | J15: 0 | K15: 0 | L15: 0 | M15: 0 | N15: 0 | O15: 0 | P15: 0 | Q15: 0 | R15: 0 | S15: 0 | T15: 0 | U15: 0 | V15: 0 | W15: 2 | Y15: 1 | Z15: 0 | AA15: 0 | AB15: N/A | AC15: 0 | AD15: N/A | AE15: N/A | AF15: N/A | AG15: 0 | AH15: 0 | AI15: N/A | AJ15: 0 | AK15: N/A | AL15: N/A | AM15: N/A | AN15: 0 | AO15: 0 | AP15: 0 | AQ15: 0 | AR15: 0 | AS15: 2 | AT15: 0 | AU15: 1 | AV15: 0 | AW15: 0 | AX15: 0 | AY15: 0 | AZ15: 1 | BA15: 0 | BB15: 0 | BC15: 0 | BD15: 0 | BE15: 0 | BF15: 0 | BG15: 0 | BH15: 0 | BI15: 0 | BJ15: 0 | BK15: 0 | BL15: 0 | BM15: 0 | BN15: 0 | BO15: 0 | BP15: 0 | BQ15: 0 | BR15: 0 | BS15: 0 | BT15: 0 | BU15: 0 | BV15: 0 | BW15: 0 | BX15: 0 | BY15: 0 | BZ15: 0 | CA15: 0 | CC15: 2 | CG15: 2 | CH15: 2
A16: Outcome Reporting | B16: Univariate Outcome by Race | C16: 2 | D16: 0 | E16: 0 | F16: 0 | G16: 0 | H16: 2 | I16: 0 | J16: 2 | K16: 0 | L16: 2 | M16: 2 | N16: 0 | O16: 0 | P16: 2 | Q16: 0 | R16: 0 | S16: 0 | T16: 2 | U16: 0 | V16: 2 | W16: 0 | Y16: 2 | Z16: 0 | AA16: 0 | AB16: N/A | AC16: 0 | AD16: N/A | AE16: N/A | AF16: N/A | AG16: 0 | AH16: 0 | AI16: N/A | AJ16: 0 | AK16: N/A | AL16: N/A | AM16: N/A | AN16: 0 | AO16: 0 | AP16: 0 | AQ16: 0 | AR16: 0 | AS16: 0 | AT16: 0 | AU16: 0 | AV16: 0 | AW16: 0 | AX16: 0 | AY16: 0 | AZ16: 0 | BA16: 0 | BB16: 0 | BC16: 0 | BD16: 0 | BE16: 0 | BF16: 0 | BG16: 0 | BH16: 0 | BI16: 0 | BJ16: 0 | BK16: 0 | BL16: 0 | BM16: 0 | BN16: 0 | BO16: 0 | BP16: 2 | BQ16: 0 | BR16: 0 | BS16: 0 | BT16: 0 | BU16: 0 | BV16: 0 | BW16: 0 | BX16: 0 | BY16: 0 | BZ16: 2 | CA16: 0 | CC16: 0 | CG16: 0 | CH16: 0
B17: Multivariate Outcome by Race | C17: 2 | D17: 0 | E17: 0 | F17: 0 | G17: 0 | H17: 0 | I17: 0 | J17: 0 | K17: 0 | L17: 2 | M17: 0 | N17: 0 | O17: 0 | P17: 2 | Q17: 0 | R17: 0 | S17: 0 | T17: 0 | U17: 0 | V17: 2 | W17: 0 | Y17: 0 | Z17: 0 | AA17: 0 | AB17: N/A | AC17: 0 | AD17: N/A | AE17: N/A | AF17: N/A | AG17: 0 | AH17: 0 | AI17: N/A | AJ17: 0 | AK17: N/A | AL17: N/A | AM17: N/A | AN17: 0 | AO17: 1 | AP17: 0 | AQ17: 0 | AR17: 0 | AS17: 0 | AT17: 0 | AU17: 0 | AV17: 1 | AW17: 0 | AX17: 0 | AY17: 0 | AZ17: 1 | BA17: 0 | BB17: 0 | BC17: 0 | BD17: 0 | BE17: 0 | BF17: 0 | BG17: 0 | BH17: 0 | BI17: 0 | BJ17: 0 | BK17: 0 | BL17: 0 | BM17: 0 | BN17: 2 | BO17: 0 | BP17: 2 | BQ17: 0 | BR17: 0 | BS17: 0 | BT17: 0 | BU17: 0 | BV17: 0 | BW17: 0 | BX17: 0 | BY17: 0 | BZ17: 0 | CA17: 0 | CC17: 0 | CG17: 0 | CH17: 0
B18: Univariate Outcome by Ethnicity | C18: 2 | D18: 0 | E18: 0 | F18: 0 | G18: 0 | H18: 0 | I18: 0 | J18: 0 | K18: 0 | L18: 0 | M18: 0 | N18: 0 | O18: 0 | P18: 0 | Q18: 0 | R18: 0 | S18: 0 | T18: 0 | U18: 0 | V18: 0 | W18: 2 | Y18: 2 | Z18: 0 | AA18: 0 | AB18: N/A | AC18: 0 | AD18: N/A | AE18: N/A | AF18: N/A | AH18: 0 | AI18: N/A | AJ18: 0 | AK18: N/A | AL18: N/A | AM18: N/A | AN18: 0 | AO18: 0 | AP18: 0 | AQ18: 0 | AR18: 0 | AS18: 0 | AT18: 0 | AU18: 0 | AV18: 0 | AW18: 0 | AX18: 0 | AY18: 0 | AZ18: 0 | BA18: 0 | BB18: 2 | BC18: 0 | BD18: 0 | BE18: 0 | BF18: 0 | BG18: 0 | BH18: 0 | BI18: 0 | BJ18: 0 | BK18: 0 | BL18: 0 | BM18: 0 | BN18: 0 | BO18: 0 | BP18: 0 | BQ18: 0 | BR18: 0 | BS18: 0 | BT18: 0 | BU18: 0 | BV18: 0 | BW18: 0 | BX18: 0 | BY18: 0 | BZ18: 0 | CA18: 0 | CC18: 0 | CG18: 0 | CH18: 0
B19: Multivariate Outcome by Ethnicity | C19: 2 | D19: 0 | E19: 0 | F19: 0 | G19: 0 | H19: 0 | I19: 0 | J19: 0 | K19: 0 | L19: 0 | M19: 0 | N19: 0 | O19: 0 | P19: 0 | Q19: 0 | R19: 0 | S19: 0 | T19: 0 | U19: 0 | V19: 0 | W19: 2 | Y19: 0 | Z19: 0 | AA19: 0 | AB19: N/A | AC19: 0 | AD19: N/A | AE19: N/A | AF19: N/A | AG19: 0 | AH19: 0 | AI19: N/A | AJ19: 0 | AK19: N/A | AL19: N/A | AM19: N/A | AN19: 0 | AO19: 0 | AP19: 0 | AQ19: 0 | AR19: 0 | AS19: 0 | AT19: 0 | AU19: 0 | AV19: 0 | AW19: 0 | AX19: 0 | AY19: 0 | AZ19: 1 | BA19: 0 | BB19: 2 | BC19: 0 | BD19: 0 | BE19: 0 | BF19: 0 | BG19: 0 | BH19: 0 | BI19: 0 | BJ19: 0 | BK19: 0 | BL19: 0 | BM19: 0 | BN19: 2 | BO19: 0 | BP19: 0 | BQ19: 0 | BR19: 0 | BS19: 0 | BT19: 0 | BU19: 0 | BV19: 0 | BW19: 0 | BX19: 0 | BY19: 0 | BZ19: 0 | CA19: 0 | CC19: 0 | CG19: 0 | CH19: 0
A23: NONWEIGHTED
A24: Race/Ethnicity Tool
A27: Authorship inclusiveness | B27: Author representation of different races or ethnicities | C27: 1 | D27: =IF(D4=0,0,1) -> 1 | E27: =IF(E4=0,0,1) -> 1 | F27: 1 | G27: 1 | H27: 1 | I27: 1 | J27: 1 | K27: 1 | L27: 1 | M27: 1 | N27: 1 | O27: 1 | P27: 1 | Q27: 1 | R27: 1 | S27: 1 | T27: 1 | U27: 1 | V27: 1 | W27: 0 | X27: 0 | Y27: 1 | Z27: 1 | AA27: 1 | AB27: 0 | AC27: 1 | AD27: 0 | AE27: 0 | AF27: 0 | AG27: 1 | AH27: 1 | AI27: 0 | AJ27: 1 | AK27: 0 | AL27: 0 | AM27: 0 | AN27: 0 | AO27: 1 | AP27: 1 | AQ27: 1 | AR27: 1 | AS27: 1 | AT27: 1 | AU27: 1 | AV27: 1 | AW27: 1 | AX27: 1 | AY27: 1 | AZ27: 1 | BA27: 1 | BB27: 1 | BC27: 1 | BD27: 1 | BE27: 0 | BF27: 1 | BG27: 1 | BH27: 1 | BI27: 1 | BJ27: 1 | BK27: 1 | BL27: 1 | BM27: 1 | BN27: 1 | BO27: 1 | BP27: 1 | BQ27: =IF(BQ4=0,0,1) -> 1 | BR27: 1 | BS27: 1 | BT27: 1 | BU27: 1 | BV27: 1 | BW27: 1 | BX27: 1 | BY27: 1 | BZ27: 1 | CA27: 1 | CB27: 1 | CC27: 1 | CD27: 1 | CE27: 1 | CF27: 0 | CG27: 1 | CH27: 1 | CI27: 1 | CJ27: 0
A28: Participant inclusiveness | B28: Participant inclusion of different races or why not relevant | C28: =IF(C4=0,0,1) -> 1 | D28: =IF(D5=0,0,1) -> 0 | E28: 0 | F28: 0 | G28: 0 | H28: 0 | I28: 0 | J28: 1 | K28: 0 | L28: 1 | M28: 0 | N28: 0 | O28: 0 | P28: 1 | Q28: 0 | R28: 0 | S28: 0 | T28: 1 | U28: 0 | V28: 1 | W28: 0 | X28: 0 | Y28: 0 | Z28: 0 | AA28: 0 | AB28: 0 | AC28: 1 | AD28: 0 | AE28: 0 | AF28: 0 | AG28: 0 | AH28: 0 | AI28: 0 | AJ28: 1 | AK28: 0 | AL28: 0 | AM28: 0 | AN28: 0 | AO28: 1 | AP28: 0 | AQ28: 0 | AR28: 0 | AS28: 1 | AT28: 0 | AU28: 1 | AV28: 1 | AW28: 0 | AX28: 1 | AY28: 0 | AZ28: 1 | BA28: 0 | BB28: 0 | BC28: 1 | BD28: 0 | BE28: 0 | BF28: 0 | BG28: 1 | BH28: 1 | BI28: 1 | BJ28: 1 | BK28: 1 | BL28: 1 | BM28: 1 | BN28: 1 | BO28: 1 | BP28: 1 | BQ28: 1 | BR28: 1 | BS28: 0 | BT28: 0 | BU28: 0 | BV28: 1 | BW28: 0 | BX28: 0 | BY28: 0 | BZ28: 1 | CA28: 1 | CB28: 0 | CC28: 1 | CD28: 0 | CE28: 0 | CF28: 0 | CG28: 1 | CH28: 1 | CI28: 0 | CJ28: 0
B29: Participant inclusion of different ethnicities or why not relevant | C29: 1 | D29: 0 | E29: 0 | F29: 0 | G29: 0 | H29: 0 | I29: 0 | J29: 0 | K29: 0 | L29: 1 | M29: 0 | N29: 0 | O29: 0 | P29: 0 | Q29: 0 | R29: 0 | S29: 0 | T29: 0 | U29: 0 | V29: 0 | W29: 1 | X29: 0 | Y29: 1 | Z29: 0 | AA29: 0 | AB29: 0 | AC29: 0 | AD29: 0 | AE29: 0 | AF29: 0 | AG29: 0 | AH29: 0 | AI29: 0 | AJ29: 1 | AK29: 0 | AL29: 0 | AM29: 0 | AN29: 0 | AO29: 0 | AP29: 1 | AQ29: 1 | AR29: 1 | AS29: 1 | AT29: 0 | AU29: 1 | AV29: 0 | AW29: 0 | AX29: 0 | AY29: 0 | AZ29: 1 | BA29: 0 | BB29: 0 | BC29: 0 | BD29: 0 | BE29: 0 | BF29: 0 | BG29: 0 | BH29: 1 | BI29: 1 | BJ29: 1 | BK29: 1 | BL29: 1 | BM29: 1 | BN29: 1 | BO29: 0 | BP29: 0 | BQ29: 1 | BR29: 1 | BS29: 0 | BT29: 0 | BU29: 0 | BV29: 0 | BW29: 0 | BX29: 0 | BY29: 0 | BZ29: 0 | CA29: 0 | CB29: 0 | CC29: 1 | CD29: 0 | CE29: 0 | CF29: 0 | CG29: 1 | CH29: 1 | CI29: 0 | CJ29: 0
A30: Nomenclature | B30: Race: American Indian or Alaska Native | C30: 1 | D30: 0 | E30: 0 | F30: 0 | G30: 0 | H30: 0 | I30: 0 | J30: 0 | K30: 0 | L30: 0 | M30: 0 | N30: 0 | O30: 0 | P30: 0 | Q30: 0 | R30: 0 | S30: 0 | T30: 0 | U30: 0 | V30: 0 | W30: 0 | X30: 0 | Y30: 0 | Z30: 0 | AA30: 0 | AB30: 0 | AC30: 0 | AD30: 0 | AE30: 0 | AF30: 0 | AG30: 0 | AH30: 0 | AI30: 0 | AJ30: 1 | AK30: 0 | AL30: 0 | AM30: 0 | AN30: 0 | AO30: 0 | AP30: 0 | AQ30: 0 | AR30: 0 | AS30: 1 | AT30: 0 | AU30: 0 | AV30: 0 | AW30: 0 | AX30: 0 | AY30: 0 | AZ30: 1 | BA30: 0 | BB30: 0 | BC30: 0 | BD30: 0 | BE30: 0 | BF30: 0 | BG30: 0 | BH30: 0 | BI30: 0 | BJ30: 1 | BK30: 0 | BL30: 0 | BM30: 1 | BN30: 0 | BO30: 0 | BP30: 0 | BQ30: 1 | BR30: 1 | BS30: 0 | BT30: 0 | BU30: 0 | BV30: 0 | BW30: 0 | BX30: 0 | BY30: 0 | BZ30: 1 | CA30: 0 | CB30: 0 | CC30: 1 | CD30: 0 | CE30: 0 | CF30: 0 | CG30: 0 | CH30: 1 | CI30: 0 | CJ30: 0
B31: Race: Asian | C31: 1 | D31: 0 | E31: 0 | F31: 0 | G31: 0 | H31: 0 | I31: 0 | J31: 0 | K31: 0 | L31: 1 | M31: 0 | N31: 0 | O31: 0 | P31: 1 | Q31: 0 | R31: 0 | S31: 0 | T31: 0 | U31: 0 | V31: 1 | W31: 0 | X31: 0 | Y31: 1 | Z31: 0 | AA31: 0 | AB31: 0 | AC31: 0 | AD31: 0 | AE31: 0 | AF31: 0 | AG31: 0 | AH31: 0 | AI31: 0 | AJ31: 0 | AK31: 0 | AL31: 0 | AM31: 0 | AN31: 0 | AO31: 1 | AP31: 0 | AQ31: 0 | AR31: 0 | AS31: 1 | AT31: 0 | AU31: 0 | AV31: 1 | AW31: 0 | AX31: 0 | AY31: 0 | AZ31: 1 | BA31: 0 | BB31: 0 | BC31: 0 | BD31: 0 | BE31: 0 | BF31: 0 | BG31: 1 | BH31: 0 | BI31: 1 | BJ31: 1 | BK31: 0 | BL31: =IF(BL8=0,0,1) -> 1 | BM31: 1 | BN31: 1 | BO31: 1 | BP31: 1 | BQ31: 1 | BR31: 1 | BS31: 0 | BT31: 0 | BU31: 0 | BV31: 1 | BW31: 0 | BX31: 0 | BY31: 0 | BZ31: 1 | CA31: 1 | CB31: 0 | CC31: 1 | CD31: 0 | CE31: 0 | CF31: 0 | CG31: 1 | CH31: 1 | CI31: 0 | CJ31: 0
B32: Race: Black or African American | C32: 1 | D32: 0 | E32: 0 | F32: 0 | G32: 0 | H32: 0 | I32: 0 | J32: 1 | K32: 0 | L32: 1 | M32: 0 | N32: 0 | O32: 0 | P32: 1 | Q32: 0 | R32: 0 | S32: 0 | T32: =IF(T9=0,0,1) -> 1 | U32: 0 | V32: 1 | W32: 0 | X32: 0 | Y32: 1 | Z32: 0 | AA32: 0 | AB32: 0 | AC32: 1 | AD32: 0 | AE32: 0 | AF32: 0 | AG32: 0 | AH32: 0 | AI32: 0 | AJ32: 1 | AK32: 0 | AL32: 0 | AM32: 0 | AN32: 0 | AO32: 1 | AP32: 0 | AQ32: 0 | AR32: 0 | AS32: 1 | AT32: 0 | AU32: 1 | AV32: 1 | AW32: 0 | AX32: 1 | AY32: 0 | AZ32: 1 | BA32: 0 | BB32: 0 | BC32: 1 | BD32: 0 | BE32: 0 | BF32: 0 | BG32: 1 | BH32: 1 | BI32: 1 | BJ32: 1 | BK32: 1 | BL32: 1 | BM32: 1 | BN32: 1 | BO32: 1 | BP32: 1 | BQ32: 1 | BR32: 1 | BS32: 0 | BT32: 0 | BU32: 0 | BV32: 1 | BW32: 0 | BX32: 0 | BY32: 0 | BZ32: 1 | CA32: 1 | CB32: 0 | CC32: 1 | CD32: 0 | CE32: 0 | CF32: 0 | CG32: 1 | CH32: 1 | CI32: 0 | CJ32: 0
B33: Race: Native Hawaiian or Other Pacific Islander | C33: 1 | D33: 0 | E33: 0 | F33: 0 | G33: 0 | H33: 0 | I33: 0 | J33: 0 | K33: 0 | L33: 0 | M33: 0 | N33: 0 | O33: 0 | P33: 0 | Q33: 0 | R33: 0 | S33: 0 | T33: 0 | U33: 0 | V33: 0 | W33: 1 | X33: 0 | Y33: 0 | Z33: 0 | AA33: 0 | AB33: 0 | AC33: 1 | AD33: 0 | AE33: 0 | AF33: 0 | AG33: 0 | AH33: 0 | AI33: 0 | AJ33: 1 | AK33: 0 | AL33: 0 | AM33: 0 | AN33: 0 | AO33: 1 | AP33: 0 | AQ33: 0 | AR33: 0 | AS33: 1 | AT33: 0 | AU33: 1 | AV33: 1 | AW33: 0 | AX33: 1 | AY33: 0 | AZ33: 1 | BA33: 0 | BB33: 0 | BC33: 0 | BD33: 0 | BE33: 0 | BF33: 0 | BG33: 0 | BH33: 0 | BI33: 0 | BJ33: 1 | BK33: 0 | BL33: 0 | BM33: 0 | BN33: 0 | BO33: 0 | BP33: 0 | BQ33: 1 | BR33: 1 | BS33: 0 | BT33: 0 | BU33: 0 | BV33: 0 | BW33: 0 | BX33: 0 | BY33: 0 | BZ33: 1 | CA33: 0 | CB33: 0 | CC33: 0 | CD33: 0 | CE33: 0 | CF33: 0 | CG33: 1 | CH33: 1 | CI33: 0 | CJ33: 0
B34: Race: Caucasian | C34: 1 | D34: 0 | E34: 0 | F34: 0 | G34: 0 | H34: 1 | I34: 0 | J34: 1 | K34: 0 | L34: 1 | M34: 1 | N34: 0 | O34: 0 | P34: 1 | Q34: 0 | R34: 0 | S34: 0 | T34: 0 | U34: 0 | V34: 0 | W34: 0 | X34: 0 | Y34: 0 | Z34: 0 | AA34: 0 | AB34: 0 | AC34: 0 | AD34: 0 | AE34: 0 | AF34: 0 | AG34: 0 | AH34: 0 | AI34: 0 | AJ34: 0 | AK34: 0 | AL34: 0 | AM34: 0 | AN34: 0 | AO34: 0 | AP34: 0 | AQ34: 0 | AR34: 0 | AS34: 0 | AT34: 0 | AU34: 0 | AV34: 0 | AW34: 0 | AX34: 0 | AY34: 0 | AZ34: 0 | BA34: 0 | BB34: 0 | BC34: 1 | BD34: 0 | BE34: 0 | BF34: 0 | BG34: 1 | BH34: 1 | BI34: 1 | BJ34: 1 | BK34: 1 | BL34: 1 | BM34: 1 | BN34: 1 | BO34: 1 | BP34: 1 | BQ34: 1 | BR34: 1 | BS34: 0 | BT34: 0 | BU34: 0 | BV34: 1 | BW34: 0 | BX34: 0 | BY34: 0 | BZ34: 0 | CA34: 0 | CB34: 0 | CC34: 0 | CD34: 0 | CE34: 0 | CF34: 0 | CG34: 0 | CH34: 0 | CI34: 0 | CJ34: 0
B35: Ethnicity: Hispanic/Latinx * | C35: 0 | D35: 0 | E35: 0 | F35: 0 | G35: 0 | H35: 0 | I35: 0 | J35: 0 | K35: 0 | L35: 1 | M35: 0 | N35: 0 | O35: 0 | P35: 1 | Q35: 0 | R35: 0 | S35: 0 | T35: 0 | U35: 0 | V35: 1 | W35: 0 | X35: 0 | Y35: 0 | Z35: 0 | AA35: 0 | AB35: 0 | AC35: 0 | AD35: 0 | AE35: 0 | AF35: 0 | AG35: 0 | AH35: 0 | AI35: 0 | AJ35: 1 | AK35: 0 | AL35: 0 | AM35: 0 | AN35: 0 | AO35: 0 | AP35: 0 | AQ35: 0 | AR35: 0 | AS35: 0 | AT35: 0 | AU35: 1 | AV35: 0 | AW35: 0 | AX35: 0 | AY35: 0 | AZ35: 1 | BA35: 0 | BB35: 0 | BC35: 0 | BD35: 0 | BE35: 0 | BF35: 0 | BG35: 0 | BH35: 1 | BI35: 1 | BJ35: 1 | BK35: 1 | BL35: 1 | BM35: 1 | BN35: 1 | BO35: 0 | BP35: 0 | BQ35: 1 | BR35: 1 | BS35: 0 | BT35: 0 | BU35: 0 | BV35: 0 | BW35: 0 | BX35: 0 | BY35: 0 | BZ35: 0 | CA35: 0 | CB35: 0 | CC35: 1 | CD35: 0 | CE35: =IF(CE12=0,0,1) -> 0 | CF35: 0 | CG35: 1 | CH35: 1 | CI35: 0 | CJ35: 0
B36: Ethinicity: Additional Classification** | C36: 1 | D36: 0 | E36: 0 | F36: 0 | G36: 0 | H36: 0 | I36: 0 | J36: 0 | K36: 0 | L36: 0 | M36: 0 | N36: 0 | O36: 0 | P36: 0 | Q36: 0 | R36: 0 | S36: 0 | T36: =IF(T13=0,0,1) -> 0 | U36: 0 | V36: 0 | W36: 1 | X36: 0 | Y36: 1 | Z36: 0 | AA36: 0 | AB36: 0 | AC36: 0 | AD36: 0 | AE36: 0 | AF36: 0 | AG36: 0 | AH36: 0 | AI36: 0 | AJ36: 0 | AK36: 0 | AL36: 0 | AM36: 0 | AN36: 0 | AO36: 0 | AP36: 1 | AQ36: 1 | AR36: 1 | AS36: 0 | AT36: 0 | AU36: 0 | AV36: 0 | AW36: 0 | AX36: 0 | AY36: 0 | AZ36: 0 | BA36: 0 | BB36: 0 | BC36: 0 | BD36: 0 | BE36: 0 | BF36: 0 | BG36: 0 | BH36: 0 | BI36: 0 | BJ36: 0 | BK36: 0 | BL36: 0 | BM36: 0 | BN36: 0 | BO36: 0 | BP36: 0 | BQ36: 0 | BR36: 0 | BS36: 0 | BT36: 0 | BU36: 0 | BV36: 0 | BW36: 0 | BX36: 0 | BY36: 0 | BZ36: 0 | CA36: 0 | CB36: 0 | CC36: 1 | CD36: 0 | CE36: 0 | CF36: 0 | CG36: 0 | CH36: 1 | CI36: 0 | CJ36: 0
A37: Descriptive Reporting | B37: By race | C37: 1 | D37: 0 | E37: 0 | F37: 0 | G37: 0 | H37: 1 | I37: 0 | J37: 1 | K37: 0 | L37: 1 | M37: 1 | N37: 0 | O37: 0 | P37: 1 | Q37: 0 | R37: 0 | S37: 0 | T37: 1 | U37: 0 | V37: 1 | W37: 0 | X37: 0 | Y37: 0 | Z37: 0 | AA37: 0 | AB37: 0 | AC37: 0 | AD37: 0 | AE37: 0 | AF37: 0 | AG37: 0 | AH37: 0 | AI37: 0 | AJ37: 1 | AK37: 0 | AL37: 0 | AM37: 0 | AN37: 0 | AO37: 0 | AP37: 0 | AQ37: 0 | AR37: 0 | AS37: 1 | AT37: 0 | AU37: 1 | AV37: 1 | AW37: 0 | AX37: 1 | AY37: 0 | AZ37: 1 | BA37: 0 | BB37: 0 | BC37: 0 | BD37: 0 | BE37: 0 | BF37: 0 | BG37: 0 | BH37: 0 | BI37: 0 | BJ37: 0 | BK37: 0 | BL37: 0 | BM37: 0 | BN37: 0 | BO37: 0 | BP37: 0 | BQ37: 0 | BR37: 0 | BS37: 0 | BT37: 0 | BU37: 0 | BV37: 0 | BW37: 0 | BX37: 0 | BY37: 0 | BZ37: 1 | CA37: 1 | CB37: 0 | CC37: 1 | CD37: 0 | CE37: 0 | CF37: 0 | CG37: 1 | CH37: 1 | CI37: 0 | CJ37: 0
B38: By ethnicity | C38: 1 | D38: 0 | E38: 0 | F38: 0 | G38: 0 | H38: 0 | I38: 0 | J38: 0 | K38: 0 | L38: 0 | M38: 0 | N38: 0 | O38: 0 | P38: 0 | Q38: 0 | R38: 0 | S38: 0 | T38: 0 | U38: 0 | V38: 0 | W38: 1 | X38: 0 | Y38: 1 | Z38: 0 | AA38: 0 | AB38: 0 | AC38: 0 | AD38: 0 | AE38: 0 | AF38: 0 | AG38: 0 | AH38: 0 | AI38: 0 | AJ38: 0 | AK38: 0 | AL38: 0 | AM38: 0 | AN38: 0 | AO38: 0 | AP38: 0 | AQ38: 0 | AR38: 0 | AS38: 1 | AT38: 0 | AU38: 1 | AV38: 0 | AW38: 0 | AX38: 0 | AY38: 0 | AZ38: 1 | BA38: 0 | BB38: 0 | BC38: 0 | BD38: 0 | BE38: 0 | BF38: 0 | BG38: 0 | BH38: 0 | BI38: 0 | BJ38: 0 | BK38: 0 | BL38: 0 | BM38: 0 | BN38: 0 | BO38: 0 | BP38: 0 | BQ38: 0 | BR38: 0 | BS38: 0 | BT38: 0 | BU38: 0 | BV38: 0 | BW38: 0 | BX38: 0 | BY38: 0 | BZ38: 0 | CA38: 0 | CB38: 0 | CC38: 1 | CD38: 0 | CE38: 0 | CF38: 0 | CG38: 1 | CH38: 1 | CI38: 0 | CJ38: 0
A39: Outcome Reporting | B39: Univariate Outcome by Race | C39: 1 | D39: 0 | E39: 0 | F39: 0 | G39: 0 | H39: 1 | I39: 0 | J39: 1 | K39: 0 | L39: 1 | M39: 1 | N39: 0 | O39: 0 | P39: 1 | Q39: 0 | R39: 0 | S39: 0 | T39: 1 | U39: 0 | V39: 1 | W39: 0 | X39: 0 | Y39: 1 | Z39: 0 | AA39: 0 | AB39: 0 | AC39: 0 | AD39: 0 | AE39: 0 | AF39: 0 | AG39: 0 | AH39: 0 | AI39: 0 | AJ39: 0 | AK39: 0 | AL39: 0 | AM39: 0 | AN39: 0 | AO39: 0 | AP39: 0 | AQ39: 0 | AR39: 0 | AS39: 0 | AT39: 0 | AU39: 0 | AV39: 0 | AW39: 0 | AX39: 0 | AY39: 0 | AZ39: 0 | BA39: 0 | BB39: 0 | BC39: 0 | BD39: 0 | BE39: 0 | BF39: 0 | BG39: 0 | BH39: 0 | BI39: 0 | BJ39: 0 | BK39: 0 | BL39: 0 | BM39: 0 | BN39: 0 | BO39: 0 | BP39: 1 | BQ39: 0 | BR39: 0 | BS39: 0 | BT39: 0 | BU39: 0 | BV39: 0 | BW39: 0 | BX39: 0 | BY39: 0 | BZ39: 1 | CA39: 0 | CB39: 0 | CC39: 0 | CD39: 0 | CE39: =IF(CE16=0,0,1) -> 0 | CF39: 0 | CG39: 0 | CH39: 0 | CI39: 0 | CJ39: 0
B40: Multivariate Outcome by Race | C40: 1 | D40: 0 | E40: 0 | F40: 0 | G40: 0 | H40: 0 | I40: 0 | J40: 0 | K40: 0 | L40: 1 | M40: 0 | N40: 0 | O40: 0 | P40: 1 | Q40: 0 | R40: 0 | S40: 0 | T40: =IF(T17=0,0,1) -> 0 | U40: 0 | V40: 1 | W40: 0 | X40: 0 | Y40: 0 | Z40: 0 | AA40: 0 | AB40: 0 | AC40: 0 | AD40: 0 | AE40: 0 | AF40: 0 | AG40: 0 | AH40: 0 | AI40: 0 | AJ40: 0 | AK40: 0 | AL40: 0 | AM40: 0 | AN40: 0 | AO40: 1 | AP40: 0 | AQ40: 0 | AR40: 0 | AS40: 0 | AT40: 0 | AU40: 0 | AV40: 1 | AW40: 0 | AX40: 0 | AY40: 0 | AZ40: 1 | BA40: 0 | BB40: 0 | BC40: 0 | BD40: 0 | BE40: 0 | BF40: 0 | BG40: 0 | BH40: 0 | BI40: 0 | BJ40: 0 | BK40: 0 | BL40: 0 | BM40: 0 | BN40: 1 | BO40: 0 | BP40: 1 | BQ40: 0 | BR40: 0 | BS40: 0 | BT40: 0 | BU40: 0 | BV40: 0 | BW40: 0 | BX40: 0 | BY40: 0 | BZ40: 0 | CA40: 0 | CB40: 0 | CC40: 0 | CD40: 0 | CE40: 0 | CF40: 0 | CG40: 0 | CH40: 0 | CI40: 0 | CJ40: 0
B41: Univariate Outcome by Ethnicity | C41: 1 | D41: 0 | E41: 0 | F41: 0 | G41: 0 | H41: 0 | I41: 0 | J41: 0 | K41: 0 | L41: 0 | M41: 0 | N41: 0 | O41: 0 | P41: 0 | Q41: 0 | R41: 0 | S41: 0 | T41: 0 | U41: 0 | V41: 0 | W41: 1 | X41: 0 | Y41: 1 | Z41: 0 | AA41: 0 | AB41: 0 | AC41: 0 | AD41: 0 | AE41: 0 | AF41: 0 | AG41: 0 | AH41: 0 | AI41: 0 | AJ41: 0 | AK41: 0 | AL41: 0 | AM41: 0 | AN41: 0 | AO41: 0 | AP41: 0 | AQ41: 0 | AR41: 0 | AS41: 0 | AT41: 0 | AU41: 0 | AV41: 0 | AW41: 0 | AX41: 0 | AY41: 0 | AZ41: 0 | BA41: 0 | BB41: 1 | BC41: 0 | BD41: 0 | BE41: 0 | BF41: 0 | BG41: 0 | BH41: 0 | BI41: 0 | BJ41: 0 | BK41: 0 | BL41: 0 | BM41: 0 | BN41: 0 | BO41: 0 | BP41: 0 | BQ41: 0 | BR41: 0 | BS41: 0 | BT41: 0 | BU41: 0 | BV41: 0 | BW41: 0 | BX41: 0 | BY41: 0 | BZ41: 0 | CA41: 0 | CB41: 0 | CC41: 0 | CD41: 0 | CE41: 0 | CF41: 0 | CG41: 0 | CH41: 0 | CI41: 0 | CJ41: 0
B42: Multivariate Outcome by Ethnicity | C42: 1 | D42: 0 | E42: 0 | F42: 0 | G42: 0 | H42: 0 | I42: 0 | J42: 0 | K42: 0 | L42: 0 | M42: 0 | N42: 0 | O42: 0 | P42: 0 | Q42: 0 | R42: 0 | S42: 0 | T42: 0 | U42: 0 | V42: 0 | W42: 1 | X42: 0 | Y42: 0 | Z42: 0 | AA42: 0 | AB42: 0 | AC42: 0 | AD42: 0 | AE42: 0 | AF42: 0 | AG42: 0 | AH42: 0 | AI42: 0 | AJ42: 0 | AK42: 0 | AL42: 0 | AM42: 0 | AN42: 0 | AO42: 0 | AP42: 0 | AQ42: 0 | AR42: 0 | AS42: 0 | AT42: 0 | AU42: 0 | AV42: 0 | AW42: 0 | AX42: 0 | AY42: 0 | AZ42: 1 | BA42: 0 | BB42: 1 | BC42: 0 | BD42: 0 | BE42: 0 | BF42: 0 | BG42: 0 | BH42: 0 | BI42: 0 | BJ42: 0 | BK42: 0 | BL42: 0 | BM42: 0 | BN42: 1 | BO42: 0 | BP42: 0 | BQ42: 0 | BR42: 0 | BS42: 0 | BT42: 0 | BU42: 0 | BV42: 0 | BW42: 0 | BX42: 0 | BY42: 0 | BZ42: 0 | CA42: 0 | CB42: 0 | CC42: 0 | CD42: 0 | CE42: 0 | CF42: 0 | CG42: 0 | CH42: 0 | CI42: 0 | CJ42: 0
C43: =SUM(C27:C42) -> 15 | D43: =SUM(D27:D42) -> 1 | E43: =SUM(E27:E42) -> 1 | F43: 1 | G43: 1 | H43: 4 | I43: 1 | J43: 6 | K43: 1 | L43: 10 | M43: 4 | N43: 1 | O43: 1 | P43: 9 | Q43: 1 | R43: 1 | S43: 1 | T43: 5 | U43: 1 | V43: 8 | W43: 6 | X43: 0 | Y43: 8 | Z43: 1 | AA43: 1 | AB43: 0 | AC43: 4 | AD43: 0 | AE43: 0 | AF43: 0 | AG43: 1 | AH43: 1 | AI43: 0 | AJ43: 8 | AK43: 0 | AL43: 0 | AM43: 0 | AN43: 0 | AO43: 6 | AP43: 3 | AQ43: 3 | AR43: 3 | AS43: 9 | AT43: 1 | AU43: 8 | AV43: 7 | AW43: 1 | AX43: 5 | AY43: 1 | AZ43: 12 | BA43: 1 | BB43: 3 | BC43: 4 | BD43: 1 | BE43: 0 | BF43: 1 | BG43: 5 | BH43: 6 | BI43: 7 | BJ43: 9 | BK43: 6 | BL43: 7 | BM43: 8 | BN43: 9 | BO43: 5 | BP43: 7 | BQ43: =SUM(BQ27:BQ42) -> 9 | BR43: 9 | BS43: 1 | BT43: 1 | BU43: 1 | BV43: 5 | BW43: 1 | BX43: 1 | BY43: 1 | BZ43: 8 | CA43: 5 | CB43: 1 | CC43: 10 | CD43: 1 | CE43: 1 | CF43: 0 | CG43: 9 | CH43: 11 | CI43: 1 | CJ43: 0
